Workbook

Sheet Main
B10: 2019-12-19
B12: Sheet No. | C12: Template Name | D12: Summary
B13: 1 | C13: Future Intra | D13: For Intraday trading in F&O segment
B14: 2 | C14: Cash Intra | D14: For Intraday trading in cash market segment
B15: 3 | C15: Mid-cap Intra | D15: For Intraday trading in Mid-cap stocks
B16: 4 | C16: Bulk Deals | D16: Reveals Bulk Deals carried on NSE & BSE
B17: 5 | C17: Call Tracker
K27: `

Sheet Future Intra
M5: Back to Main Page
A6: FOR INTRA DAY TRADING | L6: =Main!B10 -> 2019-12-19
A9: Sr.no | B9: Sector | C9: Scrip | D9: CLOSE RATE | E9: Pivot Point | F9: Supports | I9: Resistances
B10: Sector | D10: Point | E10: Point | F10: S1 | G10: S2 | H10: S3 | I10: R1 | J10: R2 | K10: R3 | L10: HIGH | M10: LOW | N10: OI | O10: % Change in OI
A11: 1 | B11: Index | C11: BANKNIFTY | D11: 32279.30 | E11: 32226.08 | F11: 32108.22 | G11: 31937.13 | H11: 31819.27 | I11: 32397.17 | J11: 32515.03 | K11: 32686.12 | L11: 32343.95 | M11: 32055 | N11: 1478580 | O11: 3.80%
A12: 2 | B12: Index | C12: NIFTY | D12: 12243.15 | E12: 12222.63 | F12: 12192.17 | G12: 12141.18 | H12: 12110.72 | I12: 12273.62 | J12: 12304.08 | K12: 12355.07 | L12: 12253.1 | M12: 12171.65 | N12: 15645825 | O12: 1.84%
A13: 3 | B13: Index | C13: NIFTYIT | D13: 15730.00 | E13: 15756.67 | F13: 15673.33 | G13: 15616.67 | H13: 15533.33 | I13: 15813.33 | J13: 15896.67 | K13: 15953.33 | L13: 15840 | M13: 15700 | N13: 5600 | O13: 0.00%
A14: 4 | B14: Cement | C14: ACC | D14: 1453.55 | E14: 1456.48 | F14: 1438.17 | G14: 1422.78 | H14: 1404.47 | I14: 1471.87 | J14: 1490.18 | K14: 1505.57 | L14: 1474.8 | M14: 1441.1 | N14: 3414400 | O14: 1.31%
A15: 5 | B15: Others | C15: ADANIENT | D15: 208.35 | E15: 208.97 | F15: 205.13 | G15: 201.92 | H15: 198.08 | I15: 212.18 | J15: 216.02 | K15: 219.23 | L15: 212.8 | M15: 205.75 | N15: 29696000 | O15: -0.78%
A16: 6 | B16: Others | C16: ADANIPORTS | D16: 374.95 | E16: 373.77 | F16: 371.28 | G16: 367.62 | H16: 365.13 | I16: 377.43 | J16: 379.92 | K16: 383.58 | L16: 376.25 | M16: 370.1 | N16: 33147500 | O16: 0.74%
A17: 7 | B17: Power | C17: ADANIPOWER | D17: 61.30 | E17: 61.32 | F17: 60.23 | G17: 59.17 | H17: 58.08 | I17: 62.38 | J17: 63.47 | K17: 64.53 | L17: 62.4 | M17: 60.25 | N17: 81110000 | O17: 7.06%
A18: 8 | B18: Automobile | C18: AMARAJABAT | D18: 742.45 | E18: 744.37 | F18: 737.08 | G18: 731.72 | H18: 724.43 | I18: 749.73 | J18: 757.02 | K18: 762.38 | L18: 751.65 | M18: 739 | N18: 1357000 | O18: -2.25%
A19: 9 | B19: Cement | C19: AMBUJACEM | D19: 196.70 | E19: 197.08 | F19: 193.87 | G19: 191.03 | H19: 187.82 | I19: 199.92 | J19: 203.13 | K19: 205.97 | L19: 200.3 | M19: 194.25 | N19: 19047500 | O19: 2.71%
A20: 10 | B20: Others | C20: APOLLOHOSP | D20: 1385.65 | E20: 1385.18 | F20: 1375.47 | G20: 1365.28 | H20: 1355.57 | I20: 1395.37 | J20: 1405.08 | K20: 1415.27 | L20: 1394.9 | M20: 1375 | N20: 2206500 | O20: -10.58%
A21: 11 | B21: Automobile | C21: APOLLOTYRE | D21: 165.10 | E21: 165.23 | F21: 163.77 | G21: 162.43 | H21: 160.97 | I21: 166.57 | J21: 168.03 | K21: 169.37 | L21: 166.7 | M21: 163.9 | N21: 10407000 | O21: 2.03%
A22: 12 | B22: Automobile | C22: ASHOKLEY | D22: 80.10 | E22: 80.23 | F22: 79.02 | G22: 77.93 | H22: 76.72 | I22: 81.32 | J22: 82.53 | K22: 83.62 | L22: 81.45 | M22: 79.15 | N22: 58648000 | O22: 5.35%
A23: 13 | B23: FMCG | C23: ASIANPAINT | D23: 1782.00 | E23: 1767.67 | F23: 1749.33 | G23: 1716.67 | H23: 1698.33 | I23: 1800.33 | J23: 1818.67 | K23: 1851.33 | L23: 1786 | M23: 1735 | N23: 8889600 | O23: 1.81%
A24: 14 | B24: Pharma | C24: AUROPHARMA | D24: 455.30 | E24: 453.07 | F24: 449.28 | G24: 443.27 | H24: 439.48 | I24: 459.08 | J24: 462.87 | K24: 468.88 | L24: 456.85 | M24: 447.05 | N24: 17185000 | O24: 0.98%
A25: 15 | B25: Banking | C25: AXISBANK | D25: 744.15 | E25: 744.72 | F25: 739.48 | G25: 734.82 | H25: 729.58 | I25: 749.38 | J25: 754.62 | K25: 759.28 | L25: 749.95 | M25: 740.05 | N25: 59461200 | O25: 2.87%
A26: 16 | B26: Automobile | C26: BAJAJ-AUTO | D26: 3226.05 | E26: 3219.05 | F26: 3208.10 | G26: 3190.15 | H26: 3179.20 | I26: 3237.00 | J26: 3247.95 | K26: 3265.90 | L26: 3230 | M26: 3201.1 | N26: 2419500 | O26: 0.90%
A27: 17 | B27: Finance | C27: BAJAJFINSV | D27: 9375.75 | E27: 9381.05 | F27: 9330.10 | G27: 9284.45 | H27: 9233.50 | I27: 9426.70 | J27: 9477.65 | K27: 9523.30 | L27: 9432 | M27: 9335.4 | N27: 1447000 | O27: -1.42%
A28: 18 | B28: Finance | C28: BAJFINANCE | D28: 4129.35 | E28: 4133.93 | F28: 4103.87 | G28: 4078.38 | H28: 4048.32 | I28: 4159.42 | J28: 4189.48 | K28: 4214.97 | L28: 4164 | M28: 4108.45 | N28: 7641000 | O28: 0.36%
A29: 19 | B29: Automobile | C29: BALKRISIND | D29: 949.75 | E29: 953.07 | F29: 940.33 | G29: 930.92 | H29: 918.18 | I29: 962.48 | J29: 975.22 | K29: 984.63 | L29: 965.8 | M29: 943.65 | N29: 2011200 | O29: 4.19%
A30: 20 | B30: Banking | C30: BANKBARODA | D30: 99.20 | E30: 99.95 | F30: 98.00 | G30: 96.80 | H30: 94.85 | I30: 101.15 | J30: 103.10 | K30: 104.30 | L30: 101.9 | M30: 98.75 | N30: 77765400 | O30: 7.47%
A31: 21 | B31: FMCG | C31: BATAINDIA | D31: 1669.60 | E31: 1672.73 | F31: 1654.47 | G31: 1639.33 | H31: 1621.07 | I31: 1687.87 | J31: 1706.13 | K31: 1721.27 | L31: 1691 | M31: 1657.6 | N31: 1905750 | O31: 1.40%
A32: 22 | B32: Capital_Goods | C32: BEL | D32: 100.75 | E32: 100.62 | F32: 100.18 | G32: 99.62 | H32: 99.18 | I32: 101.18 | J32: 101.62 | K32: 102.18 | L32: 101.05 | M32: 100.05 | N32: 31314000 | O32: -0.70%
A33: 23 | B33: FMCG | C33: BERGEPAINT | D33: 500.65 | E33: 497.28 | F33: 492.57 | G33: 484.48 | H33: 479.77 | I33: 505.37 | J33: 510.08 | K33: 518.17 | L33: 502 | M33: 489.2 | N33: 10513800 | O33: 3.87%
A34: 24 | B34: Automobile | C34: BHARATFORG | D34: 496.60 | E34: 492.78 | F34: 487.82 | G34: 479.03 | H34: 474.07 | I34: 501.57 | J34: 506.53 | K34: 515.32 | L34: 497.75 | M34: 484 | N34: 8693500 | O34: -3.53%
A35: 25 | B35: Telecom | C35: BHARTIARTL | D35: 438.50 | E35: 439.65 | F35: 433.30 | G35: 428.10 | H35: 421.75 | I35: 444.85 | J35: 451.20 | K35: 456.40 | L35: 446 | M35: 434.45 | N35: 45715998 | O35: -7.40%
A36: 26 | B36: Capital_Goods | C36: BHEL | D36: 45.40 | E36: 45.63 | F36: 44.82 | G36: 44.23 | H36: 43.42 | I36: 46.22 | J36: 47.03 | K36: 47.62 | L36: 46.45 | M36: 45.05 | N36: 64429700 | O36: 3.57%
A37: 27 | B37: Pharma | C37: BIOCON | D37: 293.15 | E37: 292.07 | F37: 290.13 | G37: 287.12 | H37: 285.18 | I37: 295.08 | J37: 297.02 | K37: 300.03 | L37: 294 | M37: 289.05 | N37: 12132100 | O37: 3.04%
A38: 28 | B38: Automobile | C38: BOSCHLTD | D38: 15242.90 | E38: 15243.85 | F38: 15186.95 | G38: 15131.00 | H38: 15074.10 | I38: 15299.80 | J38: 15356.70 | K38: 15412.65 | L38: 15300.75 | M38: 15187.9 | N38: 128930 | O38: -0.05%
A39: 29 | B39: Oil_Gas | C39: BPCL | D39: 491.15 | E39: 493.60 | F39: 487.60 | G39: 484.05 | H39: 478.05 | I39: 497.15 | J39: 503.15 | K39: 506.70 | L39: 499.6 | M39: 490.05 | N39: 32529600 | O39: 4.55%
A40: 30 | B40: FMCG | C40: BRITANNIA | D40: 3097.70 | E40: 3089.43 | F40: 3060.07 | G40: 3022.43 | H40: 2993.07 | I40: 3127.07 | J40: 3156.43 | K40: 3194.07 | L40: 3118.8 | M40: 3051.8 | N40: 2029800 | O40: 2.01%
A41: 31 | B41: Pharma | C41: CADILAHC | D41: 259.80 | E41: 259.90 | F41: 257.95 | G41: 256.10 | H41: 254.15 | I41: 261.75 | J41: 263.70 | K41: 265.55 | L41: 261.85 | M41: 258.05 | N41: 7393200 | O41: 5.71%
A42: 32 | B42: Banking | C42: CANBK | D42: 223.90 | E42: 225.07 | F42: 220.13 | G42: 216.37 | H42: 211.43 | I42: 228.83 | J42: 233.77 | K42: 237.53 | L42: 230 | M42: 221.3 | N42: 10662200 | O42: 2.37%
A43: 33 | B43: Oil_Gas | C43: CASTROLIND | D43: 130.25 | E43: 130.58 | F43: 128.47 | G43: 126.68 | H43: 124.57 | I43: 132.37 | J43: 134.48 | K43: 136.27 | L43: 132.7 | M43: 128.8 | N43: 6382300 | O43: 1.87%
A44: 34 | B44: Textile | C44: CENTURYTEX | D44: 488.50 | E44: 488.37 | F44: 483.28 | G44: 478.07 | H44: 472.98 | I44: 493.58 | J44: 498.67 | K44: 503.88 | L44: 493.45 | M44: 483.15 | N44: 3498600 | O44: -0.15%
A45: 35 | B45: Power | C45: CESC | D45: 738.80 | E45: 741.07 | F45: 733.33 | G45: 727.87 | H45: 720.13 | I45: 746.53 | J45: 754.27 | K45: 759.73 | L45: 748.8 | M45: 735.6 | N45: 1388000 | O45: -0.34%
A46: 36 | B46: Finance | C46: CHOLAFIN | D46: 309.25 | E46: 310.53 | F46: 307.07 | G46: 304.88 | H46: 301.42 | I46: 312.72 | J46: 316.18 | K46: 318.37 | L46: 314 | M46: 308.35 | N46: 3665000 | O46: 2.09%
A47: 37 | B47: Pharma | C47: CIPLA | D47: 468.60 | E47: 466.88 | F47: 463.87 | G47: 459.13 | H47: 456.12 | I47: 471.62 | J47: 474.63 | K47: 479.37 | L47: 469.9 | M47: 462.15 | N47: 13235500 | O47: -0.20%
A48: 38 | B48: Others | C48: COALINDIA | D48: 197.20 | E48: 196.43 | F48: 195.27 | G48: 193.33 | H48: 192.17 | I48: 198.37 | J48: 199.53 | K48: 201.47 | L48: 197.6 | M48: 194.5 | N48: 14207000 | O48: -0.01%
A49: 39 | B49: FMCG | C49: COLPAL | D49: 1482.60 | E49: 1480.42 | F49: 1469.83 | G49: 1457.07 | H49: 1446.48 | I49: 1493.18 | J49: 1503.77 | K49: 1516.53 | L49: 1491 | M49: 1467.65 | N49: 2214100 | O49: 1.87%
A50: 40 | B50: Others | C50: CONCOR | D50: 574.65 | E50: 575.05 | F50: 570.60 | G50: 566.55 | H50: 562.10 | I50: 579.10 | J50: 583.55 | K50: 587.60 | L50: 579.5 | M50: 571 | N50: 6530214 | O50: 1.16%
A51: 41 | B51: Capital_Goods | C51: CUMMINSIND | D51: 563.65 | E51: 562.70 | F51: 559.30 | G51: 554.95 | H51: 551.55 | I51: 567.05 | J51: 570.45 | K51: 574.80 | L51: 566.1 | M51: 558.35 | N51: 1743800 | O51: -0.19%
A52: 42 | B52: FMCG | C52: DABUR | D52: 462.90 | E52: 461.53 | F52: 458.67 | G52: 454.43 | H52: 451.57 | I52: 465.77 | J52: 468.63 | K52: 472.87 | L52: 464.4 | M52: 457.3 | N52: 12905000 | O52: 0.47%
A53: 43 | B53: Media | C53: DISHTV | D53: 13.00 | E53: 13.07 | F53: 12.83 | G53: 12.67 | H53: 12.43 | I53: 13.23 | J53: 13.47 | K53: 13.63 | L53: 13.3 | M53: 12.9 | N53: 109693600 | O53: -2.65%
A54: 44 | B54: Pharma | C54: DIVISLAB | D54: 1843.75 | E54: 1840.28 | F54: 1832.47 | G54: 1821.18 | H54: 1813.37 | I54: 1851.57 | J54: 1859.38 | K54: 1870.67 | L54: 1848.1 | M54: 1829 | N54: 2294400 | O54: 1.63%
A55: 45 | B55: Realty | C55: DLF | D55: 228.30 | E55: 227.88 | F55: 225.07 | G55: 221.83 | H55: 219.02 | I55: 231.12 | J55: 233.93 | K55: 237.17 | L55: 230.7 | M55: 224.65 | N55: 36840000 | O55: -4.15%
A56: 46 | B56: Pharma | C56: DRREDDY | D56: 2873.85 | E56: 2861.82 | F56: 2846.03 | G56: 2818.22 | H56: 2802.43 | I56: 2889.63 | J56: 2905.42 | K56: 2933.23 | L56: 2877.6 | M56: 2834 | N56: 3168750 | O56: 0.10%
A57: 47 | B57: Automobile | C57: EICHERMOT | D57: 21867.75 | E57: 21792.70 | F57: 21565.55 | G57: 21263.35 | H57: 21036.20 | I57: 22094.90 | J57: 22322.05 | K57: 22624.25 | L57: 22019.85 | M57: 21490.5 | N57: 297470 | O57: 0.55%
A58: 48 | B58: Finance | C58: EQUITAS | D58: 104.40 | E58: 104.83 | F58: 103.52 | G58: 102.63 | H58: 101.32 | I58: 105.72 | J58: 107.03 | K58: 107.92 | L58: 106.15 | M58: 103.95 | N58: 19960100 | O58: -1.55%
A59: 49 | B59: Automobile | C59: ESCORTS | D59: 613.65 | E59: 613.95 | F59: 608.70 | G59: 603.75 | H59: 598.50 | I59: 618.90 | J59: 624.15 | K59: 629.10 | L59: 619.2 | M59: 609 | N59: 5628700 | O59: 5.48%
A60: 50 | B60: Automobile | C60: EXIDEIND | D60: 183.85 | E60: 184.02 | F60: 182.43 | G60: 181.02 | H60: 179.43 | I60: 185.43 | J60: 187.02 | K60: 188.43 | L60: 185.6 | M60: 182.6 | N60: 10668400 | O60: 3.34%
A61: 51 | B61: Banking | C61: FEDERALBNK | D61: 86.25 | E61: 86.22 | F61: 85.53 | G61: 84.82 | H61: 84.13 | I61: 86.93 | J61: 87.62 | K61: 88.33 | L61: 86.9 | M61: 85.5 | N61: 60620000 | O61: 0.67%
A62: 52 | B62: Oil_Gas | C62: GAIL | D62: 117.65 | E62: 118.37 | F62: 116.33 | G62: 115.02 | H62: 112.98 | I62: 119.68 | J62: 121.72 | K62: 123.03 | L62: 120.4 | M62: 117.05 | N62: 62791848 | O62: 3.52%
A63: 53 | B63: Pharma | C63: GLENMARK | D63: 353.85 | E63: 351.40 | F63: 346.30 | G63: 338.75 | H63: 333.65 | I63: 358.95 | J63: 364.05 | K63: 371.60 | L63: 356.5 | M63: 343.85 | N63: 6106200 | O63: -1.53%
A64: 54 | B64: Infrastructure | C64: GMRINFRA | D64: 21.35 | E64: 21.50 | F64: 21.00 | G64: 20.65 | H64: 20.15 | I64: 21.85 | J64: 22.35 | K64: 22.70 | L64: 22 | M64: 21.15 | N64: 164475000 | O64: -0.05%
A65: 55 | B65: FMCG | C65: GODREJCP | D65: 682.30 | E65: 681.32 | F65: 677.93 | G65: 673.57 | H65: 670.18 | I65: 685.68 | J65: 689.07 | K65: 693.43 | L65: 684.7 | M65: 676.95 | N65: 4314400 | O65: 1.20%
A66: 56 | B66: Cement | C66: GRASIM | D66: 757.20 | E66: 763.18 | F66: 748.62 | G66: 740.03 | H66: 725.47 | I66: 771.77 | J66: 786.33 | K66: 794.92 | L66: 777.75 | M66: 754.6 | N66: 22506750 | O66: 0.81%
A67: 57 | B67: Others | C67: HAVELLS | D67: 652.65 | E67: 648.62 | F67: 641.53 | G67: 630.42 | H67: 623.33 | I67: 659.73 | J67: 666.82 | K67: 677.93 | L67: 655.7 | M67: 637.5 | N67: 5432000 | O67: 1.00%
A68: 58 | B68: Technology | C68: HCLTECH | D68: 565.05 | E68: 563.83 | F68: 561.17 | G68: 557.28 | H68: 554.62 | I68: 567.72 | J68: 570.38 | K68: 574.27 | L68: 566.5 | M68: 559.95 | N68: 23097200 | O68: -0.24%
A69: 59 | B69: Finance | C69: HDFC | D69: 2450.35 | E69: 2442.90 | F69: 2426.80 | G69: 2403.25 | H69: 2387.15 | I69: 2466.45 | J69: 2482.55 | K69: 2506.10 | L69: 2459 | M69: 2419.35 | N69: 31632250 | O69: 1.03%
A70: 60 | B70: Banking | C70: HDFCBANK | D70: 1295.60 | E70: 1291.55 | F70: 1280.60 | G70: 1265.60 | H70: 1254.65 | I70: 1306.55 | J70: 1317.50 | K70: 1332.50 | L70: 1302.5 | M70: 1276.55 | N70: 30642500 | O70: 2.54%
A71: 61 | B71: Automobile | C71: HEROMOTOCO | D71: 2319.95 | E71: 2315.25 | F71: 2301.70 | G71: 2283.45 | H71: 2269.90 | I71: 2333.50 | J71: 2347.05 | K71: 2365.30 | L71: 2328.8 | M71: 2297 | N71: 4677600 | O71: 5.19%
A72: 62 | B72: Technology | C72: HEXAWARE | D72: 339.55 | E72: 341.48 | F72: 336.62 | G72: 333.68 | H72: 328.82 | I72: 344.42 | J72: 349.28 | K72: 352.22 | L72: 346.35 | M72: 338.55 | N72: 1413000 | O72: 8.40%
A73: 63 | B73: Metals | C73: HINDALCO | D73: 214.30 | E73: 214.37 | F73: 212.58 | G73: 210.87 | H73: 209.08 | I73: 216.08 | J73: 217.87 | K73: 219.58 | L73: 216.15 | M73: 212.65 | N73: 36676500 | O73: 1.98%
A74: 64 | B74: Oil_Gas | C74: HINDPETRO | D74: 263.85 | E74: 264.03 | F74: 262.12 | G74: 260.38 | H74: 258.47 | I74: 265.77 | J74: 267.68 | K74: 269.42 | L74: 265.95 | M74: 262.3 | N74: 23866500 | O74: -1.90%
A75: 65 | B75: FMCG | C75: HINDUNILVR | D75: 1933.10 | E75: 1936.50 | F75: 1908.10 | G75: 1883.10 | H75: 1854.70 | I75: 1961.50 | J75: 1989.90 | K75: 2014.90 | L75: 1964.9 | M75: 1911.5 | N75: 10205700 | O75: 9.67%
A76: 66 | B76: Finance | C76: IBULHSGFIN | D76: 300.75 | E76: 301.65 | F76: 295.30 | G76: 289.85 | H76: 283.50 | I76: 307.10 | J76: 313.45 | K76: 318.90 | L76: 308 | M76: 296.2 | N76: 26601200 | O76: 6.19%
A77: 67 | B77: Banking | C77: ICICIBANK | D77: 542.75 | E77: 541.23 | F77: 538.62 | G77: 534.48 | H77: 531.87 | I77: 545.37 | J77: 547.98 | K77: 552.12 | L77: 543.85 | M77: 537.1 | N77: 109199750 | O77: 0.17%
A78: 68 | B78: Finance | C78: ICICIPRULI | D78: 497.90 | E78: 496.97 | F78: 494.23 | G78: 490.57 | H78: 487.83 | I78: 500.63 | J78: 503.37 | K78: 507.03 | L78: 499.7 | M78: 493.3 | N78: 11268000 | O78: -0.12%
A79: 69 | B79: Telecom | C79: IDEA | D79: 6.45 | E79: 6.70 | F79: 6.10 | G79: 5.75 | H79: 5.15 | I79: 7.05 | J79: 7.65 | K79: 8.00 | L79: 7.3 | M79: 6.35 | N79: 507304000 | O79: -5.85%
A80: 70 | B80: Banking | C80: IDFCFIRSTB | D80: 42.70 | E80: 42.72 | F80: 42.43 | G80: 42.17 | H80: 41.88 | I80: 42.98 | J80: 43.27 | K80: 43.53 | L80: 43 | M80: 42.45 | N80: 239928000 | O80: 2.09%
A81: 71 | B81: Oil_Gas | C81: IGL | D81: 431.25 | E81: 430.83 | F81: 427.32 | G81: 423.38 | H81: 419.87 | I81: 434.77 | J81: 438.28 | K81: 442.22 | L81: 434.35 | M81: 426.9 | N81: 8456250 | O81: -0.77%
A82: 72 | B82: Others | C82: INDIGO | D82: 1310.30 | E82: 1307.85 | F82: 1293.70 | G82: 1277.10 | H82: 1262.95 | I82: 1324.45 | J82: 1338.60 | K82: 1355.20 | L82: 1322 | M82: 1291.25 | N82: 3453900 | O82: 0.25%
A83: 73 | B83: Banking | C83: INDUSINDBK | D83: 1502.90 | E83: 1500.15 | F83: 1494.05 | G83: 1485.20 | H83: 1479.10 | I83: 1509.00 | J83: 1515.10 | K83: 1523.95 | L83: 1506.25 | M83: 1491.3 | N83: 10524000 | O83: 0.08%
A84: 74 | B84: Telecom | C84: INFRATEL | D84: 247.70 | E84: 247.35 | F84: 244.25 | G84: 240.80 | H84: 237.70 | I84: 250.80 | J84: 253.90 | K84: 257.35 | L84: 250.45 | M84: 243.9 | N84: 14266000 | O84: 0.15%
A85: 75 | B85: Technology | C85: INFY | D85: 733.05 | E85: 732.25 | F85: 726.40 | G85: 719.75 | H85: 713.90 | I85: 738.90 | J85: 744.75 | K85: 751.40 | L85: 738.1 | M85: 725.6 | N85: 48054000 | O85: 1.90%
A86: 76 | B86: Oil_Gas | C86: IOC | D86: 125.90 | E86: 125.45 | F86: 124.80 | G86: 123.70 | H86: 123.05 | I86: 126.55 | J86: 127.20 | K86: 128.30 | L86: 126.1 | M86: 124.35 | N86: 31240000 | O86: 2.30%
A87: 77 | B87: FMCG | C87: ITC | D87: 245.25 | E87: 244.25 | F87: 241.20 | G87: 237.15 | H87: 234.10 | I87: 248.30 | J87: 251.35 | K87: 255.40 | L87: 247.3 | M87: 240.2 | N87: 112562400 | O87: -1.64%
A88: 78 | B88: Metals | C88: JINDALSTEL | D88: 146.45 | E88: 146.48 | F88: 143.72 | G88: 140.98 | H88: 138.22 | I88: 149.22 | J88: 151.98 | K88: 154.72 | L88: 149.25 | M88: 143.75 | N88: 27118600 | O88: -6.80%
A89: 79 | B89: Metals | C89: JSWSTEEL | D89: 264.80 | E89: 262.92 | F89: 258.88 | G89: 252.97 | H89: 248.93 | I89: 268.83 | J89: 272.87 | K89: 278.78 | L89: 266.95 | M89: 257 | N89: 50623900 | O89: 1.86%
A90: 80 | B90: Others | C90: JUBLFOOD | D90: 1579.10 | E90: 1578.57 | F90: 1566.48 | G90: 1553.87 | H90: 1541.78 | I90: 1591.18 | J90: 1603.27 | K90: 1615.88 | L90: 1590.65 | M90: 1565.95 | N90: 2122000 | O90: -0.93%
A91: 81 | B91: Others | C91: JUSTDIAL | D91: 585.95 | E91: 586.87 | F91: 581.08 | G91: 576.22 | H91: 570.43 | I91: 591.73 | J91: 597.52 | K91: 602.38 | L91: 592.65 | M91: 582 | N91: 2487800 | O91: -3.58%
A92: 82 | B92: Banking | C92: KOTAKBANK | D92: 1723.40 | E92: 1719.18 | F92: 1712.37 | G92: 1701.33 | H92: 1694.52 | I92: 1730.22 | J92: 1737.03 | K92: 1748.07 | L92: 1726 | M92: 1708.15 | N92: 9424400 | O92: 3.94%
A93: 83 | B93: Finance | C93: L&TFH | D93: 116.25 | E93: 116.58 | F93: 114.77 | G93: 113.28 | H93: 111.47 | I93: 118.07 | J93: 119.88 | K93: 121.37 | L93: 118.4 | M93: 115.1 | N93: 31812400 | O93: 3.50%
A94: 84 | B94: Finance | C94: LICHSGFIN | D94: 442.50 | E94: 442.63 | F94: 437.97 | G94: 433.43 | H94: 428.77 | I94: 447.17 | J94: 451.83 | K94: 456.37 | L94: 447.3 | M94: 438.1 | N94: 9733600 | O94: 3.27%
A95: 85 | B95: Capital_Goods | C95: LT | D95: 1319.85 | E95: 1320.70 | F95: 1314.40 | G95: 1308.95 | H95: 1302.65 | I95: 1326.15 | J95: 1332.45 | K95: 1337.90 | L95: 1327 | M95: 1315.25 | N95: 20655000 | O95: 0.07%
A96: 86 | B96: Pharma | C96: LUPIN | D96: 767.40 | E96: 763.70 | F96: 758.40 | G96: 749.40 | H96: 744.10 | I96: 772.70 | J96: 778.00 | K96: 787.00 | L96: 769 | M96: 754.7 | N96: 7849100 | O96: -3.15%
A97: 87 | B97: Automobile | C97: M&M | D97: 522.90 | E97: 518.30 | F97: 512.00 | G97: 501.10 | H97: 494.80 | I97: 529.20 | J97: 535.50 | K97: 546.40 | L97: 524.6 | M97: 507.4 | N97: 24834000 | O97: -5.22%
A98: 88 | B98: Finance | C98: M&MFIN | D98: 323.15 | E98: 321.88 | F98: 318.77 | G98: 314.38 | H98: 311.27 | I98: 326.27 | J98: 329.38 | K98: 333.77 | L98: 325 | M98: 317.5 | N98: 12944300 | O98: 2.89%
A99: 89 | B99: Finance | C99: MANAPPURAM | D99: 172.35 | E99: 171.93 | F99: 170.92 | G99: 169.48 | H99: 168.47 | I99: 173.37 | J99: 174.38 | K99: 175.82 | L99: 172.95 | M99: 170.5 | N99: 17934000 | O99: 0.57%
A100: 90 | B100: FMCG | C100: MARICO | D100: 338.75 | E100: 335.88 | F100: 331.77 | G100: 324.78 | H100: 320.67 | I100: 342.87 | J100: 346.98 | K100: 353.97 | L100: 340 | M100: 328.9 | N100: 12642500 | O100: -5.50%
A101: 91 | B101: Automobile | C101: MARUTI | D101: 7251.15 | E101: 7230.88 | F101: 7195.37 | G101: 7139.58 | H101: 7104.07 | I101: 7286.67 | J101: 7322.18 | K101: 7377.97 | L101: 7266.4 | M101: 7175.1 | N101: 3131525 | O101: -1.46%
A102: 92 | B102: FMCG | C102: MCDOWELL-N | D102: 595.85 | E102: 589.87 | F102: 581.98 | G102: 568.12 | H102: 560.23 | I102: 603.73 | J102: 611.62 | K102: 625.48 | L102: 597.75 | M102: 576 | N102: 12712500 | O102: 2.89%
A103: 93 | B103: Finance | C103: MFSL | D103: 536.00 | E103: 528.12 | F103: 513.53 | G103: 491.07 | H103: 476.48 | I103: 550.58 | J103: 565.17 | K103: 587.63 | L103: 542.7 | M103: 505.65 | N103: 9745600 | O103: 18.83%
A104: 94 | B104: Oil_Gas | C104: MGL | D104: 1070.65 | E104: 1071.02 | F104: 1058.03 | G104: 1045.42 | H104: 1032.43 | I104: 1083.63 | J104: 1096.62 | K104: 1109.23 | L104: 1084 | M104: 1058.4 | N104: 2035200 | O104: -1.94%
A105: 95 | B105: Technology | C105: MINDTREE | D105: 765.30 | E105: 770.38 | F105: 754.52 | G105: 743.73 | H105: 727.87 | I105: 781.17 | J105: 797.03 | K105: 807.82 | L105: 786.25 | M105: 759.6 | N105: 1294600 | O105: 14.34%
A106: 96 | B106: Automobile | C106: MOTHERSUMI | D106: 147.35 | E106: 145.48 | F106: 142.22 | G106: 137.08 | H106: 133.82 | I106: 150.62 | J106: 153.88 | K106: 159.02 | L106: 148.75 | M106: 140.35 | N106: 30642900 | O106: 4.91%
A107: 97 | B107: Automobile | C107: MRF | D107: 64352.05 | E107: 64520.38 | F107: 64017.17 | G107: 63682.28 | H107: 63179.07 | I107: 64855.27 | J107: 65358.48 | K107: 65693.37 | L107: 65023.6 | M107: 64185.5 | N107: 17370 | O107: 2.00%
A108: 98 | B108: Finance | C108: MUTHOOTFIN | D108: 716.35 | E108: 715.92 | F108: 711.18 | G108: 706.02 | H108: 701.28 | I108: 721.08 | J108: 725.82 | K108: 730.98 | L108: 720.65 | M108: 710.75 | N108: 4098000 | O108: 0.22%
A109: 99 | B109: Metals | C109: NATIONALUM | D109: 42.50 | E109: 42.58 | F109: 42.17 | G109: 41.83 | H109: 41.42 | I109: 42.92 | J109: 43.33 | K109: 43.67 | L109: 43 | M109: 42.25 | N109: 58565900 | O109: 11.43%
A110: 100 | B110: Infrastructure | C110: NBCC | D110: 35.40 | E110: 35.58 | F110: 34.97 | G110: 34.53 | H110: 33.92 | I110: 36.02 | J110: 36.63 | K110: 37.07 | L110: 36.2 | M110: 35.15 | N110: 40437900 | O110: 1.51%
A111: 101 | B111: Infrastructure | C111: NCC | D111: 54.40 | E111: 54.12 | F111: 53.08 | G111: 51.77 | H111: 50.73 | I111: 55.43 | J111: 56.47 | K111: 57.78 | L111: 55.15 | M111: 52.8 | N111: 50449000 | O111: 0.35%
A112: 102 | B112: FMCG | C112: NESTLEIND | D112: 14214.35 | E112: 14184.63 | F112: 14084.32 | G112: 13954.28 | H112: 13853.97 | I112: 14314.67 | J112: 14414.98 | K112: 14545.02 | L112: 14284.95 | M112: 14054.6 | N112: 423950 | O112: 0.84%
A113: 103 | B113: Technology | C113: NIITTECH | D113: 1603.50 | E113: 1605.18 | F113: 1581.37 | G113: 1559.23 | H113: 1535.42 | I113: 1627.32 | J113: 1651.13 | K113: 1673.27 | L113: 1629 | M113: 1583.05 | N113: 675750 | O113: 0.84%
A114: 104 | B114: Metals | C114: NMDC | D114: 120.50 | E114: 119.67 | F114: 118.43 | G114: 116.37 | H114: 115.13 | I114: 121.73 | J114: 122.97 | K114: 125.03 | L114: 120.9 | M114: 117.6 | N114: 25314000 | O114: 10.91%
A115: 105 | B115: Power | C115: NTPC | D115: 114.55 | E115: 115.03 | F115: 113.82 | G115: 113.08 | H115: 111.87 | I115: 115.77 | J115: 116.98 | K115: 117.72 | L115: 116.25 | M115: 114.3 | N115: 54552000 | O115: 2.42%
A116: 106 | B116: Oil_Gas | C116: OIL | D116: 152.10 | E116: 152.00 | F116: 151.00 | G116: 149.90 | H116: 148.90 | I116: 153.10 | J116: 154.10 | K116: 155.20 | L116: 153 | M116: 150.9 | N116: 5625345 | O116: 1.47%
A117: 107 | B117: Oil_Gas | C117: ONGC | D117: 125.60 | E117: 125.35 | F117: 124.65 | G117: 123.70 | H117: 123.00 | I117: 126.30 | J117: 127.00 | K117: 127.95 | L117: 126.05 | M117: 124.4 | N117: 34863400 | O117: 4.64%
A118: 108 | B118: Textile | C118: PAGEIND | D118: 22263.10 | E118: 22223.98 | F118: 22049.52 | G118: 21835.93 | H118: 21661.47 | I118: 22437.57 | J118: 22612.03 | K118: 22825.62 | L118: 22398.45 | M118: 22010.4 | N118: 135750 | O118: -0.55%
A119: 109 | B119: Pharma | C119: PEL | D119: 1642.50 | E119: 1646.83 | F119: 1620.67 | G119: 1598.83 | H119: 1572.67 | I119: 1668.67 | J119: 1694.83 | K119: 1716.67 | L119: 1673 | M119: 1625 | N119: 4013882 | O119: 1.40%
A120: 110 | B120: Oil_Gas | C120: PETRONET | D120: 278.10 | E120: 277.60 | F120: 275.90 | G120: 273.70 | H120: 272.00 | I120: 279.80 | J120: 281.50 | K120: 283.70 | L120: 279.3 | M120: 275.4 | N120: 18495000 | O120: 0.46%
A121: 111 | B121: Finance | C121: PFC | D121: 113.65 | E121: 114.13 | F121: 112.17 | G121: 110.68 | H121: 108.72 | I121: 115.62 | J121: 117.58 | K121: 119.07 | L121: 116.1 | M121: 112.65 | N121: 22363400 | O121: 0.70%
A122: 112 | B122: FMCG | C122: PIDILITIND | D122: 1367.00 | E122: 1356.85 | F122: 1340.70 | G122: 1314.40 | H122: 1298.25 | I122: 1383.15 | J122: 1399.30 | K122: 1425.60 | L122: 1373 | M122: 1330.55 | N122: 3120500 | O122: 2.01%
A123: 113 | B123: Banking | C123: PNB | D123: 63.40 | E123: 63.65 | F123: 62.60 | G123: 61.80 | H123: 60.75 | I123: 64.45 | J123: 65.50 | K123: 66.30 | L123: 64.7 | M123: 62.85 | N123: 106950400 | O123: 2.51%
A124: 114 | B124: Power | C124: POWERGRID | D124: 187.35 | E124: 187.53 | F124: 186.07 | G124: 184.78 | H124: 183.32 | I124: 188.82 | J124: 190.28 | K124: 191.57 | L124: 189 | M124: 186.25 | N124: 30892000 | O124: -2.72%
A125: 115 | B125: Media | C125: PVR | D125: 1826.15 | E125: 1817.43 | F125: 1802.87 | G125: 1779.58 | H125: 1765.02 | I125: 1840.72 | J125: 1855.28 | K125: 1878.57 | L125: 1832 | M125: 1794.15 | N125: 1108800 | O125: -2.63%
A126: 116 | B126: Cement | C126: RAMCOCEM | D126: 774.15 | E126: 772.12 | F126: 767.73 | G126: 761.32 | H126: 756.93 | I126: 778.53 | J126: 782.92 | K126: 789.33 | L126: 776.5 | M126: 765.7 | N126: 1044800 | O126: -1.21%
A127: 117 | B127: Banking | C127: RBLBANK | D127: 343.45 | E127: 340.75 | F127: 335.40 | G127: 327.35 | H127: 322.00 | I127: 348.80 | J127: 354.15 | K127: 362.20 | L127: 346.1 | M127: 332.7 | N127: 16540200 | O127: 1.02%
A128: 118 | B128: Power | C128: RECLTD | D128: 137.10 | E128: 137.17 | F128: 135.68 | G128: 134.27 | H128: 132.78 | I128: 138.58 | J128: 140.07 | K128: 141.48 | L128: 138.65 | M128: 135.75 | N128: 21186000 | O128: -2.59%
A129: 119 | B129: Oil_Gas | C129: RELIANCE | D129: 1579.90 | E129: 1576.23 | F129: 1569.67 | G129: 1559.43 | H129: 1552.87 | I129: 1586.47 | J129: 1593.03 | K129: 1603.27 | L129: 1582.8 | M129: 1566 | N129: 50656000 | O129: -1.24%
A130: 120 | B130: Metals | C130: SAIL | D130: 41.10 | E130: 41.05 | F130: 40.50 | G130: 39.90 | H130: 39.35 | I130: 41.65 | J130: 42.20 | K130: 42.80 | L130: 41.6 | M130: 40.45 | N130: 86340700 | O130: 2.07%
A131: 121 | B131: Banking | C131: SBIN | D131: 328.05 | E131: 330.38 | F131: 324.37 | G131: 320.68 | H131: 314.67 | I131: 334.07 | J131: 340.08 | K131: 343.77 | L131: 336.4 | M131: 326.7 | N131: 101946000 | O131: -0.42%
A132: 122 | B132: Cement | C132: SHREECEM | D132: 20429.10 | E132: 20447.65 | F132: 20201.55 | G132: 19974.00 | H132: 19727.90 | I132: 20675.20 | J132: 20921.30 | K132: 21148.85 | L132: 20693.75 | M132: 20220.1 | N132: 125100 | O132: -1.18%
A133: 123 | B133: Capital_Goods | C133: SIEMENS | D133: 1504.35 | E133: 1503.85 | F133: 1492.80 | G133: 1481.25 | H133: 1470.20 | I133: 1515.40 | J133: 1526.45 | K133: 1538.00 | L133: 1514.9 | M133: 1492.3 | N133: 2604250 | O133: -0.50%
A134: 124 | B134: Textile | C134: SRF | D134: 3241.55 | E134: 3248.75 | F134: 3205.75 | G134: 3169.95 | H134: 3126.95 | I134: 3284.55 | J134: 3327.55 | K134: 3363.35 | L134: 3291.75 | M134: 3212.95 | N134: 703250 | O134: 0.75%
A135: 125 | B135: Finance | C135: SRTRANSFIN | D135: 1116.05 | E135: 1110.63 | F135: 1093.77 | G135: 1071.48 | H135: 1054.62 | I135: 1132.92 | J135: 1149.78 | K135: 1172.07 | L135: 1127.5 | M135: 1088.35 | N135: 4180800 | O135: 0.00%
A136: 126 | B136: Pharma | C136: SUNPHARMA | D136: 440.55 | E136: 436.67 | F136: 431.88 | G136: 423.22 | H136: 418.43 | I136: 445.33 | J136: 450.12 | K136: 458.78 | L136: 441.45 | M136: 428 | N136: 65614850 | O136: -0.56%
A137: 127 | B137: Media | C137: SUNTV | D137: 445.80 | E137: 449.32 | F137: 438.63 | G137: 431.47 | H137: 420.78 | I137: 456.48 | J137: 467.17 | K137: 474.33 | L137: 460 | M137: 442.15 | N137: 3907000 | O137: 11.69%
A138: 128 | B138: Fertilisers | C138: TATACHEM | D138: 643.70 | E138: 647.70 | F138: 632.60 | G138: 621.50 | H138: 606.40 | I138: 658.80 | J138: 673.90 | K138: 685.00 | L138: 662.8 | M138: 636.6 | N138: 2577600 | O138: 9.40%
A139: 129 | B139: Technology | C139: TATAELXSI | D139: 870.55 | E139: 876.32 | F139: 849.53 | G139: 828.52 | H139: 801.73 | I139: 897.33 | J139: 924.12 | K139: 945.13 | L139: 903.1 | M139: 855.3 | N139: 1408200 | O139: 19.81%
A140: 130 | B140: FMCG | C140: TATAGLOBAL | D140: 312.40 | E140: 314.92 | F140: 302.78 | G140: 293.17 | H140: 281.03 | I140: 324.53 | J140: 336.67 | K140: 346.28 | L140: 327.05 | M140: 305.3 | N140: 10157400 | O140: 3.52%
A141: 131 | B141: Automobile | C141: TATAMOTORS | D141: 174.60 | E141: 176.58 | F141: 168.32 | G141: 162.03 | H141: 153.77 | I141: 182.87 | J141: 191.13 | K141: 197.42 | L141: 184.85 | M141: 170.3 | N141: 66822200 | O141: 0.56%
A142: 132 | B142: Automobile | C142: TATAMTRDVR | D142: 72.95 | E142: 73.80 | F142: 70.80 | G142: 68.65 | H142: 65.65 | I142: 75.95 | J142: 78.95 | K142: 81.10 | L142: 76.8 | M142: 71.65 | N142: 39599200 | O142: -0.68%
A143: 133 | B143: Power | C143: TATAPOWER | D143: 55.60 | E143: 55.67 | F143: 54.88 | G143: 54.17 | H143: 53.38 | I143: 56.38 | J143: 57.17 | K143: 57.88 | L143: 56.45 | M143: 54.95 | N143: 79092000 | O143: 2.59%
A144: 134 | B144: Metals | C144: TATASTEEL | D144: 444.10 | E144: 445.17 | F144: 434.93 | G144: 425.77 | H144: 415.53 | I144: 454.33 | J144: 464.57 | K144: 473.73 | L144: 455.4 | M144: 436 | N144: 24269391 | O144: 0.55%
A145: 135 | B145: Technology | C145: TCS | D145: 2167.00 | E145: 2174.35 | F145: 2145.20 | G145: 2123.40 | H145: 2094.25 | I145: 2196.15 | J145: 2225.30 | K145: 2247.10 | L145: 2203.5 | M145: 2152.55 | N145: 16775500 | O145: -1.70%
A146: 136 | B146: Technology | C146: TECHM | D146: 787.30 | E146: 788.05 | F146: 780.80 | G146: 774.30 | H146: 767.05 | I146: 794.55 | J146: 801.80 | K146: 808.30 | L146: 795.3 | M146: 781.55 | N146: 15645600 | O146: -1.91%
A147: 137 | B147: FMCG | C147: TITAN | D147: 1160.55 | E147: 1161.12 | F147: 1152.53 | G147: 1144.52 | H147: 1135.93 | I147: 1169.13 | J147: 1177.72 | K147: 1185.73 | L147: 1169.7 | M147: 1153.1 | N147: 10658250 | O147: 0.26%
A148: 138 | B148: Pharma | C148: TORNTPHARM | D148: 1826.60 | E148: 1832.95 | F148: 1814.45 | G148: 1802.30 | H148: 1783.80 | I148: 1845.10 | J148: 1863.60 | K148: 1875.75 | L148: 1851.45 | M148: 1820.8 | N148: 319500 | O148: 9.42%
A149: 139 | B149: Power | C149: TORNTPOWER | D149: 271.15 | E149: 271.38 | F149: 268.02 | G149: 264.88 | H149: 261.52 | I149: 274.52 | J149: 277.88 | K149: 281.02 | L149: 274.75 | M149: 268.25 | N149: 4671000 | O149: 3.11%
A150: 140 | B150: Automobile | C150: TVSMOTOR | D150: 445.30 | E150: 444.63 | F150: 441.27 | G150: 437.23 | H150: 433.87 | I150: 448.67 | J150: 452.03 | K150: 456.07 | L150: 448 | M150: 440.6 | N150: 7247100 | O150: 2.18%
A151: 141 | B151: FMCG | C151: UBL | D151: 1220.70 | E151: 1214.18 | F151: 1201.52 | G151: 1182.33 | H151: 1169.67 | I151: 1233.37 | J151: 1246.03 | K151: 1265.22 | L151: 1226.85 | M151: 1195 | N151: 1704500 | O151: 5.41%
A152: 142 | B152: Finance | C152: UJJIVAN | D152: 335.10 | E152: 334.55 | F152: 331.05 | G152: 327.00 | H152: 323.50 | I152: 338.60 | J152: 342.10 | K152: 346.15 | L152: 338.05 | M152: 330.5 | N152: 9308000 | O152: 1.59%
A153: 143 | B153: Cement | C153: ULTRACEMCO | D153: 4074.80 | E153: 4083.95 | F153: 4045.90 | G153: 4017.00 | H153: 3978.95 | I153: 4112.85 | J153: 4150.90 | K153: 4179.80 | L153: 4122 | M153: 4055.05 | N153: 2688000 | O153: 0.76%
A154: 144 | B154: Banking | C154: UNIONBANK | D154: 56.70 | E154: 56.90 | F154: 55.45 | G154: 54.20 | H154: 52.75 | I154: 58.15 | J154: 59.60 | K154: 60.85 | L154: 58.35 | M154: 55.65 | N154: 23331000 | O154: -5.66%
A155: 145 | B155: Fertilisers | C155: UPL | D155: 567.30 | E155: 566.90 | F155: 561.35 | G155: 555.40 | H155: 549.85 | I155: 572.85 | J155: 578.40 | K155: 584.35 | L155: 572.45 | M155: 560.95 | N155: 13718700 | O155: 0.41%
A156: 146 | B156: Metals | C156: VEDL | D156: 153.15 | E156: 152.80 | F156: 151.10 | G156: 149.05 | H156: 147.35 | I156: 154.85 | J156: 156.55 | K156: 158.60 | L156: 154.5 | M156: 150.75 | N156: 66695000 | O156: 0.42%
A157: 147 | B157: Capital_Goods | C157: VOLTAS | D157: 655.50 | E157: 660.23 | F157: 646.37 | G157: 637.23 | H157: 623.37 | I157: 669.37 | J157: 683.23 | K157: 692.37 | L157: 674.1 | M157: 651.1 | N157: 3925000 | O157: 13.64%
A158: 148 | B158: Technology | C158: WIPRO | D158: 248.40 | E158: 248.25 | F158: 246.55 | G158: 244.70 | H158: 243.00 | I158: 250.10 | J158: 251.80 | K158: 253.65 | L158: 249.95 | M158: 246.4 | N158: 23644800 | O158: -0.55%
A159: 149 | B159: Banking | C159: YESBANK | D159: 45.20 | E159: 45.33 | F159: 43.92 | G159: 42.63 | H159: 41.22 | I159: 46.62 | J159: 48.03 | K159: 49.32 | L159: 46.75 | M159: 44.05 | N159: 252102400 | O159: -0.33%
A160: 150 | B160: Media | C160: ZEEL | D160: 280.25 | E160: 279.25 | F160: 275.60 | G160: 270.95 | H160: 267.30 | I160: 283.90 | J160: 287.55 | K160: 292.20 | L160: 282.9 | M160: 274.6 | N160: 30242000 | O160: 0.12%
A161: 151
A178: Pivot Point: This is trigger point for intra day buy/sell based on the price range of the previous day
A179: As per the tool,the trader should take BUY position just above Pivot and keep the stop loss of pivot point and the first target would be Resistance 1(R1)
A180: If R1 is crossed then R2 becomes the next target with stop loss of at R1
A181: Similarly if price goes below pivot point then the trader should sell and keep a stop loss of pivot point and the first target would be S1
A182: If S1 is crossed then S2 becomes the next target with stop loss of at S1
A184: Disclaimer:
A185: This document has been prepared by the Retail Research Desk of Asit C Mehta
A186: Investment Intermediates Ltd. and is meant for use of the recipient only
A187: and is not for circulation. This document is not to be reported or
A188: copied or made available to others. It should not be considered to be
A189: taken as an offer to sell or a solicitation to buy any security. The
A190: information contained herein is from sources believed reliable. We do
A191: not represent that it is accurate or complete and it should not be
A192: relied upon as such. We may from time to time have positions in and buy
A193: and sell securities referred to herein

Sheet Cash Intra
M5: Back to Main Page
A6: FOR INTRA DAY TRADING | K6: =Main!B10 -> 2019-12-19
A8: Sr.no | B8: Scrip | C8: CLOSE RATE | D8: Pivot Point | E8: Supports | H8: Resistances
C9: Point | E9: S1 | F9: S2 | G9: S3 | H9: R1 | I9: R2 | J9: R3 | K9: HIGH | L9: LOW | M9: Total Trade Quanity in Lakhs
A10: 1 | B10: Nifty 50 | C10: 12221.65 | D10: 12207.60 | E10: 12177.50 | F10: 12133.35 | G10: 12103.25 | H10: 12251.75 | I10: 12281.85 | J10: 12326.00 | K10: 12237.7 | L10: 12163.45
A11: 2 | B11: Nifty Bank | C11: 32244.25 | D11: 32185.07 | E11: 32076.48 | F11: 31908.72 | G11: 31800.13 | H11: 32352.83 | I11: 32461.42 | J11: 32629.18 | K11: 32293.65 | L11: 32017.3
A12: 3 | B12: Nifty CPSE | C12: 1877.8 | D12: 1875.80 | E12: 1869.55 | F12: 1861.30 | G12: 1855.05 | H12: 1884.05 | I12: 1890.30 | J12: 1898.55 | K12: 1882.05 | L12: 1867.55
A13: 4 | B13: Nifty Infra | C13: 3263.45 | D13: 3264.55 | E13: 3251.70 | F13: 3239.95 | G13: 3227.10 | H13: 3276.30 | I13: 3289.15 | J13: 3300.90 | K13: 3277.4 | L13: 3252.8
A14: 5 | B14: Nifty IT | C14: 15710.65 | D14: 15731.87 | E14: 15627.93 | F14: 15545.22 | G14: 15441.28 | H14: 15814.58 | I14: 15918.52 | J14: 16001.23 | K14: 15835.8 | L14: 15649.15
A15: 6 | B15: Nifty PSE | C15: 3152.9 | D15: 3155.72 | E15: 3139.88 | F15: 3126.87 | G15: 3111.03 | H15: 3168.73 | I15: 3184.57 | J15: 3197.58 | K15: 3171.55 | L15: 3142.7
A16: 7 | B16: Nifty Midcap 50 | C16: 4620.8 | D16: 4623.35 | E16: 4595.65 | F16: 4570.50 | G16: 4542.80 | H16: 4648.50 | I16: 4676.20 | J16: 4701.35 | K16: 4651.05 | L16: 4598.2
A17: 8 | B17: ACC | C17: 1450.4 | D17: 1453.18 | E17: 1435.97 | F17: 1421.53 | G17: 1404.32 | H17: 1467.62 | I17: 1484.83 | J17: 1499.27 | K17: 1470.4 | L17: 1438.75 | M17: 4.8128
A18: 9 | B18: AUBANK | C18: 794.2 | D18: 791.07 | E18: 784.13 | F18: 774.07 | G18: 767.13 | H18: 801.13 | I18: 808.07 | J18: 818.13 | K18: 798 | L18: 781 | M18: 2.87842
A19: 10 | B19: ADANIPORTS | C19: 374.5 | D19: 373.13 | E19: 370.47 | F19: 366.43 | G19: 363.77 | H19: 377.17 | I19: 379.83 | J19: 383.87 | K19: 375.8 | L19: 369.1 | M19: 39.60881
A20: 11 | B20: ADANIPOWER | C20: 61.25 | D20: 61.25 | E20: 60.25 | F20: 59.25 | G20: 58.25 | H20: 62.25 | I20: 63.25 | J20: 64.25 | K20: 62.25 | L20: 60.25 | M20: 54.25898
A21: 12 | B21: ABCAPITAL | C21: 97.55 | D21: 98.08 | E21: 96.27 | F21: 94.98 | G21: 93.17 | H21: 99.37 | I21: 101.18 | J21: 102.47 | K21: 99.9 | L21: 96.8 | M21: 11.45998
A22: 13 | B22: ABFRL | C22: 239.15 | D22: 237.45 | E22: 235.00 | F22: 230.85 | G22: 228.40 | H22: 241.60 | I22: 244.05 | J22: 248.20 | K22: 239.9 | L22: 233.3 | M22: 5.57471
A23: 14 | B23: AJANTPHARM | C23: 969.5 | D23: 977.03 | E23: 955.07 | F23: 940.63 | G23: 918.67 | H23: 991.47 | I23: 1013.43 | J23: 1027.87 | K23: 999 | L23: 962.6 | M23: 0.7944
A24: 15 | B24: ALKEM | C24: 2095.4 | D24: 2086.77 | E24: 2073.63 | F24: 2051.87 | G24: 2038.73 | H24: 2108.53 | I24: 2121.67 | J24: 2143.43 | K24: 2099.9 | L24: 2065 | M24: 0.19953
A25: 16 | B25: ALBK | C25: 18.8 | D25: 18.90 | E25: 18.65 | F25: 18.50 | G25: 18.25 | H25: 19.05 | I25: 19.30 | J25: 19.45 | K25: 19.15 | L25: 18.75 | M25: 14.09955
A26: 17 | B26: AMARAJABAT | C26: 740.25 | D26: 741.57 | E26: 736.13 | F26: 732.02 | G26: 726.58 | H26: 745.68 | I26: 751.12 | J26: 755.23 | K26: 747 | L26: 737.45 | M26: 5.28519
A27: 18 | B27: AMBUJACEM | C27: 196.55 | D27: 196.85 | E27: 193.90 | F27: 191.25 | G27: 188.30 | H27: 199.50 | I27: 202.45 | J27: 205.10 | K27: 199.8 | L27: 194.2 | M27: 23.41481
A28: 19 | B28: APOLLOHOSP | C28: 1384.85 | D28: 1383.23 | E28: 1371.62 | F28: 1358.38 | G28: 1346.77 | H28: 1396.47 | I28: 1408.08 | J28: 1421.32 | K28: 1394.85 | L28: 1370 | M28: 12.44195
A29: 20 | B29: APOLLOTYRE | C29: 164.55 | D29: 164.87 | E29: 163.23 | F29: 161.92 | G29: 160.28 | H29: 166.18 | I29: 167.82 | J29: 169.13 | K29: 166.5 | L29: 163.55 | M29: 20.40202
A30: 21 | B30: ASHOKLEY | C30: 79.9 | D30: 80.10 | E30: 78.90 | F30: 77.90 | G30: 76.70 | H30: 81.10 | I30: 82.30 | J30: 83.30 | K30: 81.3 | L30: 79.1 | M30: 128.92036
A31: 22 | B31: ASIANPAINT | C31: 1778.45 | D31: 1764.70 | E31: 1747.40 | F31: 1716.35 | G31: 1699.05 | H31: 1795.75 | I31: 1813.05 | J31: 1844.10 | K31: 1782 | L31: 1733.65 | M31: 14.76506
A32: 23 | B32: AUROPHARMA | C32: 454 | D32: 451.90 | E32: 448.35 | F32: 442.70 | G32: 439.15 | H32: 457.55 | I32: 461.10 | J32: 466.75 | K32: 455.45 | L32: 446.25 | M32: 27.62551
A33: 24 | B33: DMART | C33: 1913.5 | D33: 1906.80 | E33: 1871.70 | F33: 1829.90 | G33: 1794.80 | H33: 1948.60 | I33: 1983.70 | J33: 2025.50 | K33: 1941.9 | L33: 1865 | M33: 14.30492
A34: 25 | B34: AXISBANK | C34: 741.85 | D34: 742.67 | E34: 736.78 | F34: 731.72 | G34: 725.83 | H34: 747.73 | I34: 753.62 | J34: 758.68 | K34: 748.55 | L34: 737.6 | M34: 66.7842
A35: 26 | B35: BAJAJ-AUTO | C35: 3213.65 | D35: 3208.62 | E35: 3197.23 | F35: 3180.82 | G35: 3169.43 | H35: 3225.03 | I35: 3236.42 | J35: 3252.83 | K35: 3220 | L35: 3192.2 | M35: 3.15871
A36: 27 | B36: BAJFINANCE | C36: 4119.35 | D36: 4126.42 | E36: 4093.98 | F36: 4068.62 | G36: 4036.18 | H36: 4151.78 | I36: 4184.22 | J36: 4209.58 | K36: 4158.85 | L36: 4101.05 | M36: 11.09775
A37: 28 | B37: BAJAJFINSV | C37: 9362.6 | D37: 9370.08 | E37: 9319.17 | F37: 9275.73 | G37: 9224.82 | H37: 9413.52 | I37: 9464.43 | J37: 9507.87 | K37: 9421 | L37: 9326.65 | M37: 2.28424
A38: 29 | B38: BAJAJHLDNG | C38: 3282.55 | D38: 3286.30 | E38: 3273.75 | F38: 3264.95 | G38: 3252.40 | H38: 3295.10 | I38: 3307.65 | J38: 3316.45 | K38: 3298.85 | L38: 3277.5 | M38: 0.54838
A39: 30 | B39: BALKRISIND | C39: 949.4 | D39: 954.57 | E39: 940.63 | F39: 931.87 | G39: 917.93 | H39: 963.33 | I39: 977.27 | J39: 986.03 | K39: 968.5 | L39: 945.8 | M39: 9.26624
A40: 31 | B40: BANDHANBNK | C40: 500 | D40: 487.13 | E40: 469.87 | F40: 439.73 | G40: 422.47 | H40: 517.27 | I40: 534.53 | J40: 564.67 | K40: 504.4 | L40: 457 | M40: 92.35981
A41: 32 | B41: BANKBARODA | C41: 98.9 | D41: 99.67 | E41: 97.73 | F41: 96.57 | G41: 94.63 | H41: 100.83 | I41: 102.77 | J41: 103.93 | K41: 101.6 | L41: 98.5 | M41: 270.6715
A42: 33 | B42: BANKINDIA | C42: 71.35 | D42: 71.43 | E42: 69.32 | F42: 67.28 | G42: 65.17 | H42: 73.47 | I42: 75.58 | J42: 77.62 | K42: 73.55 | L42: 69.4 | M42: 24.78131
A43: 34 | B43: BATAINDIA | C43: 1662.95 | D43: 1668.25 | E43: 1648.60 | F43: 1634.25 | G43: 1614.60 | H43: 1682.60 | I43: 1702.25 | J43: 1716.60 | K43: 1687.9 | L43: 1653.9 | M43: 3.66968
A44: 35 | B44: BERGEPAINT | C44: 500.15 | D44: 496.93 | E44: 491.87 | F44: 483.58 | G44: 478.52 | H44: 505.22 | I44: 510.28 | J44: 518.57 | K44: 502 | L44: 488.65 | M44: 16.63753
A45: 36 | B45: BEL | C45: 100.45 | D45: 100.28 | E45: 99.82 | F45: 99.18 | G45: 98.72 | H45: 100.92 | I45: 101.38 | J45: 102.02 | K45: 100.75 | L45: 99.65 | M45: 44.68054
A46: 37 | B46: BHARATFORG | C46: 496.4 | D46: 492.48 | E46: 487.12 | F46: 477.83 | G46: 472.47 | H46: 501.77 | I46: 507.13 | J46: 516.42 | K46: 497.85 | L46: 483.2 | M46: 22.22895
A47: 38 | B47: BHEL | C47: 45.25 | D47: 45.52 | E47: 44.63 | F47: 44.02 | G47: 43.13 | H47: 46.13 | I47: 47.02 | J47: 47.63 | K47: 46.4 | L47: 44.9 | M47: 145.98223
A48: 39 | B48: BPCL | C48: 489.25 | D48: 491.87 | E48: 485.48 | F48: 481.72 | G48: 475.33 | H48: 495.63 | I48: 502.02 | J48: 505.78 | K48: 498.25 | L48: 488.1 | M48: 46.57085
A49: 40 | B49: BHARTIARTL | C49: 438.3 | D49: 439.85 | E49: 432.60 | F49: 426.90 | G49: 419.65 | H49: 445.55 | I49: 452.80 | J49: 458.50 | K49: 447.1 | L49: 434.15 | M49: 176.54537
A50: 41 | B50: INFRATEL | C50: 250.3 | D50: 249.90 | E50: 246.80 | F50: 243.30 | G50: 240.20 | H50: 253.40 | I50: 256.50 | J50: 260.00 | K50: 253 | L50: 246.4 | M50: 66.87638
A51: 42 | B51: BIOCON | C51: 294.05 | D51: 292.73 | E51: 289.82 | F51: 285.58 | G51: 282.67 | H51: 296.97 | I51: 299.88 | J51: 304.12 | K51: 295.65 | L51: 288.5 | M51: 27.19997
A52: 43 | B52: BBTC | C52: 1027.35 | D52: 1029.08 | E52: 1018.27 | F52: 1009.18 | G52: 998.37 | H52: 1038.17 | I52: 1048.98 | J52: 1058.07 | K52: 1039.9 | L52: 1020 | M52: 0.71376
A53: 44 | B53: BOSCHLTD | C53: 15200.55 | D53: 15192.20 | E53: 15119.40 | F53: 15038.25 | G53: 14965.45 | H53: 15273.35 | I53: 15346.15 | J53: 15427.30 | K53: 15265 | L53: 15111.05 | M53: 0.15267
A54: 45 | B54: BRITANNIA | C54: 3099.2 | D54: 3091.23 | E54: 3061.32 | F54: 3023.43 | G54: 2993.52 | H54: 3129.12 | I54: 3159.03 | J54: 3196.92 | K54: 3121.15 | L54: 3053.35 | M54: 4.05982
A55: 46 | B55: CESC | C55: 737.05 | D55: 739.47 | E55: 730.93 | F55: 724.82 | G55: 716.28 | H55: 745.58 | I55: 754.12 | J55: 760.23 | K55: 748 | L55: 733.35 | M55: 1.94321
A56: 47 | B56: CADILAHC | C56: 258.9 | D56: 259.18 | E56: 257.02 | F56: 255.13 | G56: 252.97 | H56: 261.07 | I56: 263.23 | J56: 265.12 | K56: 261.35 | L56: 257.3 | M56: 7.47292
A57: 48 | B57: CANBK | C57: 223.25 | D57: 224.57 | E57: 219.73 | F57: 216.22 | G57: 211.38 | H57: 228.08 | I57: 232.92 | J57: 236.43 | K57: 229.4 | L57: 221.05 | M57: 72.91009
A58: 49 | B58: CASTROLIND | C58: 129.7 | D58: 130.23 | E58: 127.97 | F58: 126.23 | G58: 123.97 | H58: 131.97 | I58: 134.23 | J58: 135.97 | K58: 132.5 | L58: 128.5 | M58: 14.81215
A59: 50 | B59: CHOLAFIN | C59: 308.85 | D59: 310.30 | E59: 306.65 | F59: 304.45 | G59: 300.80 | H59: 312.50 | I59: 316.15 | J59: 318.35 | K59: 313.95 | L59: 308.1 | M59: 8.21108
A60: 51 | B60: CIPLA | C60: 467.8 | D60: 466.18 | E60: 463.12 | F60: 458.43 | G60: 455.37 | H60: 470.87 | I60: 473.93 | J60: 478.62 | K60: 469.25 | L60: 461.5 | M60: 17.05929
A61: 52 | B61: CUB | C61: 232.7 | D61: 232.15 | E61: 230.80 | F61: 228.90 | G61: 227.55 | H61: 234.05 | I61: 235.40 | J61: 237.30 | K61: 233.5 | L61: 230.25 | M61: 4.35577
A62: 53 | B62: COALINDIA | C62: 197.75 | D62: 197.02 | E62: 195.53 | F62: 193.32 | G62: 191.83 | H62: 199.23 | I62: 200.72 | J62: 202.93 | K62: 198.5 | L62: 194.8 | M62: 36.23918
A63: 54 | B63: COLPAL | C63: 1482.15 | D63: 1480.20 | E63: 1468.95 | F63: 1455.75 | G63: 1444.50 | H63: 1493.40 | I63: 1504.65 | J63: 1517.85 | K63: 1491.45 | L63: 1467 | M63: 6.02276
A64: 55 | B64: CONCOR | C64: 573.35 | D64: 574.10 | E64: 570.25 | F64: 567.15 | G64: 563.30 | H64: 577.20 | I64: 581.05 | J64: 584.15 | K64: 577.95 | L64: 571 | M64: 9.37922
A65: 56 | B65: COROMANDEL | C65: 515.15 | D65: 515.33 | E65: 505.87 | F65: 496.58 | G65: 487.12 | H65: 524.62 | I65: 534.08 | J65: 543.37 | K65: 524.8 | L65: 506.05 | M65: 2.10269
A66: 57 | B66: CROMPTON | C66: 245.35 | D66: 244.92 | E66: 242.93 | F66: 240.52 | G66: 238.53 | H66: 247.33 | I66: 249.32 | J66: 251.73 | K66: 246.9 | L66: 242.5 | M66: 32.90419
A67: 58 | B67: CUMMINSIND | C67: 561.3 | D67: 560.92 | E67: 556.88 | F67: 552.47 | G67: 548.43 | H67: 565.33 | I67: 569.37 | J67: 573.78 | K67: 564.95 | L67: 556.5 | M67: 4.14344
A68: 59 | B68: DLF | C68: 227.8 | D68: 227.32 | E68: 224.68 | F68: 221.57 | G68: 218.93 | H68: 230.43 | I68: 233.07 | J68: 236.18 | K68: 229.95 | L68: 224.2 | M68: 75.30021
A69: 60 | B69: DABUR | C69: 462.8 | D69: 461.40 | E69: 458.60 | F69: 454.40 | G69: 451.60 | H69: 465.60 | I69: 468.40 | J69: 472.60 | K69: 464.2 | L69: 457.2 | M69: 11.78799
A70: 61 | B70: DALBHARAT | C70: 809.45 | D70: 815.60 | E70: 798.85 | F70: 788.25 | G70: 771.50 | H70: 826.20 | I70: 842.95 | J70: 853.55 | K70: 832.35 | L70: 805 | M70: 0.70326
A71: 62 | B71: DIVISLAB | C71: 1837.85 | D71: 1834.57 | E71: 1824.58 | F71: 1811.32 | G71: 1801.33 | H71: 1847.83 | I71: 1857.82 | J71: 1871.08 | K71: 1844.55 | L71: 1821.3 | M71: 4.61114
A72: 63 | B72: DRREDDY | C72: 2873.45 | D72: 2858.90 | E72: 2841.55 | F72: 2809.65 | G72: 2792.30 | H72: 2890.80 | I72: 2908.15 | J72: 2940.05 | K72: 2876.25 | L72: 2827 | M72: 5.31232
A73: 64 | B73: EDELWEISS | C73: 115.9 | D73: 116.23 | E73: 114.47 | F73: 113.03 | G73: 111.27 | H73: 117.67 | I73: 119.43 | J73: 120.87 | K73: 118 | L73: 114.8 | M73: 7.72267
A74: 65 | B74: EICHERMOT | C74: 21735.85 | D74: 21708.10 | E74: 21443.75 | F74: 21151.65 | G74: 20887.30 | H74: 22000.20 | I74: 22264.55 | J74: 22556.65 | K74: 21972.45 | L74: 21416 | M74: 1.01443
A75: 66 | B75: EMAMILTD | C75: 304.3 | D75: 304.28 | E75: 301.47 | F75: 298.63 | G75: 295.82 | H75: 307.12 | I75: 309.93 | J75: 312.77 | K75: 307.1 | L75: 301.45 | M75: 1.90286
A76: 67 | B76: ENDURANCE | C76: 1050.5 | D76: 1054.30 | E76: 1035.60 | F76: 1020.70 | G76: 1002.00 | H76: 1069.20 | I76: 1087.90 | J76: 1102.80 | K76: 1073 | L76: 1039.4 | M76: 0.25448
A77: 68 | B77: ENGINERSIN | C77: 101.8 | D77: 102.30 | E77: 101.00 | F77: 100.20 | G77: 98.90 | H77: 103.10 | I77: 104.40 | J77: 105.20 | K77: 103.6 | L77: 101.5 | M77: 5.567
A78: 69 | B78: ESCORTS | C78: 611.4 | D78: 612.18 | E78: 606.42 | F78: 601.43 | G78: 595.67 | H78: 617.17 | I78: 622.93 | J78: 627.92 | K78: 617.95 | L78: 607.2 | M78: 12.57704
A79: 70 | B79: EXIDEIND | C79: 183.2 | D79: 183.60 | E79: 181.80 | F79: 180.40 | G79: 178.60 | H79: 185.00 | I79: 186.80 | J79: 188.20 | K79: 185.4 | L79: 182.2 | M79: 27.87401
A80: 71 | B80: FEDERALBNK | C80: 86 | D80: 86.02 | E80: 85.23 | F80: 84.47 | G80: 83.68 | H80: 86.78 | I80: 87.57 | J80: 88.33 | K80: 86.8 | L80: 85.25 | M80: 68.70094
A81: 72 | B81: FCONSUMER | C81: 23.8 | D81: 23.87 | E81: 23.58 | F81: 23.37 | G81: 23.08 | H81: 24.08 | I81: 24.37 | J81: 24.58 | K81: 24.15 | L81: 23.65 | M81: 3.58002
A82: 73 | B82: FRETAIL | C82: 342.3 | D82: 339.93 | E82: 335.37 | F82: 328.43 | G82: 323.87 | H82: 346.87 | I82: 351.43 | J82: 358.37 | K82: 344.5 | L82: 333 | M82: 3.01925
A83: 74 | B83: GAIL | C83: 117.35 | D83: 118.08 | E83: 115.87 | F83: 114.38 | G83: 112.17 | H83: 119.57 | I83: 121.78 | J83: 123.27 | K83: 120.3 | L83: 116.6 | M83: 94.45724
A84: 75 | B84: GMRINFRA | C84: 21.25 | D84: 21.42 | E84: 20.88 | F84: 20.52 | G84: 19.98 | H84: 21.78 | I84: 22.32 | J84: 22.68 | K84: 21.95 | L84: 21.05 | M84: 185.9856
A85: 76 | B85: GICRE | C85: 236.25 | D85: 237.27 | E85: 233.53 | F85: 230.82 | G85: 227.08 | H85: 239.98 | I85: 243.72 | J85: 246.43 | K85: 241 | L85: 234.55 | M85: 5.67214
A86: 77 | B86: GLENMARK | C86: 353.8 | D86: 351.02 | E86: 345.88 | F86: 337.97 | G86: 332.83 | H86: 358.93 | I86: 364.07 | J86: 371.98 | K86: 356.15 | L86: 343.1 | M86: 23.8769
A87: 78 | B87: GODREJAGRO | C87: 499.65 | D87: 498.55 | E87: 496.10 | F87: 492.55 | G87: 490.10 | H87: 502.10 | I87: 504.55 | J87: 508.10 | K87: 501 | L87: 495 | M87: 0.18703
A88: 79 | B88: GODREJCP | C88: 680.3 | D88: 680.10 | E88: 675.20 | F88: 670.10 | G88: 665.20 | H88: 685.20 | I88: 690.10 | J88: 695.20 | K88: 685 | L88: 675 | M88: 5.12282
A89: 80 | B89: GODREJIND | C89: 425.15 | D89: 427.03 | E89: 417.12 | F89: 409.08 | G89: 399.17 | H89: 435.07 | I89: 444.98 | J89: 453.02 | K89: 436.95 | L89: 419 | M89: 0.72827
A90: 81 | B90: GODREJPROP | C90: 924.35 | D90: 923.97 | E90: 913.03 | F90: 901.72 | G90: 890.78 | H90: 935.28 | I90: 946.22 | J90: 957.53 | K90: 934.9 | L90: 912.65 | M90: 2.39156
A91: 82 | B91: GRAPHITE | C91: 309.25 | D91: 309.13 | E91: 305.37 | F91: 301.48 | G91: 297.72 | H91: 313.02 | I91: 316.78 | J91: 320.67 | K91: 312.9 | L91: 305.25 | M91: 15.81257
A92: 83 | B92: GRASIM | C92: 754.2 | D92: 760.70 | E92: 745.00 | F92: 735.80 | G92: 720.10 | H92: 769.90 | I92: 785.60 | J92: 794.80 | K92: 776.4 | L92: 751.5 | M92: 16.74043
A93: 84 | B93: GSPL | C93: 217.35 | D93: 217.25 | E93: 216.30 | F93: 215.25 | G93: 214.30 | H93: 218.30 | I93: 219.25 | J93: 220.30 | K93: 218.2 | L93: 216.2 | M93: 1.38337
A94: 85 | B94: HEG | C94: 1117.6 | D94: 1119.75 | E94: 1099.50 | F94: 1081.40 | G94: 1061.15 | H94: 1137.85 | I94: 1158.10 | J94: 1176.20 | K94: 1140 | L94: 1101.65 | M94: 3.73514
A95: 86 | B95: HCLTECH | C95: 564.7 | D95: 563.55 | E95: 560.15 | F95: 555.60 | G95: 552.20 | H95: 568.10 | I95: 571.50 | J95: 576.05 | K95: 566.95 | L95: 559 | M95: 46.18387
A96: 87 | B96: HDFCAMC | C96: 3145.6 | D96: 3145.33 | E96: 3125.77 | F96: 3105.93 | G96: 3086.37 | H96: 3165.17 | I96: 3184.73 | J96: 3204.57 | K96: 3164.9 | L96: 3125.5 | M96: 4.3795
A97: 88 | B97: HDFCBANK | C97: 1292.35 | D97: 1288.33 | E97: 1277.67 | F97: 1262.98 | G97: 1252.32 | H97: 1303.02 | I97: 1313.68 | J97: 1328.37 | K97: 1299 | L97: 1273.65 | M97: 87.23586
A98: 89 | B98: HDFCLIFE | C98: 601.5 | D98: 598.17 | E98: 591.53 | F98: 581.57 | G98: 574.93 | H98: 608.13 | I98: 614.77 | J98: 624.73 | K98: 604.8 | L98: 588.2 | M98: 30.92926
A99: 90 | B99: HAVELLS | C99: 652.05 | D99: 647.70 | E99: 640.40 | F99: 628.75 | G99: 621.45 | H99: 659.35 | I99: 666.65 | J99: 678.30 | K99: 655 | L99: 636.05 | M99: 13.25539
A100: 91 | B100: HEROMOTOCO | C100: 2311.95 | D100: 2307.33 | E100: 2294.67 | F100: 2277.38 | G100: 2264.72 | H100: 2324.62 | I100: 2337.28 | J100: 2354.57 | K100: 2320 | L100: 2290.05 | M100: 9.52321
A101: 92 | B101: HEXAWARE | C101: 338.2 | D101: 340.18 | E101: 335.37 | F101: 332.53 | G101: 327.72 | H101: 343.02 | I101: 347.83 | J101: 350.67 | K101: 345 | L101: 337.35 | M101: 6.14003
A102: 93 | B102: HINDALCO | C102: 213.65 | D102: 213.78 | E102: 212.07 | F102: 210.48 | G102: 208.77 | H102: 215.37 | I102: 217.08 | J102: 218.67 | K102: 215.5 | L102: 212.2 | M102: 117.21371
A103: 94 | B103: HINDPETRO | C103: 263.8 | D103: 263.83 | E103: 262.17 | F103: 260.53 | G103: 258.87 | H103: 265.47 | I103: 267.13 | J103: 268.77 | K103: 265.5 | L103: 262.2 | M103: 28.66222
A104: 95 | B104: HINDUNILVR | C104: 1928.55 | D104: 1934.17 | E104: 1901.73 | F104: 1874.92 | G104: 1842.48 | H104: 1960.98 | I104: 1993.42 | J104: 2020.23 | K104: 1966.6 | L104: 1907.35 | M104: 39.86106
A105: 96 | B105: HINDZINC | C105: 207.3 | D105: 208.22 | E105: 206.18 | F105: 205.07 | G105: 203.03 | H105: 209.33 | I105: 211.37 | J105: 212.48 | K105: 210.25 | L105: 207.1 | M105: 6.66319
A106: 97 | B106: HUDCO | C106: 36.1 | D106: 36.28 | E106: 35.67 | F106: 35.23 | G106: 34.62 | H106: 36.72 | I106: 37.33 | J106: 37.77 | K106: 36.9 | L106: 35.85 | M106: 3.99829
A107: 98 | B107: HDFC | C107: 2445.15 | D107: 2440.08 | E107: 2420.87 | F107: 2396.58 | G107: 2377.37 | H107: 2464.37 | I107: 2483.58 | J107: 2507.87 | K107: 2459.3 | L107: 2415.8 | M107: 51.00244
A108: 99 | B108: ICICIBANK | C108: 541.4 | D108: 540.08 | E108: 537.27 | F108: 533.13 | G108: 530.32 | H108: 544.22 | I108: 547.03 | J108: 551.17 | K108: 542.9 | L108: 535.95 | M108: 129.06168
A109: 100 | B109: ICICIGI | C109: 1341.95 | D109: 1342.43 | E109: 1333.97 | F109: 1325.98 | G109: 1317.52 | H109: 1350.42 | I109: 1358.88 | J109: 1366.87 | K109: 1350.9 | L109: 1334.45 | M109: 2.65905
A110: 101 | B110: ICICIPRULI | C110: 496.8 | D110: 496.05 | E110: 493.45 | F110: 490.10 | G110: 487.50 | H110: 499.40 | I110: 502.00 | J110: 505.35 | K110: 498.65 | L110: 492.7 | M110: 13.9102
A111: 102 | B111: IDBI | C111: 37 | D111: 37.23 | E111: 36.57 | F111: 36.13 | G111: 35.47 | H111: 37.67 | I111: 38.33 | J111: 38.77 | K111: 37.9 | L111: 36.8 | M111: 27.66225
A112: 103 | B112: IDFCFIRSTB | C112: 42.6 | D112: 42.67 | E112: 42.33 | F112: 42.07 | G112: 41.73 | H112: 42.93 | I112: 43.27 | J112: 43.53 | K112: 43 | L112: 42.4 | M112: 82.9721
A113: 104 | B113: ITC | C113: 245.15 | D113: 244.08 | E113: 240.82 | F113: 236.48 | G113: 233.22 | H113: 248.42 | I113: 251.68 | J113: 256.02 | K113: 247.35 | L113: 239.75 | M113: 171.34732
A114: 105 | B114: IBULHSGFIN | C114: 302.25 | D114: 302.72 | E114: 297.03 | F114: 291.82 | G114: 286.13 | H114: 307.93 | I114: 313.62 | J114: 318.83 | K114: 308.4 | L114: 297.5 | M114: 250.74944
A115: 106 | B115: IBVENTURES | C115: 163.05 | D115: 164.83 | E115: 160.12 | F115: 157.18 | G115: 152.47 | H115: 167.77 | I115: 172.48 | J115: 175.42 | K115: 169.55 | L115: 161.9 | M115: 21.75513
A116: 107 | B116: INDIANB | C116: 109.95 | D116: 109.62 | E116: 108.43 | F116: 106.92 | G116: 105.73 | H116: 111.13 | I116: 112.32 | J116: 113.83 | K116: 110.8 | L116: 108.1 | M116: 17.23215
A117: 108 | B117: INDHOTEL | C117: 145.2 | D117: 146.55 | E117: 142.95 | F117: 140.70 | G117: 137.10 | H117: 148.80 | I117: 152.40 | J117: 154.65 | K117: 150.15 | L117: 144.3 | M117: 16.66489
A118: 109 | B118: IOC | C118: 126.05 | D118: 125.65 | E118: 124.95 | F118: 123.85 | G118: 123.15 | H118: 126.75 | I118: 127.45 | J118: 128.55 | K118: 126.35 | L118: 124.55 | M118: 46.4566
A119: 110 | B119: IGL | C119: 430.85 | D119: 431.30 | E119: 426.20 | F119: 421.55 | G119: 416.45 | H119: 435.95 | I119: 441.05 | J119: 445.70 | K119: 436.4 | L119: 426.65 | M119: 23.375
A120: 111 | B120: INDUSINDBK | C120: 1500.8 | D120: 1498.27 | E120: 1492.53 | F120: 1484.27 | G120: 1478.53 | H120: 1506.53 | I120: 1512.27 | J120: 1520.53 | K120: 1504 | L120: 1490 | M120: 25.73443
A121: 112 | B121: NAUKRI | C121: 2629.8 | D121: 2618.88 | E121: 2595.92 | F121: 2562.03 | G121: 2539.07 | H121: 2652.77 | I121: 2675.73 | J121: 2709.62 | K121: 2641.85 | L121: 2585 | M121: 2.17623
A122: 113 | B122: INFY | C122: 732.45 | D122: 730.83 | E122: 724.37 | F122: 716.28 | G122: 709.82 | H122: 738.92 | I122: 745.38 | J122: 753.47 | K122: 737.3 | L122: 722.75 | M122: 122.15295
A123: 114 | B123: INDIGO | C123: 1309.25 | D123: 1307.25 | E123: 1294.50 | F123: 1279.75 | G123: 1267.00 | H123: 1322.00 | I123: 1334.75 | J123: 1349.50 | K123: 1320 | L123: 1292.5 | M123: 8.95588
A124: 115 | B124: IPCALAB | C124: 1136.25 | D124: 1137.78 | E124: 1123.37 | F124: 1110.48 | G124: 1096.07 | H124: 1150.67 | I124: 1165.08 | J124: 1177.97 | K124: 1152.2 | L124: 1124.9 | M124: 4.07617
A125: 116 | B125: JSWENERGY | C125: 69.9 | D125: 70.40 | E125: 69.00 | F125: 68.10 | G125: 66.70 | H125: 71.30 | I125: 72.70 | J125: 73.60 | K125: 71.8 | L125: 69.5 | M125: 9.79239
A126: 117 | B126: JSWSTEEL | C126: 264.4 | D126: 262.35 | E126: 258.35 | F126: 252.30 | G126: 248.30 | H126: 268.40 | I126: 272.40 | J126: 278.45 | K126: 266.35 | L126: 256.3 | M126: 134.85427
A127: 118 | B127: JINDALSTEL | C127: 146.05 | D127: 146.03 | E127: 143.37 | F127: 140.68 | G127: 138.02 | H127: 148.72 | I127: 151.38 | J127: 154.07 | K127: 148.7 | L127: 143.35 | M127: 293.51742
A128: 119 | B128: JUBLFOOD | C128: 1573.6 | D128: 1578.05 | E128: 1562.55 | F128: 1551.50 | G128: 1536.00 | H128: 1589.10 | I128: 1604.60 | J128: 1615.65 | K128: 1593.55 | L128: 1567 | M128: 6.57931
A129: 120 | B129: JUBILANT | C129: 543.15 | D129: 544.75 | E129: 538.50 | F129: 533.85 | G129: 527.60 | H129: 549.40 | I129: 555.65 | J129: 560.30 | K129: 551 | L129: 540.1 | M129: 0.95714
A130: 121 | B130: KOTAKBANK | C130: 1724.35 | D130: 1718.87 | E130: 1711.78 | F130: 1699.22 | G130: 1692.13 | H130: 1731.43 | I130: 1738.52 | J130: 1751.08 | K130: 1725.95 | L130: 1706.3 | M130: 45.92668
A131: 122 | B131: L&TFH | C131: 116.45 | D131: 116.93 | E131: 115.27 | F131: 114.08 | G131: 112.42 | H131: 118.12 | I131: 119.78 | J131: 120.97 | K131: 118.6 | L131: 115.75 | M131: 75.60607
A132: 123 | B132: LTTS | C132: 1498.15 | D132: 1500.72 | E132: 1487.48 | F132: 1476.82 | G132: 1463.58 | H132: 1511.38 | I132: 1524.62 | J132: 1535.28 | K132: 1513.95 | L132: 1490.05 | M132: 0.87798
A133: 124 | B133: LICHSGFIN | C133: 442.25 | D133: 443.18 | E133: 436.62 | F133: 430.98 | G133: 424.42 | H133: 448.82 | I133: 455.38 | J133: 461.02 | K133: 449.75 | L133: 437.55 | M133: 36.91867
A134: 125 | B134: LTI | C134: 1649.1 | D134: 1650.25 | E134: 1635.35 | F134: 1621.60 | G134: 1606.70 | H134: 1664.00 | I134: 1678.90 | J134: 1692.65 | K134: 1665.15 | L134: 1636.5 | M134: 1.31624
A135: 126 | B135: LT | C135: 1319.35 | D135: 1319.97 | E135: 1313.98 | F135: 1308.62 | G135: 1302.63 | H135: 1325.33 | I135: 1331.32 | J135: 1336.68 | K135: 1325.95 | L135: 1314.6 | M135: 29.61222
A136: 127 | B136: LUPIN | C136: 766.35 | D136: 762.68 | E136: 757.47 | F136: 748.58 | G136: 743.37 | H136: 771.57 | I136: 776.78 | J136: 785.67 | K136: 767.9 | L136: 753.8 | M136: 12.4709
A137: 128 | B137: MRF | C137: 64126.9 | D137: 64352.28 | E137: 63774.62 | F137: 63422.33 | G137: 62844.67 | H137: 64704.57 | I137: 65282.23 | J137: 65634.52 | K137: 64929.95 | L137: 64000 | M137: 0.08346
A138: 129 | B138: MGL | C138: 1071.05 | D138: 1070.37 | E138: 1057.73 | F138: 1044.42 | G138: 1031.78 | H138: 1083.68 | I138: 1096.32 | J138: 1109.63 | K138: 1083 | L138: 1057.05 | M138: 6.00847
A139: 130 | B139: M&MFIN | C139: 321.9 | D139: 320.70 | E139: 317.70 | F139: 313.50 | G139: 310.50 | H139: 324.90 | I139: 327.90 | J139: 332.10 | K139: 323.7 | L139: 316.5 | M139: 24.0155
A140: 131 | B140: M&M | C140: 522.65 | D140: 518.02 | E140: 511.13 | F140: 499.62 | G140: 492.73 | H140: 529.53 | I140: 536.42 | J140: 547.93 | K140: 524.9 | L140: 506.5 | M140: 100.92679
A141: 132 | B141: MANAPPURAM | C141: 171.75 | D141: 171.27 | E141: 170.23 | F141: 168.72 | G141: 167.68 | H141: 172.78 | I141: 173.82 | J141: 175.33 | K141: 172.3 | L141: 169.75 | M141: 12.06522
A142: 133 | B142: MRPL | C142: 41.5 | D142: 41.32 | E142: 39.83 | F142: 38.17 | G142: 36.68 | H142: 42.98 | I142: 44.47 | J142: 46.13 | K142: 42.8 | L142: 39.65 | M142: 10.50253
A143: 134 | B143: MARICO | C143: 338.8 | D143: 336.22 | E143: 332.58 | F143: 326.37 | G143: 322.73 | H143: 342.43 | I143: 346.07 | J143: 352.28 | K143: 339.85 | L143: 330 | M143: 26.71082
A144: 135 | B144: MARUTI | C144: 7240.65 | D144: 7219.87 | E144: 7184.78 | F144: 7128.92 | G144: 7093.83 | H144: 7275.73 | I144: 7310.82 | J144: 7366.68 | K144: 7254.95 | L144: 7164 | M144: 8.4174
A145: 136 | B145: MFSL | C145: 533.15 | D145: 525.88 | E145: 510.77 | F145: 488.38 | G145: 473.27 | H145: 548.27 | I145: 563.38 | J145: 585.77 | K145: 541 | L145: 503.5 | M145: 35.76058
A146: 137 | B146: MINDTREE | C146: 766.8 | D146: 770.90 | E146: 755.90 | F146: 745.00 | G146: 730.00 | H146: 781.80 | I146: 796.80 | J146: 807.70 | K146: 785.9 | L146: 760 | M146: 9.92906
A147: 138 | B147: MOTHERSUMI | C147: 147 | D147: 145.12 | E147: 141.93 | F147: 136.87 | G147: 133.68 | H147: 150.18 | I147: 153.37 | J147: 158.43 | K147: 148.3 | L147: 140.05 | M147: 113.28157
A148: 139 | B148: MPHASIS | C148: 864.95 | D148: 865.33 | E148: 861.67 | F148: 858.38 | G148: 854.72 | H148: 868.62 | I148: 872.28 | J148: 875.57 | K148: 869 | L148: 862.05 | M148: 1.22718
A149: 140 | B149: MUTHOOTFIN | C149: 715.15 | D149: 714.47 | E149: 708.68 | F149: 702.22 | G149: 696.43 | H149: 720.93 | I149: 726.72 | J149: 733.18 | K149: 720.25 | L149: 708 | M149: 4.39512
A150: 141 | B150: NATCOPHARM | C150: 584.6 | D150: 583.00 | E150: 579.00 | F150: 573.40 | G150: 569.40 | H150: 588.60 | I150: 592.60 | J150: 598.20 | K150: 587 | L150: 577.4 | M150: 0.27409
A151: 142 | B151: NBCC | C151: 35.3 | D151: 35.57 | E151: 34.83 | F151: 34.37 | G151: 33.63 | H151: 36.03 | I151: 36.77 | J151: 37.23 | K151: 36.3 | L151: 35.1 | M151: 170.26784
A152: 143 | B152: NHPC | C152: 24.05 | D152: 24.03 | E152: 23.92 | F152: 23.78 | G152: 23.67 | H152: 24.17 | I152: 24.28 | J152: 24.42 | K152: 24.15 | L152: 23.9 | M152: 12.80579
A153: 144 | B153: NMDC | C153: 119.95 | D153: 119.27 | E153: 118.08 | F153: 116.22 | G153: 115.03 | H153: 121.13 | I153: 122.32 | J153: 124.18 | K153: 120.45 | L153: 117.4 | M153: 121.38296
A154: 145 | B154: NTPC | C154: 114.15 | D154: 114.73 | E154: 113.22 | F154: 112.28 | G154: 110.77 | H154: 115.67 | I154: 117.18 | J154: 118.12 | K154: 116.25 | L154: 113.8 | M154: 86.264
A155: 146 | B155: NATIONALUM | C155: 42.4 | D155: 42.55 | E155: 42.05 | F155: 41.70 | G155: 41.20 | H155: 42.90 | I155: 43.40 | J155: 43.75 | K155: 43.05 | L155: 42.2 | M155: 99.54686
A156: 147 | B156: NESTLEIND | C156: 14191.1 | D156: 14175.50 | E156: 14071.00 | F156: 13950.90 | G156: 13846.40 | H156: 14295.60 | I156: 14400.10 | J156: 14520.20 | K156: 14280 | L156: 14055.4 | M156: 0.93716
A157: 148 | B157: OBEROIRLTY | C157: 517.1 | D157: 518.65 | E157: 513.45 | F157: 509.80 | G157: 504.60 | H157: 522.30 | I157: 527.50 | J157: 531.15 | K157: 523.85 | L157: 515 | M157: 2.40549
A158: 149 | B158: ONGC | C158: 125.1 | D158: 124.97 | E158: 124.28 | F158: 123.47 | G158: 122.78 | H158: 125.78 | I158: 126.47 | J158: 127.28 | K158: 125.65 | L158: 124.15 | M158: 66.87482
A159: 150 | B159: OIL | C159: 151.6 | D159: 151.57 | E159: 150.58 | F159: 149.57 | G159: 148.58 | H159: 152.58 | I159: 153.57 | J159: 154.58 | K159: 152.55 | L159: 150.55 | M159: 3.91623
A160: 151 | B160: OFSS | C160: 2947.55 | D160: 2934.17 | E160: 2908.43 | F160: 2869.32 | G160: 2843.58 | H160: 2973.28 | I160: 2999.02 | J160: 3038.13 | K160: 2959.9 | L160: 2895.05 | M160: 0.12268
A161: 152 | B161: ORIENTBANK | C161: 53.3 | D161: 53.45 | E161: 52.45 | F161: 51.60 | G161: 50.60 | H161: 54.30 | I161: 55.30 | J161: 56.15 | K161: 54.45 | L161: 52.6 | M161: 6.26306
A162: 153 | B162: PIIND | C162: 1483.65 | D162: 1485.62 | E162: 1473.03 | F162: 1462.42 | G162: 1449.83 | H162: 1496.23 | I162: 1508.82 | J162: 1519.43 | K162: 1498.2 | L162: 1475 | M162: 0.29452
A163: 154 | B163: PNBHOUSING | C163: 433.95 | D163: 437.78 | E163: 428.57 | F163: 423.18 | G163: 413.97 | H163: 443.17 | I163: 452.38 | J163: 457.77 | K163: 447 | L163: 432.4 | M163: 4.11157
A164: 155 | B164: PAGEIND | C164: 22183.8 | D164: 22177.27 | E164: 22006.53 | F164: 21829.27 | G164: 21658.53 | H164: 22354.53 | I164: 22525.27 | J164: 22702.53 | K164: 22348 | L164: 22000 | M164: 0.13266
A165: 156 | B165: PETRONET | C165: 278 | D165: 277.62 | E165: 275.68 | F165: 273.37 | G165: 271.43 | H165: 279.93 | I165: 281.87 | J165: 284.18 | K165: 279.55 | L165: 275.3 | M165: 26.84545
A166: 157 | B166: PFIZER | C166: 4307.15 | D166: 4333.42 | E166: 4266.83 | F166: 4226.52 | G166: 4159.93 | H166: 4373.73 | I166: 4440.32 | J166: 4480.63 | K166: 4400 | L166: 4293.1 | M166: 0.20849
A167: 158 | B167: PIDILITIND | C167: 1364.7 | D167: 1355.15 | E167: 1337.30 | F167: 1309.90 | G167: 1292.05 | H167: 1382.55 | I167: 1400.40 | J167: 1427.80 | K167: 1373 | L167: 1327.75 | M167: 9.93482
A168: 159 | B168: PEL | C168: 1638.55 | D168: 1643.92 | E168: 1616.63 | F168: 1594.72 | G168: 1567.43 | H168: 1665.83 | I168: 1693.12 | J168: 1715.03 | K168: 1671.2 | L168: 1622 | M168: 7.17087
A169: 160 | B169: PFC | C169: 113.3 | D169: 113.77 | E169: 111.93 | F169: 110.57 | G169: 108.73 | H169: 115.13 | I169: 116.97 | J169: 118.33 | K169: 115.6 | L169: 112.4 | M169: 22.18119
A170: 161 | B170: POWERGRID | C170: 187.2 | D170: 187.45 | E170: 185.90 | F170: 184.60 | G170: 183.05 | H170: 188.75 | I170: 190.30 | J170: 191.60 | K170: 189 | L170: 186.15 | M170: 56.80887
A171: 162 | B171: PRESTIGE | C171: 360 | D171: 352.28 | E171: 338.77 | F171: 317.53 | G171: 304.02 | H171: 373.52 | I171: 387.03 | J171: 408.27 | K171: 365.8 | L171: 331.05 | M171: 21.54869
A172: 163 | B172: PGHH | C172: 11349.95 | D172: 11346.70 | E172: 11270.45 | F172: 11190.95 | G172: 11114.70 | H172: 11426.20 | I172: 11502.45 | J172: 11581.95 | K172: 11422.95 | L172: 11267.2 | M172: 0.06053
A173: 164 | B173: PNB | C173: 63.2 | D173: 63.52 | E173: 62.38 | F173: 61.57 | G173: 60.43 | H173: 64.33 | I173: 65.47 | J173: 66.28 | K173: 64.65 | L173: 62.7 | M173: 158.91877
A174: 165 | B174: QUESS | C174: 506.8 | D174: 506.92 | E174: 494.13 | F174: 481.47 | G174: 468.68 | H174: 519.58 | I174: 532.37 | J174: 545.03 | K174: 519.7 | L174: 494.25 | M174: 3.89939
A175: 166 | B175: RBLBANK | C175: 342.4 | D175: 340.18 | E175: 335.22 | F175: 328.03 | G175: 323.07 | H175: 347.37 | I175: 352.33 | J175: 359.52 | K175: 345.15 | L175: 333 | M175: 85.11977
A176: 167 | B176: RECLTD | C176: 136.85 | D176: 137.03 | E176: 135.47 | F176: 134.08 | G176: 132.52 | H176: 138.42 | I176: 139.98 | J176: 141.37 | K176: 138.6 | L176: 135.65 | M176: 18.40432
A177: 168 | B177: RAJESHEXPO | C177: 693.25 | D177: 692.08 | E177: 681.17 | F177: 669.08 | G177: 658.17 | H177: 704.17 | I177: 715.08 | J177: 727.17 | K177: 703 | L177: 680 | M177: 1.77749
A178: 169 | B178: RELIANCE | C178: 1575.85 | D178: 1572.62 | E178: 1565.23 | F178: 1554.62 | G178: 1547.23 | H178: 1583.23 | I178: 1590.62 | J178: 1601.23 | K178: 1580 | L178: 1562 | M178: 67.39582
A179: 170 | B179: RNAM | C179: 336.7 | D179: 338.52 | E179: 331.28 | F179: 325.87 | G179: 318.63 | H179: 343.93 | I179: 351.17 | J179: 356.58 | K179: 345.75 | L179: 333.1 | M179: 10.53333
A180: 171 | B180: SBILIFE | C180: 964.75 | D180: 966.78 | E180: 956.97 | F180: 949.18 | G180: 939.37 | H180: 974.57 | I180: 984.38 | J180: 992.17 | K180: 976.6 | L180: 959 | M180: 6.28845
A181: 172 | B181: SRF | C181: 3228.7 | D181: 3227.38 | E181: 3205.32 | F181: 3181.93 | G181: 3159.87 | H181: 3250.77 | I181: 3272.83 | J181: 3296.22 | K181: 3249.45 | L181: 3204 | M181: 1.14104
A182: 173 | B182: SHREECEM | C182: 20338.8 | D182: 20370.68 | E182: 20101.37 | F182: 19863.93 | G182: 19594.62 | H182: 20608.12 | I182: 20877.43 | J182: 21114.87 | K182: 20640 | L182: 20133.25 | M182: 0.21054
A183: 174 | B183: SRTRANSFIN | C183: 1113.6 | D183: 1107.12 | E183: 1087.53 | F183: 1061.47 | G183: 1041.88 | H183: 1133.18 | I183: 1152.77 | J183: 1178.83 | K183: 1126.7 | L183: 1081.05 | M183: 8.35243
A184: 175 | B184: SIEMENS | C184: 1503.4 | D184: 1503.90 | E184: 1492.50 | F184: 1481.60 | G184: 1470.20 | H184: 1514.80 | I184: 1526.20 | J184: 1537.10 | K184: 1515.3 | L184: 1493 | M184: 4.48321
A185: 176 | B185: SBIN | C185: 326.95 | D185: 329.43 | E185: 323.32 | F185: 319.68 | G185: 313.57 | H185: 333.07 | I185: 339.18 | J185: 342.82 | K185: 335.55 | L185: 325.8 | M185: 264.49075
A186: 177 | B186: SAIL | C186: 41.05 | D186: 40.95 | E186: 40.40 | F186: 39.75 | G186: 39.20 | H186: 41.60 | I186: 42.15 | J186: 42.80 | K186: 41.5 | L186: 40.3 | M186: 351.92583
A187: 178 | B187: STRTECH | C187: 111.95 | D187: 112.97 | E187: 110.33 | F187: 108.72 | G187: 106.08 | H187: 114.58 | I187: 117.22 | J187: 118.83 | K187: 115.6 | L187: 111.35 | M187: 13.27027
A188: 179 | B188: SUNPHARMA | C188: 439.75 | D188: 436.15 | E188: 430.90 | F188: 422.05 | G188: 416.80 | H188: 445.00 | I188: 450.25 | J188: 459.10 | K188: 441.4 | L188: 427.3 | M188: 53.41984
A189: 180 | B189: SUNTV | C189: 444.1 | D189: 448.02 | E189: 437.08 | F189: 430.07 | G189: 419.13 | H189: 455.03 | I189: 465.97 | J189: 472.98 | K189: 458.95 | L189: 441 | M189: 26.49989
A190: 181 | B190: SYNGENE | C190: 304 | D190: 301.92 | E190: 299.03 | F190: 294.07 | G190: 291.18 | H190: 306.88 | I190: 309.77 | J190: 314.73 | K190: 304.8 | L190: 296.95 | M190: 1.57655
A191: 182 | B191: TVSMOTOR | C191: 445.55 | D191: 446.93 | E191: 440.92 | F191: 436.28 | G191: 430.27 | H191: 451.57 | I191: 457.58 | J191: 462.22 | K191: 452.95 | L191: 442.3 | M191: 11.53002
A192: 183 | B192: TATACHEM | C192: 644.15 | D192: 647.07 | E192: 632.93 | F192: 621.72 | G192: 607.58 | H192: 658.28 | I192: 672.42 | J192: 683.63 | K192: 661.2 | L192: 635.85 | M192: 8.75403
A193: 184 | B193: TCS | C193: 2167.75 | D193: 2174.73 | E193: 2146.02 | F193: 2124.28 | G193: 2095.57 | H193: 2196.47 | I193: 2225.18 | J193: 2246.92 | K193: 2203.45 | L193: 2153 | M193: 82.51081
A194: 185 | B194: TATAGLOBAL | C194: 312.35 | D194: 314.47 | E194: 302.48 | F194: 292.62 | G194: 280.63 | H194: 324.33 | I194: 336.32 | J194: 346.18 | K194: 326.45 | L194: 304.6 | M194: 47.90723
A195: 186 | B195: TATAMTRDVR | C195: 72.85 | D195: 73.78 | E195: 70.72 | F195: 68.58 | G195: 65.52 | H195: 75.92 | I195: 78.98 | J195: 81.12 | K195: 76.85 | L195: 71.65 | M195: 90.46293
A196: 187 | B196: TATAMOTORS | C196: 174.8 | D196: 176.58 | E196: 168.67 | F196: 162.53 | G196: 154.62 | H196: 182.72 | I196: 190.63 | J196: 196.77 | K196: 184.5 | L196: 170.45 | M196: 638.61334
A197: 188 | B197: TATAPOWER | C197: 55.5 | D197: 55.52 | E197: 54.78 | F197: 54.07 | G197: 53.33 | H197: 56.23 | I197: 56.97 | J197: 57.68 | K197: 56.25 | L197: 54.8 | M197: 56.3451
A198: 189 | B198: TATASTEEL | C198: 444.75 | D198: 445.20 | E198: 435.60 | F198: 426.45 | G198: 416.85 | H198: 454.35 | I198: 463.95 | J198: 473.10 | K198: 454.8 | L198: 436.05 | M198: 400.28398
A199: 190 | B199: TECHM | C199: 786.65 | D199: 786.92 | E199: 779.83 | F199: 773.02 | G199: 765.93 | H199: 793.73 | I199: 800.82 | J199: 807.63 | K199: 794 | L199: 780.1 | M199: 56.76894
A200: 191 | B200: NIACL | C200: 141.75 | D200: 142.25 | E200: 139.65 | F200: 137.55 | G200: 134.95 | H200: 144.35 | I200: 146.95 | J200: 149.05 | K200: 144.85 | L200: 140.15 | M200: 12.49194
A201: 192 | B201: RAMCOCEM | C201: 771 | D201: 769.45 | E201: 763.95 | F201: 756.90 | G201: 751.40 | H201: 776.50 | I201: 782.00 | J201: 789.05 | K201: 774.95 | L201: 762.4 | M201: 5.35236
A202: 193 | B202: TITAN | C202: 1159.1 | D202: 1158.93 | E202: 1150.52 | F202: 1141.93 | G202: 1133.52 | H202: 1167.52 | I202: 1175.93 | J202: 1184.52 | K202: 1167.35 | L202: 1150.35 | M202: 13.91631
A203: 194 | B203: TORNTPHARM | C203: 1819.2 | D203: 1826.43 | E203: 1805.87 | F203: 1792.53 | G203: 1771.97 | H203: 1839.77 | I203: 1860.33 | J203: 1873.67 | K203: 1847 | L203: 1813.1 | M203: 1.90406
A204: 195 | B204: TORNTPOWER | C204: 270.25 | D204: 270.75 | E204: 267.10 | F204: 263.95 | G204: 260.30 | H204: 273.90 | I204: 277.55 | J204: 280.70 | K204: 274.4 | L204: 267.6 | M204: 9.32713
A205: 196 | B205: UPL | C205: 566.25 | D205: 565.80 | E205: 559.80 | F205: 553.35 | G205: 547.35 | H205: 572.25 | I205: 578.25 | J205: 584.70 | K205: 571.8 | L205: 559.35 | M205: 18.33572
... 30 more rows

Sheet MidCap Intra
L5: Back To Main Page
A6: FOR INTRA DAY TRADING | K6: =Main!B10 -> 2019-12-19
A9: Sr.no | B9: Scrip | C9: CLOSE RATE | D9: Pivot Point | E9: Supports | H9: Resistances
C10: Point | E10: S1 | F10: S2 | G10: S3 | H10: R1 | I10: R2 | J10: R3 | K10: HIGH | L10: LOW | M10: Total Trade Quanity in Lakhs
A11: 1 | B11: 3MINDIA | C11: 20844.85 | D11: 20914.95 | E11: 20679.90 | F11: 20514.95 | G11: 20279.90 | H11: 21079.90 | I11: 21314.95 | J11: 21479.90 | K11: 21150 | L11: 20750 | M11: 0.0093
A12: 2 | B12: ACC | C12: 1450.4 | D12: 1453.18 | E12: 1435.97 | F12: 1421.53 | G12: 1404.32 | H12: 1467.62 | I12: 1484.83 | J12: 1499.27 | K12: 1470.4 | L12: 1438.75 | M12: 4.8128
A13: 3 | B13: AIAENG | C13: 1620.4 | D13: 1624.90 | E13: 1609.10 | F13: 1597.80 | G13: 1582.00 | H13: 1636.20 | I13: 1652.00 | J13: 1663.30 | K13: 1640.7 | L13: 1613.6 | M13: 0.1205
A14: 4 | B14: APLAPOLLO | C14: 1626.6 | D14: 1635.83 | E14: 1603.87 | F14: 1581.13 | G14: 1549.17 | H14: 1658.57 | I14: 1690.53 | J14: 1713.27 | K14: 1667.8 | L14: 1613.1 | M14: 0.15218
A15: 5 | B15: AUBANK | C15: 794.2 | D15: 791.07 | E15: 784.13 | F15: 774.07 | G15: 767.13 | H15: 801.13 | I15: 808.07 | J15: 818.13 | K15: 798 | L15: 781 | M15: 2.87842
A16: 6 | B16: AAVAS | C16: 1876.5 | D16: 1881.65 | E16: 1864.85 | F16: 1853.20 | G16: 1836.40 | H16: 1893.30 | I16: 1910.10 | J16: 1921.75 | K16: 1898.45 | L16: 1870 | M16: 0.2114
A17: 7 | B17: ABBOTINDIA | C17: 13190.9 | D17: 13238.72 | E17: 13067.43 | F17: 12943.97 | G17: 12772.68 | H17: 13362.18 | I17: 13533.47 | J17: 13656.93 | K17: 13410 | L17: 13115.25 | M17: 0.0545
A18: 8 | B18: ADANIGAS | C18: 150.75 | D18: 151.05 | E18: 150.20 | F18: 149.65 | G18: 148.80 | H18: 151.60 | I18: 152.45 | J18: 153.00 | K18: 151.9 | L18: 150.5 | M18: 3.80427
A19: 9 | B19: ADANIGREEN | C19: 135.1 | D19: 135.47 | E19: 133.63 | F19: 132.17 | G19: 130.33 | H19: 136.93 | I19: 138.77 | J19: 140.23 | K19: 137.3 | L19: 134 | M19: 6.90735
A20: 10 | B20: ADANIPORTS | C20: 374.5 | D20: 373.13 | E20: 370.47 | F20: 366.43 | G20: 363.77 | H20: 377.17 | I20: 379.83 | J20: 383.87 | K20: 375.8 | L20: 369.1 | M20: 39.60881
A21: 11 | B21: ADANIPOWER | C21: 61.25 | D21: 61.25 | E21: 60.25 | F21: 59.25 | G21: 58.25 | H21: 62.25 | I21: 63.25 | J21: 64.25 | K21: 62.25 | L21: 60.25 | M21: 54.25898
A22: 12 | B22: ADANITRANS | C22: 333.65 | D22: 334.00 | E22: 331.70 | F22: 329.75 | G22: 327.45 | H22: 335.95 | I22: 338.25 | J22: 340.20 | K22: 336.3 | L22: 332.05 | M22: 1.32743
A23: 13 | B23: ABCAPITAL | C23: 97.55 | D23: 98.08 | E23: 96.27 | F23: 94.98 | G23: 93.17 | H23: 99.37 | I23: 101.18 | J23: 102.47 | K23: 99.9 | L23: 96.8 | M23: 11.45998
A24: 14 | B24: ABFRL | C24: 239.15 | D24: 237.45 | E24: 235.00 | F24: 230.85 | G24: 228.40 | H24: 241.60 | I24: 244.05 | J24: 248.20 | K24: 239.9 | L24: 233.3 | M24: 5.57471
A25: 15 | B25: ADVENZYMES | C25: 164.7 | D25: 164.85 | E25: 163.20 | F25: 161.70 | G25: 160.05 | H25: 166.35 | I25: 168.00 | J25: 169.50 | K25: 166.5 | L25: 163.35 | M25: 0.97896
A26: 16 | B26: AEGISCHEM | C26: 179.35 | D26: 181.28 | E26: 176.57 | F26: 173.78 | G26: 169.07 | H26: 184.07 | I26: 188.78 | J26: 191.57 | K26: 186 | L26: 178.5 | M26: 1.83071
A27: 17 | B27: AJANTPHARM | C27: 969.5 | D27: 977.03 | E27: 955.07 | F27: 940.63 | G27: 918.67 | H27: 991.47 | I27: 1013.43 | J27: 1027.87 | K27: 999 | L27: 962.6 | M27: 0.7944
A28: 18 | B28: AKZOINDIA | C28: 1945.2 | D28: 1948.40 | E28: 1936.80 | F28: 1928.40 | G28: 1916.80 | H28: 1956.80 | I28: 1968.40 | J28: 1976.80 | K28: 1960 | L28: 1940 | M28: 0.52297
A29: 19 | B29: APLLTD | C29: 555.7 | D29: 554.58 | E29: 546.12 | F29: 536.53 | G29: 528.07 | H29: 564.17 | I29: 572.63 | J29: 582.22 | K29: 563.05 | L29: 545 | M29: 0.54728
A30: 20 | B30: ALKEM | C30: 2095.4 | D30: 2086.77 | E30: 2073.63 | F30: 2051.87 | G30: 2038.73 | H30: 2108.53 | I30: 2121.67 | J30: 2143.43 | K30: 2099.9 | L30: 2065 | M30: 0.19953
A31: 21 | B31: ALBK | C31: 18.8 | D31: 18.90 | E31: 18.65 | F31: 18.50 | G31: 18.25 | H31: 19.05 | I31: 19.30 | J31: 19.45 | K31: 19.15 | L31: 18.75 | M31: 14.09955
A32: 22 | B32: ALLCARGO | C32: 93.05 | D32: 93.75 | E32: 91.80 | F32: 90.55 | G32: 88.60 | H32: 95.00 | I32: 96.95 | J32: 98.20 | K32: 95.7 | L32: 92.5 | M32: 3.77906
A33: 23 | B33: AMARAJABAT | C33: 740.25 | D33: 741.57 | E33: 736.13 | F33: 732.02 | G33: 726.58 | H33: 745.68 | I33: 751.12 | J33: 755.23 | K33: 747 | L33: 737.45 | M33: 5.28519
A34: 24 | B34: AMBER | C34: 1025.25 | D34: 1027.43 | E34: 1017.87 | F34: 1010.48 | G34: 1000.92 | H34: 1034.82 | I34: 1044.38 | J34: 1051.77 | K34: 1037 | L34: 1020.05 | M34: 0.07693
A35: 25 | B35: AMBUJACEM | C35: 196.55 | D35: 196.85 | E35: 193.90 | F35: 191.25 | G35: 188.30 | H35: 199.50 | I35: 202.45 | J35: 205.10 | K35: 199.8 | L35: 194.2 | M35: 23.41481
A36: 26 | B36: ANDHRABANK | C36: 17.45 | D36: 17.43 | E36: 17.27 | F36: 17.08 | G36: 16.92 | H36: 17.62 | I36: 17.78 | J36: 17.97 | K36: 17.6 | L36: 17.25 | M36: 3.85618
A37: 27 | B37: APOLLOHOSP | C37: 1384.85 | D37: 1383.23 | E37: 1371.62 | F37: 1358.38 | G37: 1346.77 | H37: 1396.47 | I37: 1408.08 | J37: 1421.32 | K37: 1394.85 | L37: 1370 | M37: 12.44195
A38: 28 | B38: APOLLOTYRE | C38: 164.55 | D38: 164.87 | E38: 163.23 | F38: 161.92 | G38: 160.28 | H38: 166.18 | I38: 167.82 | J38: 169.13 | K38: 166.5 | L38: 163.55 | M38: 20.40202
A39: 29 | B39: ARVINDFASN | C39: 413.9 | D39: 417.92 | E39: 405.98 | F39: 398.07 | G39: 386.13 | H39: 425.83 | I39: 437.77 | J39: 445.68 | K39: 429.85 | L39: 410 | M39: 0.46259
A40: 30 | B40: ASHOKLEY | C40: 79.9 | D40: 80.10 | E40: 78.90 | F40: 77.90 | G40: 76.70 | H40: 81.10 | I40: 82.30 | J40: 83.30 | K40: 81.3 | L40: 79.1 | M40: 128.92036
A41: 31 | B41: ASHOKA | C41: 94.25 | D41: 94.45 | E41: 93.10 | F41: 91.95 | G41: 90.60 | H41: 95.60 | I41: 96.95 | J41: 98.10 | K41: 95.8 | L41: 93.3 | M41: 16.66806
A42: 32 | B42: ASIANPAINT | C42: 1778.45 | D42: 1764.70 | E42: 1747.40 | F42: 1716.35 | G42: 1699.05 | H42: 1795.75 | I42: 1813.05 | J42: 1844.10 | K42: 1782 | L42: 1733.65 | M42: 14.76506
A43: 33 | B43: ASTERDM | C43: 161.4 | D43: 160.55 | E43: 158.30 | F43: 155.20 | G43: 152.95 | H43: 163.65 | I43: 165.90 | J43: 169.00 | K43: 162.8 | L43: 157.45 | M43: 3.29849
A44: 34 | B44: ASTRAZEN | C44: 2841.55 | D44: 2854.52 | E44: 2814.03 | F44: 2786.52 | G44: 2746.03 | H44: 2882.03 | I44: 2922.52 | J44: 2950.03 | K44: 2895 | L44: 2827 | M44: 0.07973
A45: 35 | B45: ASTRAL | C45: 1130.85 | D45: 1134.62 | E45: 1119.23 | F45: 1107.62 | G45: 1092.23 | H45: 1146.23 | I45: 1161.62 | J45: 1173.23 | K45: 1150 | L45: 1123 | M45: 0.25217
A46: 36 | B46: ATUL | C46: 4002.45 | D46: 4009.85 | E46: 3992.60 | F46: 3982.75 | G46: 3965.50 | H46: 4019.70 | I46: 4036.95 | J46: 4046.80 | K46: 4027.1 | L46: 4000 | M46: 0.11185
A47: 37 | B47: AUROPHARMA | C47: 454 | D47: 451.90 | E47: 448.35 | F47: 442.70 | G47: 439.15 | H47: 457.55 | I47: 461.10 | J47: 466.75 | K47: 455.45 | L47: 446.25 | M47: 27.62551
A48: 38 | B48: AVANTIFEED | C48: 548.8 | D48: 548.35 | E48: 540.00 | F48: 531.20 | G48: 522.85 | H48: 557.15 | I48: 565.50 | J48: 574.30 | K48: 556.7 | L48: 539.55 | M48: 5.59582
A49: 39 | B49: DMART | C49: 1913.5 | D49: 1906.80 | E49: 1871.70 | F49: 1829.90 | G49: 1794.80 | H49: 1948.60 | I49: 1983.70 | J49: 2025.50 | K49: 1941.9 | L49: 1865 | M49: 14.30492
A50: 40 | B50: AXISBANK | C50: 741.85 | D50: 742.67 | E50: 736.78 | F50: 731.72 | G50: 725.83 | H50: 747.73 | I50: 753.62 | J50: 758.68 | K50: 748.55 | L50: 737.6 | M50: 66.7842
A51: 41 | B51: BASF | C51: 946 | D51: 949.75 | E51: 937.25 | F51: 928.50 | G51: 916.00 | H51: 958.50 | I51: 971.00 | J51: 979.75 | K51: 962.25 | L51: 941 | M51: 0.17251
A52: 42 | B52: BEML | C52: 984 | D52: 983.12 | E52: 971.43 | F52: 958.87 | G52: 947.18 | H52: 995.68 | I52: 1007.37 | J52: 1019.93 | K52: 994.8 | L52: 970.55 | M52: 3.57239
A53: 43 | B53: BSE | C53: 490.5 | D53: 491.38 | E53: 487.22 | F53: 483.93 | G53: 479.77 | H53: 494.67 | I53: 498.83 | J53: 502.12 | K53: 495.55 | L53: 488.1 | M53: 0.56304
A54: 44 | B54: BAJAJ-AUTO | C54: 3213.65 | D54: 3208.62 | E54: 3197.23 | F54: 3180.82 | G54: 3169.43 | H54: 3225.03 | I54: 3236.42 | J54: 3252.83 | K54: 3220 | L54: 3192.2 | M54: 3.15871
A55: 45 | B55: BAJAJCON | C55: 224.3 | D55: 224.32 | E55: 222.13 | F55: 219.97 | G55: 217.78 | H55: 226.48 | I55: 228.67 | J55: 230.83 | K55: 226.5 | L55: 222.15 | M55: 1.06772
A56: 46 | B56: BAJAJELEC | C56: 338.6 | D56: 338.92 | E56: 333.88 | F56: 329.17 | G56: 324.13 | H56: 343.63 | I56: 348.67 | J56: 353.38 | K56: 343.95 | L56: 334.2 | M56: 1.15132
A57: 47 | B57: BAJFINANCE | C57: 4119.35 | D57: 4126.42 | E57: 4093.98 | F57: 4068.62 | G57: 4036.18 | H57: 4151.78 | I57: 4184.22 | J57: 4209.58 | K57: 4158.85 | L57: 4101.05 | M57: 11.09775
A58: 48 | B58: BAJAJFINSV | C58: 9362.6 | D58: 9370.08 | E58: 9319.17 | F58: 9275.73 | G58: 9224.82 | H58: 9413.52 | I58: 9464.43 | J58: 9507.87 | K58: 9421 | L58: 9326.65 | M58: 2.28424
A59: 49 | B59: BAJAJHLDNG | C59: 3282.55 | D59: 3286.30 | E59: 3273.75 | F59: 3264.95 | G59: 3252.40 | H59: 3295.10 | I59: 3307.65 | J59: 3316.45 | K59: 3298.85 | L59: 3277.5 | M59: 0.54838
A60: 50 | B60: BALKRISIND | C60: 949.4 | D60: 954.57 | E60: 940.63 | F60: 931.87 | G60: 917.93 | H60: 963.33 | I60: 977.27 | J60: 986.03 | K60: 968.5 | L60: 945.8 | M60: 9.26624
A61: 51 | B61: BALMLAWRIE | C61: 192.65 | D61: 193.58 | E61: 187.47 | F61: 182.28 | G61: 176.17 | H61: 198.77 | I61: 204.88 | J61: 210.07 | K61: 199.7 | L61: 188.4 | M61: 2.10988
A62: 52 | B62: BALRAMCHIN | C62: 173.7 | D62: 174.02 | E62: 172.23 | F62: 170.77 | G62: 168.98 | H62: 175.48 | I62: 177.27 | J62: 178.73 | K62: 175.8 | L62: 172.55 | M62: 27.3011
A63: 53 | B63: BANDHANBNK | C63: 500 | D63: 487.13 | E63: 469.87 | F63: 439.73 | G63: 422.47 | H63: 517.27 | I63: 534.53 | J63: 564.67 | K63: 504.4 | L63: 457 | M63: 92.35981
A64: 54 | B64: BANKBARODA | C64: 98.9 | D64: 99.67 | E64: 97.73 | F64: 96.57 | G64: 94.63 | H64: 100.83 | I64: 102.77 | J64: 103.93 | K64: 101.6 | L64: 98.5 | M64: 270.6715
A65: 55 | B65: BANKINDIA | C65: 71.35 | D65: 71.43 | E65: 69.32 | F65: 67.28 | G65: 65.17 | H65: 73.47 | I65: 75.58 | J65: 77.62 | K65: 73.55 | L65: 69.4 | M65: 24.78131
A66: 56 | B66: MAHABANK | C66: 11.65 | D66: 11.65 | E66: 11.55 | F66: 11.45 | G66: 11.35 | H66: 11.75 | I66: 11.85 | J66: 11.95 | K66: 11.75 | L66: 11.55 | M66: 2.38854
A67: 57 | B67: BATAINDIA | C67: 1662.95 | D67: 1668.25 | E67: 1648.60 | F67: 1634.25 | G67: 1614.60 | H67: 1682.60 | I67: 1702.25 | J67: 1716.60 | K67: 1687.9 | L67: 1653.9 | M67: 3.66968
A68: 58 | B68: BAYERCROP | C68: 3591.3 | D68: 3600.45 | E68: 3542.90 | F68: 3494.50 | G68: 3436.95 | H68: 3648.85 | I68: 3706.40 | J68: 3754.80 | K68: 3658 | L68: 3552.05 | M68: 0.5834
A69: 59 | B69: BERGEPAINT | C69: 500.15 | D69: 496.93 | E69: 491.87 | F69: 483.58 | G69: 478.52 | H69: 505.22 | I69: 510.28 | J69: 518.57 | K69: 502 | L69: 488.65 | M69: 16.63753
A70: 60 | B70: BDL | C70: 286.3 | D70: 287.40 | E70: 282.40 | F70: 278.50 | G70: 273.50 | H70: 291.30 | I70: 296.30 | J70: 300.20 | K70: 292.4 | L70: 283.5 | M70: 0.80681
A71: 61 | B71: BEL | C71: 100.45 | D71: 100.28 | E71: 99.82 | F71: 99.18 | G71: 98.72 | H71: 100.92 | I71: 101.38 | J71: 102.02 | K71: 100.75 | L71: 99.65 | M71: 44.68054
A72: 62 | B72: BHARATFORG | C72: 496.4 | D72: 492.48 | E72: 487.12 | F72: 477.83 | G72: 472.47 | H72: 501.77 | I72: 507.13 | J72: 516.42 | K72: 497.85 | L72: 483.2 | M72: 22.22895
A73: 63 | B73: BHEL | C73: 45.25 | D73: 45.52 | E73: 44.63 | F73: 44.02 | G73: 43.13 | H73: 46.13 | I73: 47.02 | J73: 47.63 | K73: 46.4 | L73: 44.9 | M73: 145.98223
A74: 64 | B74: BPCL | C74: 489.25 | D74: 491.87 | E74: 485.48 | F74: 481.72 | G74: 475.33 | H74: 495.63 | I74: 502.02 | J74: 505.78 | K74: 498.25 | L74: 488.1 | M74: 46.57085
A75: 65 | B75: BHARTIARTL | C75: 438.3 | D75: 439.85 | E75: 432.60 | F75: 426.90 | G75: 419.65 | H75: 445.55 | I75: 452.80 | J75: 458.50 | K75: 447.1 | L75: 434.15 | M75: 176.54537
A76: 66 | B76: INFRATEL | C76: 250.3 | D76: 249.90 | E76: 246.80 | F76: 243.30 | G76: 240.20 | H76: 253.40 | I76: 256.50 | J76: 260.00 | K76: 253 | L76: 246.4 | M76: 66.87638
A77: 67 | B77: BIOCON | C77: 294.05 | D77: 292.73 | E77: 289.82 | F77: 285.58 | G77: 282.67 | H77: 296.97 | I77: 299.88 | J77: 304.12 | K77: 295.65 | L77: 288.5 | M77: 27.19997
A78: 68 | B78: BIRLACORPN | C78: 609.85 | D78: 613.25 | E78: 601.60 | F78: 593.35 | G78: 581.70 | H78: 621.50 | I78: 633.15 | J78: 641.40 | K78: 624.9 | L78: 605 | M78: 0.52961
A79: 69 | B79: BSOFT | C79: 68.2 | D79: 67.97 | E79: 67.43 | F79: 66.67 | G79: 66.13 | H79: 68.73 | I79: 69.27 | J79: 70.03 | K79: 68.5 | L79: 67.2 | M79: 2.32322
A80: 70 | B80: BLISSGVS | C80: 149.6 | D80: 149.82 | E80: 148.78 | F80: 147.97 | G80: 146.93 | H80: 150.63 | I80: 151.67 | J80: 152.48 | K80: 150.85 | L80: 149 | M80: 2.06804
A81: 71 | B81: BLUEDART | C81: 2246.45 | D81: 2234.55 | E81: 2214.10 | F81: 2181.75 | G81: 2161.30 | H81: 2266.90 | I81: 2287.35 | J81: 2319.70 | K81: 2255 | L81: 2202.2 | M81: 0.06271
A82: 72 | B82: BLUESTARCO | C82: 796.75 | D82: 793.90 | E82: 785.35 | F82: 773.95 | G82: 765.40 | H82: 805.30 | I82: 813.85 | J82: 825.25 | K82: 802.45 | L82: 782.5 | M82: 0.77789
A83: 73 | B83: BBTC | C83: 1027.35 | D83: 1029.08 | E83: 1018.27 | F83: 1009.18 | G83: 998.37 | H83: 1038.17 | I83: 1048.98 | J83: 1058.07 | K83: 1039.9 | L83: 1020 | M83: 0.71376
A84: 74 | B84: BOMDYEING | C84: 75.15 | D84: 75.68 | E84: 74.02 | F84: 72.88 | G84: 71.22 | H84: 76.82 | I84: 78.48 | J84: 79.62 | K84: 77.35 | L84: 74.55 | M84: 8.08283
A85: 75 | B85: BOSCHLTD | C85: 15200.55 | D85: 15192.20 | E85: 15119.40 | F85: 15038.25 | G85: 14965.45 | H85: 15273.35 | I85: 15346.15 | J85: 15427.30 | K85: 15265 | L85: 15111.05 | M85: 0.15267
A86: 76 | B86: BRIGADE | C86: 208.05 | D86: 207.38 | E86: 202.77 | F86: 197.48 | G86: 192.87 | H86: 212.67 | I86: 217.28 | J86: 222.57 | K86: 212 | L86: 202.1 | M86: 0.96635
A87: 77 | B87: BRITANNIA | C87: 3099.2 | D87: 3091.23 | E87: 3061.32 | F87: 3023.43 | G87: 2993.52 | H87: 3129.12 | I87: 3159.03 | J87: 3196.92 | K87: 3121.15 | L87: 3053.35 | M87: 4.05982
A88: 78 | B88: CARERATING | C88: 479.35 | D88: 479.35 | E88: 476.65 | F88: 473.95 | G88: 471.25 | H88: 482.05 | I88: 484.75 | J88: 487.45 | K88: 482.05 | L88: 476.65 | M88: 0.36001
A89: 79 | B89: CCL | C89: 195 | D89: 194.92 | E89: 191.48 | F89: 187.97 | G89: 184.53 | H89: 198.43 | I89: 201.87 | J89: 205.38 | K89: 198.35 | L89: 191.4 | M89: 0.68627
A90: 80 | B90: CESC | C90: 737.05 | D90: 739.47 | E90: 730.93 | F90: 724.82 | G90: 716.28 | H90: 745.58 | I90: 754.12 | J90: 760.23 | K90: 748 | L90: 733.35 | M90: 1.94321
A91: 81 | B91: CGPOWER | C91: 11.4 | D91: 11.48 | E91: 11.07 | F91: 10.73 | G91: 10.32 | H91: 11.82 | I91: 12.23 | J91: 12.57 | K91: 11.9 | L91: 11.15 | M91: 8.93084
A92: 82 | B92: CRISIL | C92: 1771.05 | D92: 1767.32 | E92: 1754.83 | F92: 1738.62 | G92: 1726.13 | H92: 1783.53 | I92: 1796.02 | J92: 1812.23 | K92: 1779.8 | L92: 1751.1 | M92: 0.1104
A93: 83 | B93: CADILAHC | C93: 258.9 | D93: 259.18 | E93: 257.02 | F93: 255.13 | G93: 252.97 | H93: 261.07 | I93: 263.23 | J93: 265.12 | K93: 261.35 | L93: 257.3 | M93: 7.47292
A94: 84 | B94: CANFINHOME | C94: 406.6 | D94: 410.13 | E94: 401.52 | F94: 396.43 | G94: 387.82 | H94: 415.22 | I94: 423.83 | J94: 428.92 | K94: 418.75 | L94: 405.05 | M94: 1.19045
A95: 85 | B95: CANBK | C95: 223.25 | D95: 224.57 | E95: 219.73 | F95: 216.22 | G95: 211.38 | H95: 228.08 | I95: 232.92 | J95: 236.43 | K95: 229.4 | L95: 221.05 | M95: 72.91009
A96: 86 | B96: CAPLIPOINT | C96: 308.65 | D96: 308.70 | E96: 303.95 | F96: 299.25 | G96: 294.50 | H96: 313.40 | I96: 318.15 | J96: 322.85 | K96: 313.45 | L96: 304 | M96: 0.31052
A97: 87 | B97: CGCL | C97: 199.8 | D97: 196.92 | E97: 192.43 | F97: 185.07 | G97: 180.58 | H97: 204.28 | I97: 208.77 | J97: 216.13 | K97: 201.4 | L97: 189.55 | M97: 3.64056
A98: 88 | B98: CARBORUNIV | C98: 326.6 | D98: 327.05 | E98: 324.60 | F98: 322.60 | G98: 320.15 | H98: 329.05 | I98: 331.50 | J98: 333.50 | K98: 329.5 | L98: 325.05 | M98: 0.13861
A99: 89 | B99: CASTROLIND | C99: 129.7 | D99: 130.23 | E99: 127.97 | F99: 126.23 | G99: 123.97 | H99: 131.97 | I99: 134.23 | J99: 135.97 | K99: 132.5 | L99: 128.5 | M99: 14.81215
A100: 90 | B100: CEATLTD | C100: 987.7 | D100: 985.38 | E100: 975.77 | F100: 963.83 | G100: 954.22 | H100: 997.32 | I100: 1006.93 | J100: 1018.87 | K100: 995 | L100: 973.45 | M100: 0.78925
A101: 91 | B101: CENTRALBK | C101: 18.4 | D101: 18.57 | E101: 18.13 | F101: 17.87 | G101: 17.43 | H101: 18.83 | I101: 19.27 | J101: 19.53 | K101: 19 | L101: 18.3 | M101: 6.91869
A102: 92 | B102: CDSL | C102: 226.05 | D102: 225.68 | E102: 222.87 | F102: 219.68 | G102: 216.87 | H102: 228.87 | I102: 231.68 | J102: 234.87 | K102: 228.5 | L102: 222.5 | M102: 9.42169
A103: 93 | B103: CENTURYPLY | C103: 161.95 | D103: 160.90 | E103: 159.30 | F103: 156.65 | G103: 155.05 | H103: 163.55 | I103: 165.15 | J103: 167.80 | K103: 162.5 | L103: 158.25 | M103: 0.64876
A104: 94 | B104: CERA | C104: 2528.1 | D104: 2537.97 | E104: 2506.63 | F104: 2485.17 | G104: 2453.83 | H104: 2559.43 | I104: 2590.77 | J104: 2612.23 | K104: 2569.3 | L104: 2516.5 | M104: 0.00452
A105: 95 | B105: CHALET | C105: 336.95 | D105: 337.68 | E105: 334.37 | F105: 331.78 | G105: 328.47 | H105: 340.27 | I105: 343.58 | J105: 346.17 | K105: 341 | L105: 335.1 | M105: 0.01098
A106: 96 | B106: CHAMBLFERT | C106: 147.65 | D106: 148.30 | E106: 145.65 | F106: 143.65 | G106: 141.00 | H106: 150.30 | I106: 152.95 | J106: 154.95 | K106: 150.95 | L106: 146.3 | M106: 4.97852
A107: 97 | B107: CHENNPETRO | C107: 114.95 | D107: 115.37 | E107: 114.08 | F107: 113.22 | G107: 111.93 | H107: 116.23 | I107: 117.52 | J107: 118.38 | K107: 116.65 | L107: 114.5 | M107: 0.58466
A108: 98 | B108: CHOLAHLDNG | C108: 500.15 | D108: 499.27 | E108: 489.53 | F108: 478.92 | G108: 469.18 | H108: 509.88 | I108: 519.62 | J108: 530.23 | K108: 509 | L108: 488.65 | M108: 0.7277
A109: 99 | B109: CHOLAFIN | C109: 308.85 | D109: 310.30 | E109: 306.65 | F109: 304.45 | G109: 300.80 | H109: 312.50 | I109: 316.15 | J109: 318.35 | K109: 313.95 | L109: 308.1 | M109: 8.21108
A110: 100 | B110: CIPLA | C110: 467.8 | D110: 466.18 | E110: 463.12 | F110: 458.43 | G110: 455.37 | H110: 470.87 | I110: 473.93 | J110: 478.62 | K110: 469.25 | L110: 461.5 | M110: 17.05929
A111: 101 | B111: CUB | C111: 232.7 | D111: 232.15 | E111: 230.80 | F111: 228.90 | G111: 227.55 | H111: 234.05 | I111: 235.40 | J111: 237.30 | K111: 233.5 | L111: 230.25 | M111: 4.35577
A112: 102 | B112: COALINDIA | C112: 197.75 | D112: 197.02 | E112: 195.53 | F112: 193.32 | G112: 191.83 | H112: 199.23 | I112: 200.72 | J112: 202.93 | K112: 198.5 | L112: 194.8 | M112: 36.23918
A113: 103 | B113: COCHINSHIP | C113: 390.5 | D113: 390.88 | E113: 387.62 | F113: 384.73 | G113: 381.47 | H113: 393.77 | I113: 397.03 | J113: 399.92 | K113: 394.15 | L113: 388 | M113: 0.27118
A114: 104 | B114: COFFEEDAY | C114: 46.6 | D114: 46.62 | E114: 46.08 | F114: 45.57 | G114: 45.03 | H114: 47.13 | I114: 47.67 | J114: 48.18 | K114: 47.15 | L114: 46.1 | M114: 4.98659
A115: 105 | B115: COLPAL | C115: 1482.15 | D115: 1480.20 | E115: 1468.95 | F115: 1455.75 | G115: 1444.50 | H115: 1493.40 | I115: 1504.65 | J115: 1517.85 | K115: 1491.45 | L115: 1467 | M115: 6.02276
A116: 106 | B116: CONCOR | C116: 573.35 | D116: 574.10 | E116: 570.25 | F116: 567.15 | G116: 563.30 | H116: 577.20 | I116: 581.05 | J116: 584.15 | K116: 577.95 | L116: 571 | M116: 9.37922
A117: 107 | B117: COROMANDEL | C117: 515.15 | D117: 515.33 | E117: 505.87 | F117: 496.58 | G117: 487.12 | H117: 524.62 | I117: 534.08 | J117: 543.37 | K117: 524.8 | L117: 506.05 | M117: 2.10269
A118: 108 | B118: CORPBANK | C118: 24.55 | D118: 24.90 | E118: 23.65 | F118: 22.75 | G118: 21.50 | H118: 25.80 | I118: 27.05 | J118: 27.95 | K118: 26.15 | L118: 24 | M118: 10.11953
A119: 109 | B119: COX&KINGS | C119: 1.6 | D119: 1.62 | E119: 1.58 | F119: 1.57 | G119: 1.53 | H119: 1.63 | I119: 1.67 | J119: 1.68 | K119: 1.65 | L119: 1.6 | M119: 16.31531
A120: 110 | B120: CREDITACC | C120: 790.3 | D120: 785.90 | E120: 772.05 | F120: 753.80 | G120: 739.95 | H120: 804.15 | I120: 818.00 | J120: 836.25 | K120: 799.75 | L120: 767.65 | M120: 1.09218
A121: 111 | B121: CROMPTON | C121: 245.35 | D121: 244.92 | E121: 242.93 | F121: 240.52 | G121: 238.53 | H121: 247.33 | I121: 249.32 | J121: 251.73 | K121: 246.9 | L121: 242.5 | M121: 32.90419
A122: 112 | B122: CUMMINSIND | C122: 561.3 | D122: 560.92 | E122: 556.88 | F122: 552.47 | G122: 548.43 | H122: 565.33 | I122: 569.37 | J122: 573.78 | K122: 564.95 | L122: 556.5 | M122: 4.14344
A123: 113 | B123: CYIENT | C123: 412.95 | D123: 408.25 | E123: 398.60 | F123: 384.25 | G123: 374.60 | H123: 422.60 | I123: 432.25 | J123: 446.60 | K123: 417.9 | L123: 393.9 | M123: 3.02996
A124: 114 | B124: DBCORP | C124: 132.95 | D124: 133.22 | E124: 131.93 | F124: 130.92 | G124: 129.63 | H124: 134.23 | I124: 135.52 | J124: 136.53 | K124: 134.5 | L124: 132.2 | M124: 0.16998
A125: 115 | B125: DCBBANK | C125: 169.95 | D125: 170.32 | E125: 168.63 | F125: 167.32 | G125: 165.63 | H125: 171.63 | I125: 173.32 | J125: 174.63 | K125: 172 | L125: 169 | M125: 3.91832
A126: 116 | B126: DCMSHRIRAM | C126: 358.15 | D126: 356.32 | E126: 351.88 | F126: 345.62 | G126: 341.18 | H126: 362.58 | I126: 367.02 | J126: 373.28 | K126: 360.75 | L126: 350.05 | M126: 0.73661
A127: 117 | B127: DLF | C127: 227.8 | D127: 227.32 | E127: 224.68 | F127: 221.57 | G127: 218.93 | H127: 230.43 | I127: 233.07 | J127: 236.18 | K127: 229.95 | L127: 224.2 | M127: 75.30021
A128: 118 | B128: DABUR | C128: 462.8 | D128: 461.40 | E128: 458.60 | F128: 454.40 | G128: 451.60 | H128: 465.60 | I128: 468.40 | J128: 472.60 | K128: 464.2 | L128: 457.2 | M128: 11.78799
A129: 119 | B129: DALBHARAT | C129: 809.45 | D129: 815.60 | E129: 798.85 | F129: 788.25 | G129: 771.50 | H129: 826.20 | I129: 842.95 | J129: 853.55 | K129: 832.35 | L129: 805 | M129: 0.70326
A130: 120 | B130: DEEPAKNTR | C130: 364.65 | D130: 364.75 | E130: 360.10 | F130: 355.55 | G130: 350.90 | H130: 369.30 | I130: 373.95 | J130: 378.50 | K130: 369.4 | L130: 360.2 | M130: 3.98082
A131: 121 | B131: DELTACORP | C131: 208.5 | D131: 209.03 | E131: 201.82 | F131: 195.13 | G131: 187.92 | H131: 215.72 | I131: 222.93 | J131: 229.62 | K131: 216.25 | L131: 202.35 | M131: 10.99589
A132: 122 | B132: DEN | C132: 38.85 | D132: 38.92 | E132: 38.03 | F132: 37.22 | G132: 36.33 | H132: 39.73 | I132: 40.62 | J132: 41.43 | K132: 39.8 | L132: 38.1 | M132: 0.11494
A133: 123 | B133: DHFL | C133: 16.95 | D133: 16.95 | E133: 16.95 | F133: 16.95 | G133: 16.95 | H133: 16.95 | I133: 16.95 | J133: 16.95 | K133: 16.95 | L133: 16.95 | M133: 2.91222
A134: 124 | B134: DBL | C134: 417.95 | D134: 413.28 | E134: 401.87 | F134: 385.78 | G134: 374.37 | H134: 429.37 | I134: 440.78 | J134: 456.87 | K134: 424.7 | L134: 397.2 | M134: 13.3773
A135: 125 | B135: DISHTV | C135: 13 | D135: 13.07 | E135: 12.78 | F135: 12.57 | G135: 12.28 | H135: 13.28 | I135: 13.57 | J135: 13.78 | K135: 13.35 | L135: 12.85 | M135: 245.15191
A136: 126 | B136: DCAL | C136: 119.55 | D136: 120.23 | E136: 117.32 | F136: 115.08 | G136: 112.17 | H136: 122.47 | I136: 125.38 | J136: 127.62 | K136: 123.15 | L136: 118 | M136: 1.68156
A137: 127 | B137: DIVISLAB | C137: 1837.85 | D137: 1834.57 | E137: 1824.58 | F137: 1811.32 | G137: 1801.33 | H137: 1847.83 | I137: 1857.82 | J137: 1871.08 | K137: 1844.55 | L137: 1821.3 | M137: 4.61114
A138: 128 | B138: DIXON | C138: 3622.3 | D138: 3621.93 | E138: 3550.37 | F138: 3478.43 | G138: 3406.87 | H138: 3693.87 | I138: 3765.43 | J138: 3837.37 | K138: 3693.5 | L138: 3550 | M138: 0.58162
A139: 129 | B139: LALPATHLAB | C139: 1489.3 | D139: 1487.30 | E139: 1467.00 | F139: 1444.70 | G139: 1424.40 | H139: 1509.60 | I139: 1529.90 | J139: 1552.20 | K139: 1507.6 | L139: 1465 | M139: 0.99515
A140: 130 | B140: DRREDDY | C140: 2873.45 | D140: 2858.90 | E140: 2841.55 | F140: 2809.65 | G140: 2792.30 | H140: 2890.80 | I140: 2908.15 | J140: 2940.05 | K140: 2876.25 | L140: 2827 | M140: 5.31232
A141: 131 | B141: EIDPARRY | C141: 201.3 | D141: 201.80 | E141: 197.80 | F141: 194.30 | G141: 190.30 | H141: 205.30 | I141: 209.30 | J141: 212.80 | K141: 205.8 | L141: 198.3 | M141: 2.12061
A142: 132 | B142: EIHOTEL | C142: 142.2 | D142: 142.50 | E142: 141.20 | F142: 140.20 | G142: 138.90 | H142: 143.50 | I142: 144.80 | J142: 145.80 | K142: 143.8 | L142: 141.5 | M142: 0.35225
A143: 133 | B143: EDELWEISS | C143: 115.9 | D143: 116.23 | E143: 114.47 | F143: 113.03 | G143: 111.27 | H143: 117.67 | I143: 119.43 | J143: 120.87 | K143: 118 | L143: 114.8 | M143: 7.72267
A144: 134 | B144: EICHERMOT | C144: 21735.85 | D144: 21708.10 | E144: 21443.75 | F144: 21151.65 | G144: 20887.30 | H144: 22000.20 | I144: 22264.55 | J144: 22556.65 | K144: 21972.45 | L144: 21416 | M144: 1.01443
A145: 135 | B145: ELGIEQUIP | C145: 250.05 | D145: 251.12 | E145: 247.48 | F145: 244.92 | G145: 241.28 | H145: 253.68 | I145: 257.32 | J145: 259.88 | K145: 254.75 | L145: 248.55 | M145: 0.05379
A146: 136 | B146: EMAMILTD | C146: 304.3 | D146: 304.28 | E146: 301.47 | F146: 298.63 | G146: 295.82 | H146: 307.12 | I146: 309.93 | J146: 312.77 | K146: 307.1 | L146: 301.45 | M146: 1.90286
A147: 137 | B147: ENDURANCE | C147: 1050.5 | D147: 1054.30 | E147: 1035.60 | F147: 1020.70 | G147: 1002.00 | H147: 1069.20 | I147: 1087.90 | J147: 1102.80 | K147: 1073 | L147: 1039.4 | M147: 0.25448
A148: 138 | B148: ENGINERSIN | C148: 101.8 | D148: 102.30 | E148: 101.00 | F148: 100.20 | G148: 98.90 | H148: 103.10 | I148: 104.40 | J148: 105.20 | K148: 103.6 | L148: 101.5 | M148: 5.567
A149: 139 | B149: EQUITAS | C149: 104.4 | D149: 104.75 | E149: 103.40 | F149: 102.40 | G149: 101.05 | H149: 105.75 | I149: 107.10 | J149: 108.10 | K149: 106.1 | L149: 103.75 | M149: 33.46919
A150: 140 | B150: ERIS | C150: 475.6 | D150: 479.38 | E150: 468.77 | F150: 461.93 | G150: 451.32 | H150: 486.22 | I150: 496.83 | J150: 503.67 | K150: 490 | L150: 472.55 | M150: 0.40551
A151: 141 | B151: ESCORTS | C151: 611.4 | D151: 612.18 | E151: 606.42 | F151: 601.43 | G151: 595.67 | H151: 617.17 | I151: 622.93 | J151: 627.92 | K151: 617.95 | L151: 607.2 | M151: 12.57704
A152: 142 | B152: ESSELPACK | C152: 151.2 | D152: 151.18 | E152: 149.47 | F152: 147.73 | G152: 146.02 | H152: 152.92 | I152: 154.63 | J152: 156.37 | K152: 152.9 | L152: 149.45 | M152: 0.26191
A153: 143 | B153: EXIDEIND | C153: 183.2 | D153: 183.60 | E153: 181.80 | F153: 180.40 | G153: 178.60 | H153: 185.00 | I153: 186.80 | J153: 188.20 | K153: 185.4 | L153: 182.2 | M153: 27.87401
A154: 144 | B154: FDC | C154: 201.4 | D154: 201.02 | E154: 199.73 | F154: 198.07 | G154: 196.78 | H154: 202.68 | I154: 203.97 | J154: 205.63 | K154: 202.3 | L154: 199.35 | M154: 0.14509
A155: 145 | B155: FEDERALBNK | C155: 86 | D155: 86.02 | E155: 85.23 | F155: 84.47 | G155: 83.68 | H155: 86.78 | I155: 87.57 | J155: 88.33 | K155: 86.8 | L155: 85.25 | M155: 68.70094
A156: 146 | B156: FMGOETZE | C156: 652.95 | D156: 655.07 | E156: 646.08 | F156: 639.22 | G156: 630.23 | H156: 661.93 | I156: 670.92 | J156: 677.78 | K156: 664.05 | L156: 648.2 | M156: 2.10352
A157: 147 | B157: FINEORG | C157: 1795.35 | D157: 1799.30 | E157: 1783.60 | F157: 1771.85 | G157: 1756.15 | H157: 1811.05 | I157: 1826.75 | J157: 1838.50 | K157: 1815 | L157: 1787.55 | M157: 0.04022
A158: 148 | B158: FINCABLES | C158: 368.65 | D158: 367.37 | E158: 362.43 | F158: 356.22 | G158: 351.28 | H158: 373.58 | I158: 378.52 | J158: 384.73 | K158: 372.3 | L158: 361.15 | M158: 1.08087
A159: 149 | B159: FINPIPE | C159: 543.15 | D159: 545.72 | E159: 538.03 | F159: 532.92 | G159: 525.23 | H159: 550.83 | I159: 558.52 | J159: 563.63 | K159: 553.4 | L159: 540.6 | M159: 0.98168
A160: 150 | B160: FSL | C160: 41.5 | D160: 41.10 | E160: 40.40 | F160: 39.30 | G160: 38.60 | H160: 42.20 | I160: 42.90 | J160: 44.00 | K160: 41.8 | L160: 40 | M160: 20.52993
A161: 151 | B161: FORTIS | C161: 133.45 | D161: 134.03 | E161: 132.52 | F161: 131.58 | G161: 130.07 | H161: 134.97 | I161: 136.48 | J161: 137.42 | K161: 135.55 | L161: 133.1 | M161: 3.18911
A162: 152 | B162: FCONSUMER | C162: 23.8 | D162: 23.87 | E162: 23.58 | F162: 23.37 | G162: 23.08 | H162: 24.08 | I162: 24.37 | J162: 24.58 | K162: 24.15 | L162: 23.65 | M162: 3.58002
A163: 153 | B163: FLFL | C163: 396.65 | D163: 395.90 | E163: 392.80 | F163: 388.95 | G163: 385.85 | H163: 399.75 | I163: 402.85 | J163: 406.70 | K163: 399 | L163: 392.05 | M163: 0.05639
A164: 154 | B164: FRETAIL | C164: 342.3 | D164: 339.93 | E164: 335.37 | F164: 328.43 | G164: 323.87 | H164: 346.87 | I164: 351.43 | J164: 358.37 | K164: 344.5 | L164: 333 | M164: 3.01925
A165: 155 | B165: GAIL | C165: 117.35 | D165: 118.08 | E165: 115.87 | F165: 114.38 | G165: 112.17 | H165: 119.57 | I165: 121.78 | J165: 123.27 | K165: 120.3 | L165: 116.6 | M165: 94.45724
A166: 156 | B166: GEPIL | C166: 725 | D166: 719.18 | E166: 710.52 | F166: 696.03 | G166: 687.37 | H166: 733.67 | I166: 742.33 | J166: 756.82 | K166: 727.85 | L166: 704.7 | M166: 0.0979
A167: 157 | B167: GET&D | C167: 153.15 | D167: 154.02 | E167: 150.88 | F167: 148.62 | G167: 145.48 | H167: 156.28 | I167: 159.42 | J167: 161.68 | K167: 157.15 | L167: 151.75 | M167: 0.10975
A168: 158 | B168: GHCL | C168: 192.15 | D168: 193.37 | E168: 190.28 | F168: 188.42 | G168: 185.33 | H168: 195.23 | I168: 198.32 | J168: 200.18 | K168: 196.45 | L168: 191.5 | M168: 0.62281
A169: 159 | B169: GMRINFRA | C169: 21.25 | D169: 21.42 | E169: 20.88 | F169: 20.52 | G169: 19.98 | H169: 21.78 | I169: 22.32 | J169: 22.68 | K169: 21.95 | L169: 21.05 | M169: 185.9856
A170: 160 | B170: GALAXYSURF | C170: 1410 | D170: 1427.37 | E170: 1379.73 | F170: 1349.47 | G170: 1301.83 | H170: 1457.63 | I170: 1505.27 | J170: 1535.53 | K170: 1475 | L170: 1397.1 | M170: 0.63127
A171: 161 | B171: GARFIBRES | C171: 1162.65 | D171: 1164.18 | E171: 1142.42 | F171: 1122.18 | G171: 1100.42 | H171: 1184.42 | I171: 1206.18 | J171: 1226.42 | K171: 1185.95 | L171: 1143.95 | M171: 0.68989
A172: 162 | B172: GAYAPROJ | C172: 80.9 | D172: 80.88 | E172: 78.42 | F172: 75.93 | G172: 73.47 | H172: 83.37 | I172: 85.83 | J172: 88.32 | K172: 83.35 | L172: 78.4 | M172: 2.99765
A173: 163 | B173: GICRE | C173: 236.25 | D173: 237.27 | E173: 233.53 | F173: 230.82 | G173: 227.08 | H173: 239.98 | I173: 243.72 | J173: 246.43 | K173: 241 | L173: 234.55 | M173: 5.67214
A174: 164 | B174: GILLETTE | C174: 6569.75 | D174: 6575.53 | E174: 6534.22 | F174: 6498.68 | G174: 6457.37 | H174: 6611.07 | I174: 6652.38 | J174: 6687.92 | K174: 6616.85 | L174: 6540 | M174: 0.02512
A175: 165 | B175: GLAXO | C175: 1637.75 | D175: 1637.77 | E175: 1616.08 | F175: 1594.42 | G175: 1572.73 | H175: 1659.43 | I175: 1681.12 | J175: 1702.78 | K175: 1659.45 | L175: 1616.1 | M175: 0.76305
A176: 166 | B176: GLENMARK | C176: 353.8 | D176: 351.02 | E176: 345.88 | F176: 337.97 | G176: 332.83 | H176: 358.93 | I176: 364.07 | J176: 371.98 | K176: 356.15 | L176: 343.1 | M176: 23.8769
A177: 167 | B177: GODFRYPHLP | C177: 1260.85 | D177: 1264.45 | E177: 1226.40 | F177: 1191.95 | G177: 1153.90 | H177: 1298.90 | I177: 1336.95 | J177: 1371.40 | K177: 1302.5 | L177: 1230 | M177: 2.26903
A178: 168 | B178: GODREJAGRO | C178: 499.65 | D178: 498.55 | E178: 496.10 | F178: 492.55 | G178: 490.10 | H178: 502.10 | I178: 504.55 | J178: 508.10 | K178: 501 | L178: 495 | M178: 0.18703
A179: 169 | B179: GODREJCP | C179: 680.3 | D179: 680.10 | E179: 675.20 | F179: 670.10 | G179: 665.20 | H179: 685.20 | I179: 690.10 | J179: 695.20 | K179: 685 | L179: 675 | M179: 5.12282
A180: 170 | B180: GODREJIND | C180: 425.15 | D180: 427.03 | E180: 417.12 | F180: 409.08 | G180: 399.17 | H180: 435.07 | I180: 444.98 | J180: 453.02 | K180: 436.95 | L180: 419 | M180: 0.72827
A181: 171 | B181: GODREJPROP | C181: 924.35 | D181: 923.97 | E181: 913.03 | F181: 901.72 | G181: 890.78 | H181: 935.28 | I181: 946.22 | J181: 957.53 | K181: 934.9 | L181: 912.65 | M181: 2.39156
A182: 172 | B182: GRANULES | C182: 128.05 | D182: 127.63 | E182: 126.77 | F182: 125.48 | G182: 124.62 | H182: 128.92 | I182: 129.78 | J182: 131.07 | K182: 128.5 | L182: 126.35 | M182: 3.40697
A183: 173 | B183: GRAPHITE | C183: 309.25 | D183: 309.13 | E183: 305.37 | F183: 301.48 | G183: 297.72 | H183: 313.02 | I183: 316.78 | J183: 320.67 | K183: 312.9 | L183: 305.25 | M183: 15.81257
A184: 174 | B184: GRASIM | C184: 754.2 | D184: 760.70 | E184: 745.00 | F184: 735.80 | G184: 720.10 | H184: 769.90 | I184: 785.60 | J184: 794.80 | K184: 776.4 | L184: 751.5 | M184: 16.74043
A185: 175 | B185: GESHIP | C185: 300.35 | D185: 299.62 | E185: 296.73 | F185: 293.12 | G185: 290.23 | H185: 303.23 | I185: 306.12 | J185: 309.73 | K185: 302.5 | L185: 296 | M185: 0.91041
A186: 176 | B186: GREAVESCOT | C186: 131.7 | D186: 129.78 | E186: 127.37 | F186: 123.03 | G186: 120.62 | H186: 134.12 | I186: 136.53 | J186: 140.87 | K186: 132.2 | L186: 125.45 | M186: 1.696
A187: 177 | B187: GRINDWELL | C187: 575.05 | D187: 575.40 | E187: 571.80 | F187: 568.55 | G187: 564.95 | H187: 578.65 | I187: 582.25 | J187: 585.50 | K187: 579 | L187: 572.15 | M187: 0.0502
A188: 178 | B188: GUJALKALI | C188: 396.9 | D188: 396.85 | E188: 393.85 | F188: 390.80 | G188: 387.80 | H188: 399.90 | I188: 402.90 | J188: 405.95 | K188: 399.85 | L188: 393.8 | M188: 0.13461
A189: 179 | B189: GUJGASLTD | C189: 229.7 | D189: 229.17 | E189: 227.58 | F189: 225.47 | G189: 223.88 | H189: 231.28 | I189: 232.87 | J189: 234.98 | K189: 230.75 | L189: 227.05 | M189: 2.74893
A190: 180 | B190: GMDCLTD | C190: 58 | D190: 58.02 | E190: 57.13 | F190: 56.27 | G190: 55.38 | H190: 58.88 | I190: 59.77 | J190: 60.63 | K190: 58.9 | L190: 57.15 | M190: 0.91018
A191: 181 | B191: GNFC | C191: 173.05 | D191: 173.02 | E191: 170.53 | F191: 168.02 | G191: 165.53 | H191: 175.53 | I191: 178.02 | J191: 180.53 | K191: 175.5 | L191: 170.5 | M191: 2.3446
A192: 182 | B192: GPPL | C192: 84.05 | D192: 84.00 | E192: 82.65 | F192: 81.25 | G192: 79.90 | H192: 85.40 | I192: 86.75 | J192: 88.15 | K192: 85.35 | L192: 82.6 | M192: 1.36917
A193: 183 | B193: GSFC | C193: 68.7 | D193: 68.98 | E193: 68.07 | F193: 67.43 | G193: 66.52 | H193: 69.62 | I193: 70.53 | J193: 71.17 | K193: 69.9 | L193: 68.35 | M193: 1.55959
A194: 184 | B194: GSPL | C194: 217.35 | D194: 217.25 | E194: 216.30 | F194: 215.25 | G194: 214.30 | H194: 218.30 | I194: 219.25 | J194: 220.30 | K194: 218.2 | L194: 216.2 | M194: 1.38337
A195: 185 | B195: GULFOILLUB | C195: 830.05 | D195: 825.63 | E195: 819.47 | F195: 808.88 | G195: 802.72 | H195: 836.22 | I195: 842.38 | J195: 852.97 | K195: 831.8 | L195: 815.05 | M195: 0.04014
A196: 186 | B196: HEG | C196: 1117.6 | D196: 1119.75 | E196: 1099.50 | F196: 1081.40 | G196: 1061.15 | H196: 1137.85 | I196: 1158.10 | J196: 1176.20 | K196: 1140 | L196: 1101.65 | M196: 3.73514
A197: 187 | B197: HCLTECH | C197: 564.7 | D197: 563.55 | E197: 560.15 | F197: 555.60 | G197: 552.20 | H197: 568.10 | I197: 571.50 | J197: 576.05 | K197: 566.95 | L197: 559 | M197: 46.18387
A198: 188 | B198: HDFCAMC | C198: 3145.6 | D198: 3145.33 | E198: 3125.77 | F198: 3105.93 | G198: 3086.37 | H198: 3165.17 | I198: 3184.73 | J198: 3204.57 | K198: 3164.9 | L198: 3125.5 | M198: 4.3795
A199: 189 | B199: HDFCBANK | C199: 1292.35 | D199: 1288.33 | E199: 1277.67 | F199: 1262.98 | G199: 1252.32 | H199: 1303.02 | I199: 1313.68 | J199: 1328.37 | K199: 1299 | L199: 1273.65 | M199: 87.23586
A200: 190 | B200: HDFCLIFE | C200: 601.5 | D200: 598.17 | E200: 591.53 | F200: 581.57 | G200: 574.93 | H200: 608.13 | I200: 614.77 | J200: 624.73 | K200: 604.8 | L200: 588.2 | M200: 30.92926
A201: 191 | B201: HATHWAY | C201: 19.55 | D201: 19.62 | E201: 19.43 | F201: 19.32 | G201: 19.13 | H201: 19.73 | I201: 19.92 | J201: 20.03 | K201: 19.8 | L201: 19.5 | M201: 0.92257
A202: 192 | B202: HATSUN | C202: 567.7 | D202: 570.12 | E202: 564.23 | F202: 560.77 | G202: 554.88 | H202: 573.58 | I202: 579.47 | J202: 582.93 | K202: 576 | L202: 566.65 | M202: 0.02907
A203: 193 | B203: HAVELLS | C203: 652.05 | D203: 647.70 | E203: 640.40 | F203: 628.75 | G203: 621.45 | H203: 659.35 | I203: 666.65 | J203: 678.30 | K203: 655 | L203: 636.05 | M203: 13.25539
A204: 194 | B204: HEIDELBERG | C204: 177.8 | D204: 177.62 | E204: 175.43 | F204: 173.07 | G204: 170.88 | H204: 179.98 | I204: 182.17 | J204: 184.53 | K204: 179.8 | L204: 175.25 | M204: 2.13474
A205: 195 | B205: HERITGFOOD | C205: 337.35 | D205: 336.50 | E205: 326.35 | F205: 315.35 | G205: 305.20 | H205: 347.50 | I205: 357.65 | J205: 368.65 | K205: 346.65 | L205: 325.5 | M205: 0.3339
A206: 196 | B206: HEROMOTOCO | C206: 2311.95 | D206: 2307.33 | E206: 2294.67 | F206: 2277.38 | G206: 2264.72 | H206: 2324.62 | I206: 2337.28 | J206: 2354.57 | K206: 2320 | L206: 2290.05 | M206: 9.52321
... 320 more rows

Sheet Bulk Deals
E6: Back To Main Page
A7: Subject : | B7: BULK DEAL | D7: =Main!B10 -> 2019-12-19
A9: Date | B9: Scrip code | C9: Scrip Name | D9: Client Name | E9: Buy / Sell | F9: Quantity Traded | G9: Trade Price / Wt.Avg.trade price | H9: Exchange
A10: 2019-12-18 | B10: 538812 | C10: AANCHALISP | D10: YMD FINANCIAL CONSULTANCY PRIVATE LIMITED | E10: BUY | F10: 104,167 | G10: 12.80 | H10: BSE
A11: 2019-12-18 | B11: 538812 | C11: AANCHALISP | D11: YMD FINANCIAL CONSULTANCY PRIVATE LIMITED | E11: SELL | F11: 129,167 | G11: 13.61 | H11: BSE
A12: 2019-12-18 | B12: 538778 | C12: AKASHDEEP | D12: SIRIUS ADVISORS PRIVATE LIMITED. | E12: SELL | F12: 112,022 | G12: 19.84 | H12: BSE
A13: 2019-12-18 | B13: 538778 | C13: AKASHDEEP | D13: ARNOLD HOLDINGS LIMITED | E13: SELL | F13: 75,000 | G13: 18.9 | H13: BSE
A14: 2019-12-18 | B14: 541702 | C14: ASHNI | D14: MOHAN LAKSHMI | E14: SELL | F14: 25,000 | G14: 3.82 | H14: BSE
A15: 2019-12-18 | B15: 541702 | C15: ASHNI | D15: HANSABEN HASMUKHBHAI AMIN | E15: BUY | F15: 26,356 | G15: 3.82 | H15: BSE
A16: 2019-12-18 | B16: 539274 | C16: BLFL | D16: KALPESH ANILBHAI MALVI | E16: SELL | F16: 41,985 | G16: 2.89 | H16: BSE
A17: 2019-12-18 | B17: 530249 | C17: BRIDGESE | D17: HEMVIN CONSTRUCTION LIMITED | E17: SELL | F17: 90,000 | G17: 3.96 | H17: BSE
A18: 2019-12-18 | B18: 530249 | C18: BRIDGESE | D18: VISHAL PRAGNESHBHAI SHAH | E18: BUY | F18: 90,500 | G18: 3.96 | H18: BSE
A19: 2019-12-18 | B19: 530643 | C19: ECORECO | D19: BRIJKISHOR KISHANGOPAL SONI | E19: BUY | F19: 100,000 | G19: 30.00 | H19: BSE
A20: 2019-12-18 | B20: 530643 | C20: ECORECO | D20: FIRST ONLINE COMTRADES PRIVATE LIMITED | E20: SELL | F20: 100,000 | G20: 30 | H20: BSE
A21: 2019-12-18 | B21: 540064 | C21: FRETAIL | D21: FUTURE COUPONS PRIVATE LIMITED | E21: BUY | F21: 2,666,287 | G21: 341.00 | H21: BSE
A22: 2019-12-18 | B22: 540064 | C22: FRETAIL | D22: FUTURE CORPORATE RESOURCES PRIVATE LIMITED | E22: SELL | F22: 2,666,287 | G22: 341.00 | H22: BSE
A23: 2019-12-18 | B23: 538765 | C23: JSHL | D23: ASHOK KUMAR AGRAWAL | E23: SELL | F23: 50,000 | G23: 11.5 | H23: BSE
A24: 2019-12-18 | B24: 539599 | C24: KEL | D24: HIGH SPIRITS SALES AGENCIES PRIVATE LIMITED | E24: BUY | F24: 50,525 | G24: 21.02 | H24: BSE
A25: 2019-12-18 | B25: 539599 | C25: KEL | D25: ECLEAR LEASING & FINANCE PRIVATE LIMITED | E25: SELL | F25: 199,000 | G25: 21 | H25: BSE
A26: 2019-12-18 | B26: 511768 | C26: MASTERTR | D26: G.S. AUTO LEASING LTD. | E26: BUY | F26: 2,962,765 | G26: 12.79 | H26: BSE
A27: 2019-12-18 | B27: 511768 | C27: MASTERTR | D27: GALA FINANCE AND INVESTMENT LIMITED | E27: SELL | F27: 1,292,322 | G27: 12.79 | H27: BSE
A28: 2019-12-18 | B28: 511768 | C28: MASTERTR | D28: CONVEXITY SOLUTIONS AND ADVISORS PRIVATE LIMITED | E28: SELL | F28: 1,749,800 | G28: 12.79 | H28: BSE
A29: 2019-12-18 | B29: 540080 | C29: NARAYANI | D29: PALLAS FINCAP PRIVATE LIMITED . | E29: BUY | F29: 100,198 | G29: 34.83 | H29: BSE
A30: 2019-12-18 | B30: 530733 | C30: NOVAPUB | D30: SEKH GOLAMAHEMAD RAZA | E30: BUY | F30: 65,900 | G30: 14.37 | H30: BSE
A31: 2019-12-18 | B31: 504335 | C31: PAZEL | D31: PRATIK HASMUKH GALA | E31: BUY | F31: 1,030,000 | G31: 0.48 | H31: BSE
A32: 2019-12-18 | B32: 512217 | C32: PRISMMEDI | D32: SHASHI MAKKAD . | E32: BUY | F32: 100,000 | G32: 23.39 | H32: BSE
A33: 2019-12-18 | B33: 512217 | C33: PRISMMEDI | D33: VISHAL MAHESH WAGHELA | E33: BUY | F33: 10 | G33: 22.85 | H33: BSE
A34: 2019-12-18 | B34: 512217 | C34: PRISMMEDI | D34: DHARTI NILESH PARIKH | E34: BUY | F34: 43,449 | G34: 22.2 | H34: BSE
A35: 2019-12-18 | B35: 512217 | C35: PRISMMEDI | D35: DHARTI NILESH PARIKH | E35: SELL | F35: 478 | G35: 22.01 | H35: BSE
A36: 2019-12-18 | B36: 512217 | C36: PRISMMEDI | D36: VISHAL MAHESH WAGHELA | E36: SELL | F36: 97,925 | G36: 23.4 | H36: BSE
A37: 2019-12-18 | B37: 526093 | C37: SATHAISPAT | D37: HESHIKA GROWTH FUND | E37: SELL | F37: 1,099,801 | G37: 1.61 | H37: BSE
A38: 2019-12-18 | B38: 526093 | C38: SATHAISPAT | D38: NARESH KUMAR ADUSUMILLI | E38: BUY | F38: 1,000,000 | G38: 1.61 | H38: BSE
A39: 2019-12-18 | B39: 523023 | C39: SINCLAIR | D39: PRESSMAN REALTY LIMITED | E39: BUY | F39: 204,310 | G39: 358.43 | H39: BSE
A40: 2019-12-18 | B40: 523023 | C40: SINCLAIR | D40: SUNITA VINAY GOENKA | E40: SELL | F40: 37,401 | G40: 359 | H40: BSE
A41: 2019-12-18 | B41: 523023 | C41: SINCLAIR | D41: VINAY KUMAR GOENKA | E41: SELL | F41: 163,888 | G41: 358.65 | H41: BSE
A42: 2019-12-18 | B42: 539026 | C42: SSPNFIN | D42: DEVJEET CHAKRABORTY | E42: BUY | F42: 12,000 | G42: 95 | H42: BSE
A43: 2019-12-18 | B43: 539026 | C43: SSPNFIN | D43: RUSHIL SHAILESH PANDYA | E43: SELL | F43: 12,000 | G43: 94.6 | H43: BSE
A44: 2019-12-18 | B44: 539026 | C44: SSPNFIN | D44: DINANATH YADAV | E44: BUY | F44: 14,000 | G44: 94.96 | H44: BSE
A45: 2019-12-18 | B45: 539026 | C45: SSPNFIN | D45: DINANATH YADAV | E45: SELL | F45: 6,000 | G45: 94.9 | H45: BSE
A46: 2019-12-18 | B46: 540492 | C46: STARLINE | D46: PANTH INFINITY LIMITED . | E46: SELL | F46: 195,000 | G46: 20.05 | H46: BSE
A47: 2019-12-18 | B47: CKPLEISURE | C47: CKP Leisure Limited | D47: SUKHDEV | E47: BUY | F47: 68,000 | G47: 7.23 | H47: NSE
A48: 2019-12-18 | B48: IBULHSGFIN | C48: Indiabulls Hsg Fin Ltd | D48: TOWER RESEARCH CAPITAL MARKETS INDIA PRIVATE LIMITED | E48: BUY | F48: 2,255,500 | G48: 302.84 | H48: NSE
A49: 2019-12-18 | B49: TATAELXSI | C49: Tata Elxsi Limited | D49: SURJECTIVE RESEARCH CAPITAL LLP | E49: BUY | F49: 398,835 | G49: 879.22 | H49: NSE
A50: 2019-12-18 | B50: IBULHSGFIN | C50: Indiabulls Hsg Fin Ltd | D50: TOWER RESEARCH CAPITAL MARKETS INDIA PRIVATE LIMITED | E50: SELL | F50: 2,243,418 | G50: 302.82 | H50: NSE
A51: 2019-12-18 | B51: TATAELXSI | C51: Tata Elxsi Limited | D51: SURJECTIVE RESEARCH CAPITAL LLP | E51: SELL | F51: 399,805 | G51: 880 | H51: NSE

Sheet Call Tracker (Equity & F&O)
M5: Back To Main Page
A6: Retail Research Technical Calls & Fundamental Performance Report for the month of December-2019
M7: =Main!B10 -> 2019-12-19
B8: Positional Call
A9: Sr.no | B9: Date | D9: Company | E9: Rec | F9: Rec Price | G9: Stop Loss*** | H9: Call Closed At | I9: Target | J9: Remark | K9: Profit / Loss per Share | L9: Gain / Loss % | M9: Status | N9: Closed Date | O9: NSE Closed Price
A10: 1 | B10: 2019-10-07 | D10: PIDILITIND | E10: Buy{} | F10: 1367.5 | G10: 1297 | H10: 1413.5 | I10: 1500-1520 | J10: Part Profit of Rs.46/- | K10: =H10-F10 -> 46 | L10: =K10/F10 -> 3.36% | M10: Successful | N10: 2019-10-31 | O10: =VLOOKUP(D10,Sheet2!A51:M1690,6,0) -> 1364.7 | R10: R
A11: 2 | B11: 2019-11-11 | D11: POWERGRID | E11: Buy{} | F11: 192 | G11: 183 | H11: 190 | I11: 208-212 | J11: Loss of Rs.2/- | K11: =H11-F11 -> -2 | L11: =K11/F11 -> -1.04% | M11: Unsuccessful | N11: 2019-12-11 | R11: R
A12: 3 | B12: 2019-11-14 | D12: HEIDELBERG | E12: Buy{} | F12: 186.5 | G12: 174 | H12: 194.5 | I12: 205-210 | J12: Part Profit of Rs.8/- | K12: =H12-F12 -> 8 | L12: =K12/F12 -> 4.29% | M12: Successful | N12: 2019-11-20 | O12: =VLOOKUP(D12,Sheet2!A71:M1710,6,0) -> 177.8 | R12: H
A13: 4 | B13: 2019-11-18 | D13: BAJAJ-AUTO | E13: Sell | F13: 3180-3200 | G13: 3356.7 | I13: 2900-2850 | J13: Open | O13: =VLOOKUP(D13,Sheet2!A74:M1713,6,0) -> 3213.65 | R13: R
A14: 5 | B14: 2019-11-18 | D14: THERMAX | E14: Buy | F14: 1025-1035 | G14: 977 | I14: 1120-1140 | J14: Open | O14: =VLOOKUP(D14,Sheet2!A75:M1714,6,0) -> 1056.5 | R14: H
A15: 6 | B15: 2019-11-20 | D15: BRITANNIA | E15: Buy | F15: 3075-3100 | G15: 2930 | I15: 3380-3420 | J15: Open | O15: =VLOOKUP(D15,Sheet2!A76:M1715,6,0) -> 3099.2 | R15: H
A16: 7 | B16: 2019-11-21 | D16: HINDUNILVR | E16: Buy | F16: 2020 | G16: 1917 | H16: 2082 | I16: 2200-2250 | J16: Part Profit of Rs.62/- | K16: =H16-F16 -> 62 | L16: =K16/F16 -> 3.07% | M16: Successful | N16: 2019-11-27 | O16: =VLOOKUP(D16,Sheet2!A77:M1716,6,0) -> 1928.55 | R16: H
A17: 8 | B17: 2019-11-22 | D17: GODREJPROP | E17: Buy | F17: 885 | G17: 837.7 | H17: 932.5 | I17: 965-985 | J17: Profit of Rs.47.50/- | K17: =H17-F17 -> 47.5 | L17: =K17/F17 -> 5.37% | M17: Successful | N17: 2019-12-12 | R17: R
A18: 9 | B18: 2019-11-27 | D18: LT | E18: Buy | F18: 1330-1340 | G18: 1270 | I18: 1450-1500 | J18: Open | O18: =VLOOKUP(D18,Sheet2!A80:M1719,6,0) -> 1319.35 | R18: H
A19: 10 | B19: 2019-12-02 | D19: TCS | E19: Buy | F19: 2030 | G19: 1895 | H19: 2110 | I19: 2200-2250 | J19: Profit of Rs.80/- | K19: =H19-F19 -> 80 | L19: =K19/F19 -> 3.94% | M19: Successful | N19: 2019-12-16 | R19: H
A20: 11 | B20: 2019-12-02 | D20: HAVELLS | E20: Buy | F20: 662-667 | G20: 632.7 | I20: 725-735 | J20: Open | O20: =VLOOKUP(D20,Sheet2!A82:M1721,6,0) -> 652.05 | R20: R
A21: 12 | B21: 2019-12-06 | D21: ONGC | E21: Buy | F21: 127-128 | G21: 122 | I21: 140 | J21: Open | O21: =VLOOKUP(D21,Sheet2!A83:M1722,6,0) -> 125.1 | R21: H
A22: 13 | B22: 2019-12-09 | D22: INDUSINDBK | E22: Buy | F22: 1467.5 | G22: 1411 | H22: 1400 | I22: 1570-1590 | J22: Loss of Rs.67.50/- | K22: =H22-F22 -> -67.5 | L22: =K22/F22 -> -4.60% | M22: Unsuccessful | N22: 2019-12-11 | R22: R
A23: 14 | B23: 2019-12-12 | D23: HCLTECH | E23: Buy | F23: 543 | G23: 515 | H23: 560.5 | I23: 590-600 | J23: Part Profit of Rs.17.5/- | K23: 17.5 | L23: 3.22% | M23: Successful | N23: 2019-12-18 | O23: =VLOOKUP(D23,Sheet2!A84:M1723,6,0) -> 564.7 | R23: H
A24: 15 | B24: 2019-12-12 | D24: SUDARSCHEM | E24: Buy | F24: 390-395 | G24: 368 | I24: 435-440 | J24: Open | O24: =VLOOKUP(D24,Sheet2!A86:M1725,6,0) -> 395.1 | R24: H
A25: 16 | B25: 2019-12-17 | D25: VENKEYS | E25: Buy | F25: 1715-1725 | G25: 1638 | I25: 1880-1900 | J25: Open | O25: =VLOOKUP(D25,Sheet2!A87:M1726,6,0) -> 1727.8 | R25: R
A26: 17 | B26: 2019-12-17 | D26: COALINDIA | E26: Buy | F26: 194-196 | G26: 184.6 | I26: 210-215 | J26: Open | O26: =VLOOKUP(D26,Sheet2!A88:M1727,6,0) -> 197.75 | R26: R
A36: CLBS = Closing Basis ***
A37: Dividend adjusted <> | F37: Reinitiated $
A38: Part book {} | F38: Revised stoploss #
B40: Momentum Call
A41: Sr.no | B41: Date | D41: Company | E41: Rec | F41: Rec Price | G41: Stop Loss | H41: Call Closed At | I41: Target | J41: Remark | K41: Profit / Loss per Share/Lot | L41: Gain / Loss % | M41: Gain / Loss per Lot | N41: Lot | O41: Status | P41: Closed Date
A42: 1 | B42: 2019-11-19 | D42: MARICO | E42: Buy | F42: 356 | G42: 344.4 | H42: 342 | I42: 375-380 | J42: Loss of Rs.14/- | K42: =H42-F42 -> -14 | L42: =K42/F42 -> -3.93% | O42: Unsuccessful | P42: 2019-12-06 | R42: R
A43: 2 | B43: 2019-11-25 | D43: ONGC | E43: Buy | F43: 131.5 | G43: 127.3 | H43: 127.3 | I43: 140 | J43: Loss of Rs.4.20/- | K43: =H43-F43 -> -4.2 | L43: =K43/F43 -> -3.19% | O43: Unsuccessful | P43: 2019-12-03 | R43: R
A44: 3 | B44: 2019-11-26 | D44: SUNTV | E44: Buy | F44: 489 | G44: 472.7 | H44: 469.5 | I44: 513-518 | J44: Loss of Rs.19.5/- | K44: =H44-F44 -> -19.5 | L44: =K44/F44 -> -3.99% | O44: Unsuccessful | P44: 2019-12-01 | R44: R
A45: 4 | B45: 2019-11-26 | D45: COLPAL | E45: Buy | F45: 1500 | G45: 1465 | H45: 1450 | I45: 1560-1580 | J45: Loss of Rs.50/- | K45: =H45-F45 -> -50 | L45: =K45/F45 -> -3.33% | O45: Unsuccessful | P45: 2019-12-01 | R45: H
A46: 5 | B46: 2019-11-28 | D46: NIITTECH | E46: Buy | F46: 1494 | G46: 1448.7 | H46: 1445 | I46: 1565-1585 | J46: Loss of Rs.49/- | K46: =H46-F46 -> -49 | L46: -3.28% | O46: Unsuccessful | P46: 2019-12-03 | R46: R
A47: 6 | B47: 2019-11-28 | D47: FEDERALBNK | E47: Sell | F47: 90.25 | G47: 92.5 | H47: 88.1 | I47: 85 | J47: Profit of Rs.2.15/- | K47: =F47-H47 -> 2.15 | L47: =K47/F47 -> 2.38% | O47: Successful | P47: 2019-12-01 | R47: H
A48: 7 | B48: 2019-11-28 | D48: HDFCBANK DEC FUT | E48: Buy | F48: 1271 | G48: 1249 | H48: 1247 | I48: 1300-1310 | J48: Loss of Rs.24/- | K48: =H48-F48 -> -24 | M48: =N48*K48 -> -12000 | N48: 500 | O48: Unsuccessful | P48: 2019-12-04 | R48: N
A49: 8 | B49: 2019-11-29 | D49: BANKBARODA | E49: Buy | F49: 106.5 | G49: 103 | H49: 103 | I49: 111-113 | J49: Loss of Rs.3.5/- | K49: =H49-F49 -> -3.5 | L49: =K49/F49 -> -3.29% | O49: Unsuccessful | P49: 2019-12-03 | R49: H
A50: 9 | B50: 2019-11-29 | D50: GRASIM DEC FUT | E50: Buy | F50: 796 | G50: 779 | H50: 817 | I50: 830 | J50: Profit of Rs.21/- | K50: =H50-F50 -> 21 | M50: =N50*K50 -> 15750 | N50: 750 | O50: Successful | P50: 2019-12-01 | R50: N
A51: 10 | B51: 2019-11-29 | D51: CHAMBLFERT | E51: Buy | F51: 149.5 | G51: 144 | H51: 145 | I51: 157-160 | J51: Loss of Rs.4.5/- | K51: =H51-F51 -> -4.5 | L51: =K51/F51 -> -3.01% | O51: Unsuccessful | P51: 2019-12-10 | R51: H
A52: 11 | B52: 2019-11-29 | D52: RELIANCE | E52: Sell | F52: 1557.5 | G52: 1603 | H52: 1603 | I52: 1475-1465 | J52: Loss of Rs.45.5/- | K52: =F52-H52 -> -45.5 | L52: =K52/F52 -> -2.92% | O52: Unsuccessful | P52: 2019-12-01 | R52: R
A53: 12 | B53: 2019-12-02 | D53: MARUTI DEC FUT | E53: Buy | F53: 7290 | G53: 7140 | H53: 7130 | I53: 7600 | J53: Loss of Rs.160/- | K53: =H53-F53 -> -160 | M53: =N53*K53 -> -12000 | N53: 75 | O53: Unsuccessful | P53: 2019-12-03 | R53: N
A54: 13 | B54: 2019-12-02 | D54: BIOCON | E54: Sell | F54: 286 | G54: 294.7 | H54: 292 | I54: 272-268 | J54: Loss of Rs.6/- | K54: =F54-H54 -> -6 | L54: =K54/F54 -> -2.10% | O54: Unsuccessful | P54: 2019-12-03 | R54: R
A55: 14 | B55: 2019-12-02 | D55: GLENMARK | E55: Buy | F55: 326 | G55: 318 | H55: 335.5 | I55: 340-345 | J55: Profit of Rs.9.50/- | K55: =H55-F55 -> 9.5 | L55: =K55/F55 -> 2.91% | O55: Successful | P55: 2019-12-01 | R55: H
A56: 15 | B56: 2019-12-02 | D56: TORNTPOWER | E56: Buy | F56: 276-278 | G56: 269 | I56: 290-295 | J56: Open | R56: H
A57: 16 | B57: 2019-12-02 | D57: TATACHEM DEC FUT | E57: Buy | F57: 671 | G57: 656 | H57: 657.5 | I57: 700 | J57: Loss of Rs.13.50/- | K57: =H57-F57 -> -13.5 | M57: =N57*K57 -> -12150 | N57: 900 | O57: Unsuccessful | P57: 2019-12-10 | R57: N
A58: 17 | B58: 2019-12-02 | D58: TATAELXSI DEC FUT | E58: Buy | F58: 787.5 | G58: 764.6 | H58: 798 | I58: 820-825 | J58: Profit of Rs.10.5/- | K58: =H58-F58 -> 10.5 | M58: =N58*K58 -> 6300 | N58: 600 | O58: Successful | P58: 2019-12-04 | R58: R
A59: 18 | B59: 2019-12-03 | D59: POWERGRID | E59: Buy | F59: 190.5 | G59: 184 | H59: 183.5 | I59: 200-205 | J59: Loss of Rs.7/- | K59: =H59-F59 -> -7 | L59: =K59/F59 -> -3.67% | O59: Unsuccessful | P59: 2019-12-10 | R59: H
A60: 19 | B60: 2019-12-03 | D60: ITC DEC FUT | E60: Buy | F60: 246.5 | G60: 240 | H60: 241.5 | I60: 256 | J60: Loss of Rs.5/- | K60: =H60-F60 -> -5 | M60: =N60*K60 -> -12000 | N60: 2400 | O60: Unsuccessful | P60: 2019-12-09 | R60: H
A61: 20 | B61: 2019-12-03 | D61: HDFCLIFE | E61: Buy | F61: 580 | G61: 562.6 | H61: 595 | I61: 610-620 | J61: Profit of Rs.15/- | K61: =H61-F61 -> 15 | L61: =K61/F61 -> 2.59% | O61: Successful | P61: 2019-12-13 | R61: R
A62: 21 | B62: 2019-12-03 | D62: VIPIND | E62: Buy | F62: 428-432 | G62: 418.7 | I62: 452-457 | J62: Open | R62: R
A63: 22 | B63: 2019-12-04 | D63: APOLLOHOSP | E63: Buy | F63: 1415 | G63: 1374 | H63: 1443 | I63: 1480-1500 | J63: Profit of Rs.28/- | K63: =H63-F63 -> 28 | L63: =K63/F63 -> 1.98% | O63: Successful | P63: 2019-12-04 | R63: R
A64: 23 | B64: 2019-12-04 | D64: GLENMARK | E64: Buy | F64: 325 | G64: 315 | H64: 333.5 | I64: 340-345 | J64: Profit of Rs.8.50/- | K64: 8.5 | L64: 2.62% | O64: Successful | P64: 2019-12-06 | R64: H
A65: 24 | B65: 2019-12-04 | D65: CESC DEC FUT | E65: Buy | F65: 733 | G65: 718 | H65: 742 | I65: 750-755 | J65: Profit of Rs.9/- | K65: 9 | M65: =N65*K65 -> 7200 | N65: 800 | O65: Successful | P65: 2019-12-04 | R65: N
A66: 25 | B66: 2019-12-04 | D66: LUPIN | E66: Buy | F66: 777.5 | G66: 758 | H66: 789 | I66: 810-820 | J66: Profit of Rs.11.50/- | K66: 11.5 | L66: =K66/F66 -> 1.48% | O66: Successful | P66: 2019-12-04 | R66: H
A67: 26 | B67: 2019-12-04 | D67: ASIANPAINT DEC FUT | E67: Buy | F67: 1736 | G67: 1717.1 | H67: 1747 | I67: 1760-1770 | J67: Profit of Rs.11/- | K67: 11 | M67: =N67*K67 -> 6600 | N67: 600 | O67: Successful | P67: 2019-12-06 | R67: R
A68: 27 | B68: 2019-12-04 | D68: DRREDDY DEC FUT | E68: Buy | F68: 2883 | G68: 2830 | H68: 2917.5 | I68: 2980-3000 | J68: Profit of Rs.34.50/- | K68: 34.5 | M68: =N68*K68 -> 8625 | N68: 250 | O68: Successful | P68: 2019-12-06 | R68: R
A69: 28 | B69: 2019-12-04 | D69: RELIANCE DEC FUT | E69: Buy | F69: 1559.5 | G69: 1438.7 | H69: 1579 | I69: 1600 | J69: Profit of Rs.19.50/- | K69: 19.5 | M69: =N69*K69 -> 9750 | N69: 500 | O69: Successful | P69: 2019-12-05 | R69: R
A70: 29 | B70: 2019-12-04 | D70: TVSMOTOR DEC FUT | E70: Buy | F70: 440 | G70: 429 | H70: 447 | I70: 460 | J70: Profit of Rs.7/- | K70: 7 | M70: =N70*K70 -> 7700 | N70: 1100 | O70: Successful | P70: 2019-12-04 | R70: H
A71: 30 | B71: 2019-12-04 | D71: EXIDEIND DEC FUT | E71: Buy | F71: 188.5 | G71: 183 | H71: 183.5 | I71: 198 | J71: Loss of Rs.5/- | K71: -5 | M71: =N71*K71 -> -12000 | N71: 2400 | O71: Unsuccessful | P71: 2019-12-06 | R71: N
A72: 31 | B72: 2019-12-04 | D72: RAMCOCEM | E72: Buy | F72: 783-786 | G72: 767.7 | I72: 810-820 | J72: Open | R72: R
A73: 32 | B73: 2019-12-04 | D73: COLPAL DEC FUT | E73: Buy | F73: 1461 | G73: 1445 | H73: 1471 | I73: 1490 | J73: Profit of Rs.10/- | K73: =H73-F73 -> 10 | M73: =N73*K73 -> 7000 | N73: 700 | O73: Successful | P73: 2019-12-05 | R73: N
A74: 33 | B74: 2019-12-04 | D74: MOTHERSUMI | E74: Sell | F74: 133.25 | G74: 137 | H74: 130.25 | I74: 125 | J74: Profit of Rs.3/- | K74: =F74-H74 -> 3 | L74: =K74/F74 -> 2.25% | O74: Successful | P74: 2019-12-05 | R74: R
A75: 34 | B75: 2019-12-05 | D75: UBL | E75: Buy | F75: 1220-1230 | G75: 1190 | I75: 1280-1300 | J75: Open | R75: H
A76: 35 | B76: 2019-12-05 | D76: CESC DEC FUT | E76: Buy | F76: 738 | G76: 723 | H76: 723 | I76: 760-765 | J76: Loss of Rs.15/- | K76: =H76-F76 -> -15 | M76: =N76*K76 -> -12000 | N76: 800 | O76: Unsuccessful | P76: 2019-12-06 | R76: N
A77: 36 | B77: 2019-12-06 | D77: HCLTECH | E77: Buy | F77: 563 | G77: 547 | H77: 547.5 | I77: 590-600 | J77: Loss of Rs.15.50/- | K77: =H77-F77 -> -15.5 | L77: =K77/F77 -> -2.75% | O77: Unsuccessful | P77: 2019-12-10 | R77: H
A78: 37 | B78: 2019-12-06 | D78: ACC DEC FUT | E78: Buy | F78: 1492 | G78: 1462 | H78: 1464 | I78: 1540-1560 | J78: Loss of Rs.28/- | K78: =H78-F78 -> -28 | M78: =N78*K78 -> -11200 | N78: 400 | O78: Unsuccessful | P78: 2019-12-10 | R78: N
A79: 39 | B79: 2019-12-09 | D79: PNB | E79: Sell | F79: 61.25 | G79: 63 | H79: 60 | I79: 58 | J79: Profit of Rs.1.25/- | K79: =F79-H79 -> 1.25 | L79: =K79/F79 -> 2.04% | O79: Successful | P79: 2019-12-10 | R79: H
A80: 40 | B80: 2019-12-09 | D80: COLPAL DEC FUT | E80: Buy | F80: 1468.5 | G80: 1454 | H80: 1478.5 | I80: 1490 | J80: Profit of Rs.10/- | K80: =H80-F80 -> 10 | M80: =N80*K80 -> 7000 | N80: 700 | O80: Successful | P80: 2019-12-10 | R80: N
A81: 41 | B81: 2019-12-09 | D81: TVSMOTOR DEC FUT | E81: Buy | F81: 440.5 | G81: 428 | H81: 428 | I81: 460 | J81: Loss of Rs.12.50/- | K81: =H81-F81 -> -12.5 | M81: =N81*K81 -> -12500 | N81: 1000 | O81: Unsuccessful | P81: 2019-12-11 | R81: N
A82: 42 | B82: 2019-12-10 | D82: APOLLOTYRE | E82: Buy | F82: 169 | G82: 163.7 | H82: 163 | I82: 180 | J82: Loss of Rs.6/- | K82: =H82-F82 -> -6 | L82: =K82/F82 -> -3.55% | O82: Unsuccessful | P82: 2019-12-10 | R82: R
A83: 43 | B83: 2019-12-10 | D83: COLPAL DEC FUT | E83: Buy | F83: 1462 | G83: 1446 | H83: 1474 | I83: 1480 | J83: Profit of Rs.12/- | K83: =H83-F83 -> 12 | M83: =N83*K83 -> 8400 | N83: 700 | O83: Successful | P83: 2019-12-11 | R83: R
A84: 44 | B84: 2019-12-11 | D84: DLF | E84: Sell | F84: 220.5 | G84: 226.5 | H84: 225.5 | I84: 210-208 | J84: Loss of Rs.5/- | K84: =F84-H84 -> -5 | L84: =K84/F84 -> -2.27% | O84: Unsuccessful | P84: 2019-12-11 | R84: H
A85: 45 | B85: 2019-12-11 | D85: ACC | E85: Buy | F85: 1409 | G85: 1370 | H85: 1442.5 | I85: 1470-1490 | J85: Profit of Rs.33.5/- | K85: =H85-F85 -> 33.5 | L85: 2.38% | O85: Successful | P85: 2019-12-13 | R85: H
A86: 46 | B86: 2019-12-11 | D86: APOLLOHOSP DEC FUT | E86: Buy | F86: 1388 | G86: 1362 | H86: 1405 | I86: 1430 | J86: Profit of Rs.17/- | K86: =H86-F86 -> 17 | M86: =N86*K86 -> 8500 | N86: 500 | O86: Successful | P86: 2019-12-12 | R86: N
A87: 47 | B87: 2019-12-12 | D87: BHARATFORG DEC FUT | E87: Buy | F87: 439.5 | G87: 429 | H87: 447 | I87: 460 | J87: Profit of Rs.7.50/- | K87: =H87-F87 -> 7.5 | M87: =N87*K87 -> 9000 | N87: 1200 | O87: Successful | P87: 2019-12-12 | R87: N
A88: 48 | B88: 2019-12-12 | D88: MARICO | E88: Buy | F88: 333-335 | G88: 324 | I88: 350-355 | J88: Open | R88: H
A89: 49 | B89: 2019-12-12 | D89: TVSMOTOR | E89: Buy | F89: 441 | G89: 429 | H89: 450 | I89: 461-465 | J89: Profit of Rs.9/- | K89: =H89-F89 -> 9 | L89: =K89/F89 -> 2.04% | O89: Successful | P89: 2019-12-13 | R89: R
A90: 50 | B90: 2019-12-12 | D90: HINDALCO | E90: Sell | F90: 203.5 | G90: 210.3 | H90: 208 | I90: 193-190 | J90: Loss of Rs.4.5/- | K90: =F90-H90 -> -4.5 | L90: -2.21% | O90: Unsuccessful | P90: 2019-12-13 | R90: R
A91: 51 | B91: 2019-12-12 | D91: INDUSINDBK | E91: Buy | F91: 1423 | G91: 1377.7 | H91: 1451 | I91: 1500-1520 | J91: Profit of Rs.28/- | K91: =H91-F91 -> 28 | L91: =K91/F91 -> 1.97% | O91: Successful | P91: 2019-12-12 | R91: R
A92: 52 | B92: 2019-12-12 | D92: NIITTECH DEC FUT | E92: Buy | F92: 1484 | G92: 1450 | H92: 1504 | I92: 1530-1540 | J92: Profit of Rs.20/- | K92: =H92-F92 -> 20 | M92: =N92*K92 -> 7500 | N92: 375 | O92: Successful | P92: 2019-12-16 | R92: N
A93: 53 | B93: 2019-12-12 | D93: HINDUNILVR DEC FUT | E93: Buy | F93: 2015 | G93: 1975 | H93: 1978 | I93: 2060-2080 | J93: Loss of Rs.37/- | K93: =H93-F93 -> -37 | M93: =N93*K93 -> -11100 | N93: 300 | O93: Unsuccessful | P93: 2019-12-16 | R93: N
A94: 54 | B94: 2019-12-12 | D94: MCDOWELL-N DEC FUT | E94: Buy | F94: 588 | G94: 578 | H94: 594.5 | I94: 605-610 | J94: Profit of Rs.6.50/- | K94: =H94-F94 -> 6.5 | M94: =N94*K94 -> 8125 | N94: 1250 | O94: Successful | P94: 2019-12-12 | R94: H
A95: 55 | B95: 2019-12-13 | D95: NIFTY DEC FUT | E95: Sell | F95: 12065 | G95: 12180 | H95: 12180 | I95: 11800 | J95: Loss of Rs.115/- | K95: =F95-H95 -> -115 | M95: =N95*K95 -> -8625 | N95: 75 | O95: Unsuccessful | P95: 2019-12-17 | R95: R
A96: 56 | B96: 2019-12-13 | D96: COLPAL DEC FUT | E96: Buy | F96: 1478.5 | G96: 1460 | H96: 1489 | I96: 1530 | J96: Profit of Rs.10.50/- | K96: =H96-F96 -> 10.5 | M96: =N96*K96 -> 7350 | N96: 700 | O96: Successful | P96: 2019-12-16 | R96: N
A97: 57 | B97: 2019-12-13 | D97: BIOCON | E97: Sell | F97: 292-294 | G97: 302.3 | I97: 278-275 | J97: Open | R97: R
A98: 58 | B98: 2019-12-16 | D98: ACC | E98: Buy | F98: 1434 | G98: 1380 | H98: 1465 | I98: 1500-1510 | J98: Profit of Rs.31/- | K98: =H98-F98 -> 31 | L98: =K98/F98 -> 2.16% | O98: Successful | P98: 2019-12-17 | R98: H
A99: 59 | B99: 2019-12-16 | D99: COLPAL DEC FUT | E99: Buy | F99: 1471 | G99: 1455 | H99: 1482 | I99: 1510 | J99: Profit of Rs.11/- | K99: =H99-F99 -> 11 | M99: =N99*K99 -> 7700 | N99: 700 | O99: Successful | P99: 2019-12-17 | R99: N
A100: 60 | B100: 2019-12-17 | D100: ADANIPORTS | E100: Buy | F100: 368 | G100: 356 | H100: 375.5 | I100: 385-390 | J100: Profit of Rs.7.5/- | K100: =H100-F100 -> 7.5 | L100: =K100/F100 -> 2.04% | O100: Successful | P100: 2019-12-18 | R100: R
A101: 61 | B101: 2019-12-17 | D101: PIDILITIND DEC FUT | E101: Buy | F101: 1324 | G101: 1300 | H101: 1338 | I101: 1365 | J101: Profit of Rs.14/- | K101: =H101-F101 -> 14 | M101: =N101*K101 -> 7000 | N101: 500 | O101: Successful | P101: 2019-12-17 | R101: R
A102: 62 | B102: 2019-12-17 | D102: ASIANPAINT DEC FUT | E102: Buy | F102: 1738 | G102: 1718 | H102: 1749 | I102: 1775 | J102: Profit of Rs.11/- | K102: =H102-F102 -> 11 | M102: =N102*K102 -> 6600 | N102: 600 | O102: Successful | P102: 2019-12-17 | R102: N
A103: 63 | B103: 2019-12-17 | D103: HAVELLS DEC FUT | E103: Buy | F103: 648-649 | G103: 636 | I103: 670 | J103: Open | R103: N
A104: 64 | B104: 2019-12-17 | D104: CENTURYTEX DEC FUT | E104: Sell | F104: 495 | G104: 511 | H104: 483.5 | I104: 460 | J104: Profit of Rs.11.5/- | K104: =F104-H104 -> 11.5 | M104: =N104*K104 -> 6900 | N104: 600 | O104: Successful | P104: 2019-12-18 | R104: R
A105: 62 | B105: 2019-12-18 | D105: ASIANPAINT DEC FUT | E105: Buy | F105: 1738 | G105: 1718 | H105: 1750 | I105: 1775 | J105: Profit of Rs.12/- | K105: =H105-F105 -> 12 | M105: =N105*K105 -> 7200 | N105: 600 | O105: Successful | P105: 2019-12-18 | R105: N
A106: 66 | B106: 2019-12-18 | D106: MCDOWELL-N | E106: Buy | F106: 575.5 | G106: 555 | H106: 587.5 | I106: 600-620 | J106: Profit of Rs.12/- | K106: =H106-F106 -> 12 | L106: =K106/F106 -> 2.09% | O106: Successful | P106: 2019-12-18 | R106: H
A107: 67 | B107: 2019-12-18 | D107: ESCORTS DEC FUT | E107: Buy | F107: 612-613 | G107: 601 | I107: 603 | J107: Open | R107: R
A108: 68 | B108: 2019-12-18 | D108: TATACHEM DEC FUT | E108: Buy | F108: 651 | G108: 638 | H108: 643 | I108: 670 | J108: Loss of Rs.8/- | K108: =H108-F108 -> -8 | M108: =N108*K108 -> -7200 | N108: 900 | O108: Unsuccessful | P108: 2019-12-18 | R108: N
A117: CLBS = Closing Basis ***
A118: Dividend adjusted <> | F118: Reinitiated $
F119: Revised stoploss #
A121: Master Trade High Risk
A122: Sr.no | B122: Date | D122: Company | E122: Rec | F122: Rec Price | G122: Stop Loss | H122: Call Closed At | I122: Target | J122: Remark | K122: Profit / Loss per share | L122: Gain / Loss per Lot | M122: Lot | N122: Status | O122: Closed Date
A123: 1 | B123: 2019-12-02 | D123: HDFC DEC FUT | E123: Sell | F123: 2316 | G123: 2365 | H123: 2283 | I123: 2260 | J123: Profit of Rs. 31/- | K123: =F123-H123 -> 33 | L123: =31*250 -> 7750 | M123: 250 | N123: Successful | O123: 2019-12-06 | R123: H
D124: HDFC 2260 PE DEC | E124: Sell | F124: 31 | H124: 33 | K124: -2 | R124: H
A125: 2 | B125: 2019-12-09 | D125: NIFTY DEC FUT | E125: Sell | F125: 11995 | G125: 12170 | H125: 11915 | I125: 11800 | J125: Profit of Rs. 60/- | K125: 80 | L125: =60*M125 -> 4500 | M125: 75 | N125: Successful | O125: 2019-12-10 | R125: H
D126: NIFTY 11850 PE DEC | E126: Sell | F126: 80 | H126: 100 | K126: -20 | R126: H
A127: 3 | B127: 2019-12-11 | D127: BAJAJ-AUTO DEC FUT | E127: Sell | F127: 3255 | G127: 3333 | H127: 3220 | I127: 3180-3150 | J127: Profit of Rs. 34.50/- | K127: 35 | L127: =34.5*M127 -> 8625 | M127: 250 | N127: Successful | O127: 2019-12-17 | R127: H
D128: BAJAJ-AUTO 3200 PE DEC | E128: Sell | F128: 40 | H128: 40.5 | K128: -0.5 | R128: H
A145: Master Trade Medium Risk
A146: Sr.no | B146: Date | D146: Company | E146: Rec | F146: Rec Price | G146: Stop Loss | H146: Call Closed At | I146: Target | J146: Remark | K146: Profit/ Loss per lot | L146: Gain / Loss per Lot | M146: Lot | N146: Status | O146: Closed Date
A147: 1 | B147: 2019-12-02 | D147: LT DEC 1360 CE | E147: Buy | F147: 23 | G147: 9 | H147: 28.5 | I147: 40-50 | J147: Profit of Rs.5.50/- | K147: =H147-F147 -> 5.5 | L147: =K147*M147 -> 2062.5 | M147: 375 | N147: Successful | O147: 2019-12-01 | R147: H
A148: 2 | B148: 2019-12-02 | D148: HINDUNILVR DEC 2100 CE | E148: Buy | F148: 25 | G148: 10 | H148: 10 | I148: 40-45 | J148: Loss of Rs.15/- | K148: =H148-F148 -> -15 | L148: =K148*M148 -> -4500 | M148: 300 | N148: Unsuccessful | O148: 2019-12-11 | R148: N
A149: 3 | B149: 2019-12-02 | D149: DABUR DEC 460 CE | E149: Buy | F149: 7.50 | G149: 4.5 | H149: 9.5 | I149: 12.00-14.00 | J149: Profit of Rs.2/- | K149: =H149-F149 -> 2 | L149: =K149*M149 -> 2500 | M149: 1250 | N149: Successful | O149: 2019-12-04 | R149: H
A150: 4 | B150: 2019-12-03 | D150: DLF DEC 210 PE | E150: Buy | F150: 6 | G150: 3.8 | H150: 6 | I150: 12 | J150: Neutral | N150: Neutral | O150: 2019-12-10 | R150: H
A151: 5 | B151: 2019-12-03 | D151: NIFTY 5-DEC 12050 CE | E151: Buy | F151: 43 | G151: 18 | H151: 18.5 | I151: 90 | J151: Loss of Rs.24.50/- | K151: =H151-F151 -> -24.5 | L151: =K151*M151 -> -1837.5 | M151: 75 | N151: Unsuccessful | O151: 2019-12-03 | R151: H
A152: 6 | B152: 2019-12-05 | D152: NIFTY 5-DEC 12050 PE | E152: Buy | F152: 24 | H152: 40 | I152: 60 | J152: Profit of Rs.16/- | K152: =H152-F152 -> 16 | L152: =K152*M152 -> 1200 | M152: 75 | N152: Successful | O152: 2019-12-05 | R152: R
A153: 7 | B153: 2019-12-05 | D153: LT DEC 1340 CE | E153: Buy | F153: 19 | G153: 8 | H153: 8 | I153: 40 | J153: Loss of Rs.11/- | K153: =H153-F153 -> -11 | L153: =K153*M153 -> -4125 | M153: 375 | N153: Unsuccessful | O153: 2019-12-11 | R153: H
A154: 8 | B154: 2019-12-12 | D154: AXISBANK DEC 730 CE | E154: Buy | F154: 11 | G154: 5.5 | H154: 13.25 | I154: 20 | J154: Profit of Rs.2.25/- | K154: =H154-F154 -> 2.25 | L154: =K154*M154 -> 2700 | M154: 1200 | N154: Successful | O154: 2019-12-12 | R154: N
A155: 9 | B155: 2019-12-12 | D155: DABUR DEC 460 CE | E155: Buy | F155: 5.10 | G155: 2 | H155: 6.25 | I155: 10.00-12.00 | J155: Profit of Rs.1.15/- | K155: =H155-F155 -> 1.15 | L155: =K155*M155 -> 1437.5 | M155: 1250 | N155: Successful | O155: 2019-12-12 | R155: H
A156: 10 | B156: 2019-12-13 | D156: NIFTY 19-DEC 12000 PE | E156: Buy | F156: 34-36 | I156: 60-80 | J156: Open | R156: H
A157: 11 | B157: 2019-12-16 | D157: APOLLOHOSP DEC 1360 PE | E157: Buy | F157: 23-25 | J157: Open | R157: N
D158: APOLLOHOSP DEC 1340 PE | E158: Sell | F158: 17-19 | R158: N
A159: 12 | B159: 2019-12-16 | D159: HDFCBANK DEC 1260 CE | E159: Buy | F159: 14 | H159: 20 | J159: Profit of Rs.3.50/- | K159: =H159-F159 -> 6 | L159: =3.5*M159 -> 1750 | M159: 500 | N159: Successful | O159: 2019-12-17 | R159: N
D160: HDFCBANK DEC 1280 CE | E160: Sell | F160: 7.5 | H160: 10 | K160: =F160-H160 -> -2.5 | R160: N
A161: 13 | B161: 2019-12-18 | D161: ICICIBANK DEC 530 PE | E161: Buy | F161: 3.5-4 | G161: 1 | I161: 8.00-10.00 | J161: Open | R161: H
A162: 14 | B162: 2019-12-18 | D162: LT DEC 1340 CE | E162: Buy | F162: 13-14 | G162: 4 | I162: 25 | J162: Open | R162: N
A175: Techno -Funda (positional)
A176: Sr.no | B176: Date | D176: Company | E176: Rec | F176: Rec Price | G176: Stop Loss*** | H176: Call Closed At | I176: Target | J176: Remark | K176: Profit / Loss per Share | L176: Gain / Loss % | M176: Status | N176: Closed Date | O176: NSE Closed Price
A177: 1 | B177: 2019-08-13 | D177: ITC | E177: Buy | F177: 247 | G177: 228 | H177: 252.5 | I177: 290-300 | J177: Profit of Rs.5.5/- | K177: =H177-F177 -> 5.5 | L177: =K177/F177 -> 2.23% | M177: Successful | N177: 2019-12-18 | R177: H
A178: 2 | B178: 2019-11-27 | D178: JKLAKSHMI | E178: Buy | F178: 284-288 | G178: 258 | I178: 330-350 | J178: Open | R178: H
A181: CLBS = Closing Basis *** | F181: Reinitiated $
A182: Dividend adjusted <> | F182: Revised stoploss #
B187: Investment Idea
A188: Sr.no | B188: Date | D188: Company | E188: Rec | F188: Rec Price | G188: Point of Review | H188: Close Rate | I188: Target | J188: Remark | K188: Profit / Loss per Share | L188: Gain / Loss % | M188: Status | N188: Closed Date
A189: 1 | B189: 2013-11-01 | D189: L&T Finance Holding | E189: Accu | F189: 82.00 | G189: - | H189: 100 | I189: 100.00 | J189: Target Achieved | K189: =H189-F189 -> 18.00 | L189: =K189/F189 -> 21.95% | M189: Successful | N189: 2016-10-14
A190: 2 | B190: 2014-06-04 | D190: Finolex Inds | E190: Buy | F190: 257.00 | G190: - | H190: 300 | I190: 300.00 | J190: Target Achieved | K190: 43.00 | L190: 16.73% | M190: Successful | N190: 2014-07-02
A191: 3 | B191: 2014-07-08 | D191: JK Cement | E191: Buy | F191: 393.00 | G191: - | H191: 468 | I191: 468.00 | J191: Target Achieved | K191: 75.00 | L191: 19.08% | M191: Successful | N191: 2014-08-12
A192: 4 | B192: 2014-08-06 | D192: Finolex Cables | E192: Buy | F192: 205.00 | G192: - | H192: 275 | I192: 250.00 | J192: Target Achieved | K192: 70.00 | L192: 34.15% | M192: Successful | N192: 2014-11-19
A193: 5 | B193: 2014-09-04 | D193: Exide Inds | E193: Buy | F193: 162.00 | G193: - | H193: 190 | I193: 190.00 | J193: Target Achieved | K193: 28.00 | L193: 17.28% | M193: Successful | N193: 2015-01-02
A194: 6 | B194: 2014-09-04 | D194: Deepak Nitrite | E194: Buy | F194: 75.00 | G194: - | H194: 91.5 | I194: 95-100 | J194: Profit of Rs.16.50/- | K194: 16.50 | L194: 22.00% | M194: Successful | N194: 2014-11-11
A195: 7 | B195: 2014-10-01 | D195: Mercks | E195: Buy | F195: 850.00 | G195: - | H195: 982.5 | I195: 1050.00 | J195: Profit of Rs.132.50/- | K195: 132.50 | L195: 15.59% | M195: Successful | N195: 2015-02-04
A196: 8 | B196: 2014-10-01 | D196: Grindwell Norton | E196: Buy | F196: 475.00 | G196: - | H196: 515 | I196: 600.00 | J196: Profit of Rs.40/- | K196: 40.00 | L196: 8.42% | M196: Successful | N196: 2014-10-27
A197: 9 | B197: 2014-10-01 | D197: Snowman Logistics | E197: Buy | F197: 86.00 | G197: - | H197: 99 | I197: 140.00 | J197: Profit of Rs.13.00/- | K197: 13.00 | L197: 15.12% | M197: Successful | N197: 2014-10-27
A198: 10 | B198: 2014-10-14 | D198: Birla Corp | E198: Buy | F198: 496.60 | G198: - | H198: 621 | I198: 580.00 | J198: Target Achieved | K198: 124.40 | L198: 25.05% | M198: Successful | N198: 2016-08-23
A199: 11 | B199: 2014-10-14 | D199: Ultratech Cem | E199: Buy | F199: 2481.90 | G199: - | H199: 2840 | I199: 2870.00 | J199: Profit of Rs.358.10/- | K199: 358.10 | L199: 14.43% | M199: Successful | N199: 2015-01-13
A200: 12 | B200: 2014-10-16 | D200: Sintex Inds | E200: Buy | F200: 84.50 | G200: - | H200: 93 | I200: 110.00 | J200: Profit of Rs.8.50/- | K200: 8.50 | L200: 10.06% | M200: Successful | N200: 2014-10-27
A201: 13 | B201: 2014-10-16 | D201: HSIL | E201: Buy | F201: 401.00 | G201: - | H201: 428 | I201: 450.00 | J201: Profit of Rs.27.00/- | K201: 27.00 | L201: 6.73% | M201: Successful | N201: 2015-01-16
A202: 14 | B202: 2014-10-16 | D202: Eveready Inds | E202: Buy | F202: 101.00 | G202: - | H202: 112 | I202: 120.00 | J202: Profit of Rs.11.00/- | K202: 11.00 | L202: 10.89% | M202: Successful | N202: 2014-10-27
A203: 15 | B203: 2014-11-11 | D203: Pennar Inds | E203: Buy | F203: 59.00 | G203: - | H203: 76 | I203: 76.00 | J203: Target Achieved | K203: 17.00 | L203: 28.81% | M203: Successful | N203: 2017-10-24
A204: 16 | B204: 2014-11-11 | D204: Snowman Logistics | E204: Buy | F204: 99.00 | G204: - | H204: 120 | I204: 120.00 | J204: Profit of Rs.21/- | K204: 21.00 | L204: 21.21% | M204: Successful | N204: 2014-11-17
A205: 17 | B205: 2014-11-13 | D205: Dharamsi Morarji Chem | E205: Buy | F205: 22.00 | G205: - | H205: 33.55 | I205: 32.00 | J205: Profit of Rs 11.55/- | K205: 11.55 | L205: 52.50% | M205: Successful | N205: 2015-07-03
A206: 18 | B206: 2014-12-03 | D206: Tatachem | E206: Buy | F206: 440.00 | G206: - | H206: 520 | I206: 520.00 | J206: Profit of Rs 80.00/- | K206: 80.00 | L206: 18.18% | M206: Successful | N206: 2015-07-23
A207: 19 | B207: 2014-12-03 | D207: Advanta | E207: Buy | F207: 360.00 | G207: - | H207: 427 | I207: 425.00 | J207: Profit of Rs.67.00/- | K207: 67.00 | L207: 18.61% | M207: Successful | N207: 2015-02-23
A208: 20 | B208: 2015-01-08 | D208: GDL | E208: Buy | F208: 360.00 | G208: - | H208: 455 | I208: 420.00 | J208: Profit of Rs.95.00/- | K208: 95.00 | L208: 26.39% | M208: Successful | N208: 2015-01-20
A209: 21 | B209: 2015-01-08 | D209: NRB Bearing | E209: Buy | F209: 130.00 | H209: 175.5 | I209: 165.00 | J209: Profit of Rs 45.50/- | K209: 45.50 | L209: 35.00% | M209: Successful | N209: 2017-12-19
A210: 22 | B210: 2015-02-05 | D210: GSFC | E210: Accu | F210: 98.00 | H210: 120 | I210: 120.00 | J210: Target Achieved | K210: 22.00 | L210: 22.45% | M210: Successful | N210: 2017-01-18
A211: 23 | B211: 2015-02-05 | D211: Sundrmfast | E211: Accu | F211: 196.00 | H211: 262 | I211: 255.00 | J211: Target Achieved | K211: 66.00 | L211: 33.67% | M211: Successful | N211: 2016-08-17
A212: 24 | B212: 2015-03-04 | D212: GPPL | E212: Accu | F212: 235 | H212: 77.00 | I212: 280-285 | J212: Loss of Rs.158/- | K212: -158.00 | L212: -67.23% | M212: Unsuccessful | N212: 2019-02-26
A213: 25 | B213: 2015-03-04 | D213: ORIENTCEM | E213: Accu | F213: 185.00 | H213: 224 | I213: 220-225 | J213: Target Achieved | K213: 39.00 | L213: 21.08% | M213: Successful | N213: 2016-10-04
A214: 26 | B214: 2015-03-27 | D214: PFS | E214: Accu | F214: 49.5 | H214: 15.85 | I214: 67.00 | J214: Loss of Rs.33.65/- | K214: -33.65 | L214: -68% | M214: Unsuccessful | N214: 2019-06-11
A215: 27 | B215: 2015-03-30 | D215: Walchandnagar Ind Ltd | E215: Accu | F215: 183.50 | H215: 219 | I215: 218.00 | J215: Profit of Rs.35.50/- | K215: 35.50 | L215: 19.35% | M215: Successful | N215: 2015-04-09
A216: 28 | B216: 2015-04-20 | D216: Kalpataru Power Transmission Ltd | E216: Accu | F216: =(227+237)/2 -> 232.00 | H216: 298 | I216: 298.00 | J216: Target Achieved | K216: 66.00 | L216: 28.45% | M216: Successful | N216: 2017-03-29
A217: 29 | B217: 2015-05-04 | D217: Mastek Ltd | E217: Buy | F217: 385.00 | H217: =212.5+331 -> 543.5 | I217: 510.00 | J217: Profit of Rs 158.50/- | K217: 158.50 | L217: 41.17% | M217: Successful | N217: 2015-08-19
A218: 30 | B218: 2015-05-04 | D218: Suprajit Eng | E218: Buy | F218: 115.50 | H218: 146 | I218: 142.00 | J218: Profit of Rs 30.50/- | K218: 30.50 | L218: 26.41% | M218: Successful | N218: 2015-07-17
A219: 31 | B219: 2015-05-27 | D219: TCI | E219: Buy | F219: 237.50 | H219: 279.5 | I219: 278.00 | J219: Target Achieved | K219: 42.00 | L219: 17.68% | M219: Successful | N219: 2015-08-06
A220: 32 | B220: 2015-06-19 | D220: HSIL | E220: Accu | F220: 340.00 | H220: 448 | I220: 448.00 | J220: Target Achieved | K220: 108.00 | L220: 31.76% | M220: Successful | N220: 2017-10-10
A221: 33 | B221: 2015-07-06 | D221: Capital First | E221: Accu | F221: 390.00 | H221: 460 | I221: 460.00 | J221: Target Achieved | K221: =H221-F221 -> 70.00 | L221: =K221/F221 -> 17.95% | M221: Successful | N221: 2016-04-18
A222: 34 | B222: 2015-07-10 | D222: Dolphin OffShore | E222: Accu | F222: 122.5 | H222: 61.00 | I222: 172.00 | J222: Loss of Rs.61.50/- | K222: -61.50 | L222: -50.20% | M222: Unsuccessful | N222: 2018-08-21
A223: 35 | B223: 2015-08-03 | D223: Allcargo logistics | E223: Accu | F223: 297.50 | H223: 350 | I223: 360.00 | J223: Profit of Rs 52.50/- | K223: 52.50 | L223: 17.65% | M223: Successful | N223: 2015-08-16
A224: 36 | B224: 2015-08-03 | D224: Camline Fine | E224: Accu | F224: 115.50 | H224: 149 | I224: 140.00 | J224: Profit of Rs 33.50/- | K224: 33.50 | L224: 29.00% | M224: Successful | N224: 2017-01-05
A225: 37 | B225: 2015-09-04 | D225: TCI | E225: Accu | F225: 226.00 | H225: 292 | I225: 292.00 | J225: Target Achieved | K225: 66.00 | L225: 29.20% | M225: Successful | N225: 2015-10-09
A226: 38 | B226: 2015-09-07 | D226: Kalpataru Power Transmission Ltd | E226: Accu | F226: 232.50 | H226: 312.5 | I226: 310.00 | J226: Target Achieved | K226: 80.00 | L226: 34.41% | M226: Successful | N226: 2017-03-29
A227: 39 | B227: 2015-09-21 | D227: LLOYD ELECTRIC & ENG LTD | E227: Accu | F227: 196.50 | H227: 238 | I227: 238.00 | J227: Target Achieved | K227: 41.50 | L227: 21.12% | M227: Successful | N227: 2015-10-14
A228: 40 | B228: 2015-09-24 | D228: L&T Finance Holding | E228: Accu | F228: 65.00 | H228: 82 | I228: 82.00 | J228: Target Achieved | K228: 17.00 | L228: 26.15% | M228: Successful | N228: 2016-07-27
A229: 41 | B229: 2015-10-14 | D229: KEC International ltd | E229: Accu | F229: 144.00 | H229: 182.5 | I229: 181.00 | J229: Target Achieved | K229: 38.50 | L229: 26.74% | M229: Successful | N229: 2017-03-23
A230: 42 | B230: 2015-10-14 | D230: Gruh Finance | E230: Accu | F230: 264.00 | H230: 311 | I230: 311.00 | J230: Target Achieved | K230: 47.00 | L230: 17.80% | M230: Successful | N230: 2016-08-22
A231: 43 | B231: 2015-11-10 | D231: Pidilitind | E231: Buy | F231: 549.50 | H231: 630 | I231: 630.00 | J231: Target Achieved | K231: 80.50 | L231: 14.65% | M231: Successful | N231: 2016-02-19
A232: 44 | B232: 2015-12-04 | D232: Zensar Technology | E232: Accu | F232: 1027.50 | H232: 1315 | I232: 1250.00 | J232: Target Achieved | K232: 287.50 | L232: 27.98% | M232: Successful | N232: 2018-05-24
A233: 45 | B233: 2015-12-29 | D233: Vinati Organics Ltd | E233: Accu | F233: 465.00 | H233: 540 | I233: 540.00 | J233: Target Achieved | K233: 75.00 | L233: 16.13% | M233: Successful | N233: 2016-06-09
A234: 46 | B234: 2016-01-11 | D234: GSFC | E234: Buy | F234: 81.00 | H234: 110 | I234: 110.00 | J234: Target Achieved | K234: 29.00 | L234: 35.80% | M234: Successful | N234: 2017-01-10
A235: 47 | B235: 2016-01-13 | D235: SSWL | E235: Buy | F235: 417.50 | H235: 547 | I235: 535.00 | J235: Target Achieved | K235: 129.50 | L235: 31.02% | M235: Successful | N235: 2016-07-27
A236: 48 | B236: 2016-02-08 | D236: Persistent System Ltd | E236: Accu | F236: 650.00 | H236: 800 | I236: 800.00 | J236: Target Achieved | K236: 150.00 | L236: 23.08% | M236: Successful | N236: 2018-02-23
A237: 49 | B237: 2016-03-04 | D237: UPL | E237: Accu | F237: 437.50 | H237: 504.5 | I237: 522.00 | J237: Profit of Rs.67/- | K237: 67.00 | L237: 15.31% | M237: Successful | N237: 2016-04-20
A238: 50 | B238: 2016-03-09 | D238: Ashoka Buildcon Ltd | E238: Accu | F238: 189.50 | H238: 218 | I238: 218.00 | J238: Target Achieved | K238: 28.50 | L238: 15.04% | M238: Successful | N238: 2017-10-26
A239: 51 | B239: 2016-04-11 | D239: PTC INDIA FIN SERV LTD | E239: Accu | F239: 36.5 | H239: 15.85 | I239: 60.00 | J239: Loss of Rs.20.65/- | K239: -20.65 | L239: -56.58% | M239: Unsuccessful | N239: 2019-06-11
A240: 52 | B240: 2016-04-12 | D240: CAMLINFINE $ | E240: Accu | F240: 93.00 | H240: 149 | I240: 140.00 | J240: Profit of Rs 56/- | K240: 56.00 | L240: 60.22% | M240: Successful | N240: 2017-01-05
A241: 53 | B241: 2016-04-12 | D241: Greaves Cotton Ltd. | E241: Accu | F241: 130.00 | H241: 150 | I241: 150-155 | J241: Target Achieved | K241: 20.00 | L241: 15.38% | M241: Successful | N241: 2016-07-13
A242: 54 | B242: 2016-04-13 | D242: DHFL | E242: Accu | F242: 196.00 | H242: 299 | I242: 299.00 | J242: Target Achieved | K242: 103.00 | L242: 52.55% | M242: Successful | N242: 2016-09-07
A243: 55 | B243: 2016-04-13 | D243: Magma | E243: Accu | F243: 88.00 | H243: 103 | I243: 103.00 | J243: Target Achieved | K243: 15.00 | L243: 17.05% | M243: Successful | N243: 2016-06-09
A244: 56 | B244: 2016-05-02 | D244: KEC International ltd $ | E244: Accu | F244: 127.50 | H244: 148 | I244: 148-150 | J244: Target Achieved | K244: =H244-F244 -> 20.50 | L244: =K244/F244 -> 16.08% | M244: Successful | N244: 2016-07-13
A245: 57 | B245: 2016-05-03 | D245: Mindtree | E245: Accu | F245: 675.00 | H245: 815 | I245: 790-800 | J245: Target Achieved | K245: =H245-F245 -> 140.00 | L245: =K245/F245 -> 20.74% | M245: Successful | N245: 2018-02-23
A246: 58 | B246: 2016-06-01 | D246: Atulauto | E246: Accu | F246: 500 | H246: 232.50 | I246: 565-570 | J246: Loss of Rs.267.50 /- | K246: =H246-F246 -> -267.50 | L246: =K246/F246 -> -53.50% | M246: Unsuccessful | N246: 2019-09-27
A247: 59 | B247: 2016-06-06 | D247: TRITURBINE | E247: Accu | F247: 110.00 | H247: 126.5 | I247: 125.00 | J247: Profit of Rs.16.50/- | K247: =H247-F247 -> 16.50 | L247: =K247/F247 -> 15.00% | M247: Successful | N247: 2016-07-01
A248: 60 | B248: 2016-06-17 | D248: Pennar Industries Ltd | E248: Accu | F248: 44.00 | H248: 69.5 | I248: 69.50 | J248: Profit of Rs.25.50/- | K248: =H248-F248 -> 25.50 | L248: =K248/F248 -> 57.95% | M248: Successful | N248: 2017-08-30
A249: 61 | B249: 2016-06-28 | D249: EVEREADY | E249: Accu | F249: 262.50 | H249: 340 | I249: 333.00 | J249: Profit of Rs.77.50/- | K249: 77.50 | L249: 29.52% | M249: Successful | N249: 2017-10-09
A250: 62 | B250: 2016-06-28 | D250: FIEMIND | E250: Accu | F250: 840.00 | H250: 1230 | I250: 1230.00 | J250: Target Achieved | K250: 390.00 | L250: 46.43% | M250: Successful | N250: 2016-10-06
A251: 63 | B251: 2016-07-05 | D251: Bajaj Corp Ltd | E251: Accu | F251: 395 | H251: =(468.5+342.5)/2 -> 405.50 | I251: 510.00 | J251: Profit of Rs.10.50/- | K251: =H251-F251 -> 10.50 | L251: =K251/F251 -> 3% | M251: Neutral | N251: 2019-05-21
A252: 64 | B252: 2016-08-02 | D252: GPPL $ | E252: Buy | F252: 169.5 | H252: 77.00 | I252: 198-200 | J252: Loss of Rs.92.5/- | K252: -92.50 | L252: -54.57% | M252: Unsuccessful | N252: 2019-02-26
A253: 65 | B253: 2016-08-04 | D253: WONDERLA HOLIDAYS LTD | E253: Accu | F253: 400 | H253: 305.00 | I253: 475.00 | J253: Loss of Rs.95/- | K253: -95.00 | L253: -23.75% | M253: Unsuccessful | N253: 2019-05-21
A254: 66 | B254: 2016-08-11 | D254: CAMLINFINE | E254: Accu | F254: 86.50 | H254: 130 | I254: 130.00 | J254: Profit of Rs.43.50/- | K254: 43.50 | L254: 50.29% | M254: Successful | N254: 2017-12-22
A255: 67 | B255: 2016-08-18 | D255: GRANULES | E255: Accu | F255: 133.5 | H255: 126.50 | I255: 178.00 | J255: Exit | K255: -7.00 | L255: -5.24% | M255: Unsuccessful | N255: 2016-09-02
A256: 68 | B256: 2016-08-31 | D256: VA TECH WABAG | E256: Accu | F256: 560.00 | H256: 725 | I256: 725.00 | J256: Target Achieved | K256: 165.00 | L256: 29.46% | M256: Successful | N256: 2016-03-27
A257: 69 | B257: 2016-09-01 | D257: SKIPPER LIMITED | E257: Accu | F257: 160.50 | H257: 210 | I257: 210.00 | J257: Target Achieved | K257: 49.50 | L257: 30.84% | M257: Successful | N257: 2017-05-16
... 84 more rows

Sheet Sheet2 (hidden)
A1: SYMBOL | B1: SERIES | C1: OPEN | D1: HIGH | E1: LOW | F1: CLOSE | G1: LAST | H1: PREVCLOSE | I1: TOTTRDQTY | J1: TOTTRDVAL | K1: TIMESTAMP | L1: TOTALTRADES | M1: ISIN | N1: ISIN
A2: 20MICRONS | B2: EQ | C2: 32 | D2: 32.2 | E2: 31.75 | F2: 31.9 | G2: 31.75 | H2: 31.9 | I2: 13814 | J2: 441398.95 | K2: 2019-12-18 | L2: 112 | M2: INE144J01027
A3: 21STCENMGM | B3: EQ | C3: 13.55 | D3: 13.55 | E3: 13.3 | F3: 13.3 | G3: 13.3 | H3: 13.55 | I3: 5 | J3: 67 | K3: 2019-12-18 | L3: 3 | M3: INE253B01015
A4: 3IINFOTECH | B4: EQ | C4: 2.05 | D4: 2.05 | E4: 2 | F4: 2 | G4: 2.05 | H4: 2.05 | I4: 597570 | J4: 1210533 | K4: 2019-12-18 | L4: 474 | M4: INE748C01020
A5: 3MINDIA | B5: EQ | C5: 20997.1 | D5: 21150 | E5: 20750 | F5: 20844.85 | G5: 20899.9 | H5: 20967.3 | I5: 930 | J5: 19434215 | K5: 2019-12-18 | L5: 405 | M5: INE470A01017
A6: 3PLAND | B6: EQ | C6: 5.65 | D6: 5.65 | E6: 5.65 | F6: 5.65 | G6: 5.65 | H6: 5.75 | I6: 3021 | J6: 17068.65 | K6: 2019-12-18 | L6: 2 | M6: INE105C01023
A7: 5PAISA | B7: EQ | C7: 180.1 | D7: 181 | E7: 177.05 | F7: 178.8 | G7: 181 | H7: 180.65 | I7: 889 | J7: 158792.8 | K7: 2019-12-18 | L7: 114 | M7: INE618L01018
A8: 63MOONS | B8: EQ | C8: 102.35 | D8: 107.5 | E8: 101.55 | F8: 103.85 | G8: 104 | H8: 102.1 | I8: 194287 | J8: 20340627 | K8: 2019-12-18 | L8: 6107 | M8: INE111B01023
A9: A2ZINFRA | B9: EQ | C9: 8.05 | D9: 8.1 | E9: 7.15 | F9: 7.65 | G9: 7.7 | H9: 8.05 | I9: 442840 | J9: 3356411.5 | K9: 2019-12-18 | L9: 800 | M9: INE619I01012
A10: AARTIDRUGS | B10: EQ | C10: 498 | D10: 505.9 | E10: 495.35 | F10: 503.6 | G10: 505.9 | H10: 495.2 | I10: 9257 | J10: 4651018.7 | K10: 2019-12-18 | L10: 1064 | M10: INE767A01016
A11: AARTIIND | B11: EQ | C11: 774 | D11: 778.65 | E11: 761 | F11: 768.3 | G11: 769.05 | H11: 768.7 | I11: 58145 | J11: 44758446.65 | K11: 2019-12-18 | L11: 4890 | M11: INE769A01020
A12: AARVEEDEN | B12: EQ | C12: 11.7 | D12: 11.7 | E12: 11.15 | F12: 11.3 | G12: 11.55 | H12: 11.45 | I12: 3020 | J12: 34159.05 | K12: 2019-12-18 | L12: 81 | M12: INE273D01019
A13: AAVAS | B13: EQ | C13: 1898.45 | D13: 1898.45 | E13: 1870 | F13: 1876.5 | G13: 1870 | H13: 1898.45 | I13: 21140 | J13: 39765000.75 | K13: 2019-12-18 | L13: 5550 | M13: INE216P01012
A14: ABAN | B14: EQ | C14: 26.65 | D14: 26.75 | E14: 25.7 | F14: 26.05 | G14: 25.85 | H14: 26.65 | I14: 26978 | J14: 706393.15 | K14: 2019-12-18 | L14: 552 | M14: INE421A01028
A15: ABB | B15: EQ | C15: 1467.55 | D15: 1474.9 | E15: 1442.25 | F15: 1451.45 | G15: 1454 | H15: 1474.4 | I15: 120958 | J15: 175853971.8 | K15: 2019-12-18 | L15: 3822 | M15: INE117A01022
A16: ABBOTINDIA | B16: EQ | C16: 13370 | D16: 13410 | E16: 13115.25 | F16: 13190.9 | G16: 13168 | H16: 13381.8 | I16: 5450 | J16: 72220617.6 | K16: 2019-12-18 | L16: 2279 | M16: INE358A01014
A17: ABCAPITAL | B17: EQ | C17: 98.95 | D17: 99.9 | E17: 96.8 | F17: 97.55 | G17: 97.6 | H17: 98.9 | I17: 1145998 | J17: 112616230.1 | K17: 2019-12-18 | L17: 12094 | M17: INE674K01013
A18: ABFRL | B18: EQ | C18: 235.25 | D18: 239.9 | E18: 233.3 | F18: 239.15 | G18: 239 | H18: 234 | I18: 557471 | J18: 132402088.2 | K18: 2019-12-18 | L18: 11132 | M18: INE647O01011
A19: ABSLBANETF | B19: EQ | C19: 319.52 | D19: 320.12 | E19: 319.52 | F19: 320.12 | G19: 320.12 | H19: 319.52 | I19: 25 | J19: 7997.6 | K19: 2019-12-18 | L19: 2 | M19: INF209KB1O58
A20: ACC | B20: EQ | C20: 1462.1 | D20: 1470.4 | E20: 1438.75 | F20: 1450.4 | G20: 1450 | H20: 1462.3 | I20: 481280 | J20: 700662341.1 | K20: 2019-12-18 | L20: 17728 | M20: INE012A01025
A21: ACCELYA | B21: EQ | C21: 985.95 | D21: 990.5 | E21: 956.35 | F21: 965.6 | G21: 964.05 | H21: 985.95 | I21: 7341 | J21: 7132677.15 | K21: 2019-12-18 | L21: 447 | M21: INE793A01012
A22: ACE | B22: EQ | C22: 73.8 | D22: 73.95 | E22: 71.1 | F22: 72.2 | G22: 72 | H22: 73 | I22: 92700 | J22: 6704991.05 | K22: 2019-12-18 | L22: 1780 | M22: INE731H01025
A23: ADANIENT | B23: EQ | C23: 211.8 | D23: 212.45 | E23: 205.6 | F23: 208.15 | G23: 207.8 | H23: 211.2 | I23: 2542320 | J23: 529190668.6 | K23: 2019-12-18 | L23: 15181 | M23: INE423A01024
A24: ADANIGAS | B24: EQ | C24: 151 | D24: 151.9 | E24: 150.5 | F24: 150.75 | G24: 150.9 | H24: 150.65 | I24: 380427 | J24: 57458161.95 | K24: 2019-12-18 | L24: 3651 | M24: INE399L01023
A25: ADANIGREEN | B25: EQ | C25: 136.3 | D25: 137.3 | E25: 134 | F25: 135.1 | G25: 135 | H25: 135.55 | I25: 690735 | J25: 93682951.45 | K25: 2019-12-18 | L25: 6652 | M25: INE364U01010
A26: ADANIPORTS | B26: EQ | C26: 372.1 | D26: 375.8 | E26: 369.1 | F26: 374.5 | G26: 374.4 | H26: 371.25 | I26: 3960881 | J26: 1476914121 | K26: 2019-12-18 | L26: 40006 | M26: INE742F01042
A27: ADANIPOWER | B27: EQ | C27: 62 | D27: 62.25 | E27: 60.25 | F27: 61.25 | G27: 61.2 | H27: 61.85 | I27: 5425898 | J27: 331926887.6 | K27: 2019-12-18 | L27: 13145 | M27: INE814H01011
A28: ADANITRANS | B28: EQ | C28: 334.95 | D28: 336.3 | E28: 332.05 | F28: 333.65 | G28: 333.25 | H28: 334.05 | I28: 132743 | J28: 44299427.5 | K28: 2019-12-18 | L28: 2293 | M28: INE931S01010
A29: ADFFOODS | B29: EQ | C29: 302.35 | D29: 304.55 | E29: 300 | F29: 301.95 | G29: 302.75 | H29: 303.45 | I29: 9739 | J29: 2942968.95 | K29: 2019-12-18 | L29: 344 | M29: INE982B01019
A30: ADHUNIKIND | B30: EQ | C30: 37.6 | D30: 37.6 | E30: 37.6 | F30: 37.6 | G30: 37.6 | H30: 39.55 | I30: 5380 | J30: 202288 | K30: 2019-12-18 | L30: 57 | M30: INE452L01012
A31: ADLABS | B31: BE | C31: 3.65 | D31: 3.65 | E31: 3.5 | F31: 3.6 | G31: 3.6 | H31: 3.5 | I31: 59114 | J31: 212789 | K31: 2019-12-18 | L31: 151 | M31: INE172N01012
A32: ADORWELD | B32: EQ | C32: 290.15 | D32: 291.9 | E32: 288.5 | F32: 290.45 | G32: 289.25 | H32: 289.9 | I32: 1908 | J32: 553955.15 | K32: 2019-12-18 | L32: 93 | M32: INE045A01017
A33: ADROITINFO | B33: BE | C33: 7.45 | D33: 7.8 | E33: 7.45 | F33: 7.8 | G33: 7.8 | H33: 7.45 | I33: 48 | J33: 374.05 | K33: 2019-12-18 | L33: 3 | M33: INE737B01033
A34: ADSL | B34: BE | C34: 23.05 | D34: 23.85 | E34: 22.75 | F34: 23 | G34: 23 | H34: 23.35 | I34: 40913 | J34: 944564.05 | K34: 2019-12-18 | L34: 233 | M34: INE102I01027
A35: ADVANIHOTR | B35: EQ | C35: 54.4 | D35: 55.05 | E35: 52.55 | F35: 52.85 | G35: 52.55 | H35: 54.4 | I35: 8824 | J35: 468290.1 | K35: 2019-12-18 | L35: 110 | M35: INE199C01026
A36: ADVENZYMES | B36: EQ | C36: 166 | D36: 166.5 | E36: 163.35 | F36: 164.7 | G36: 165 | H36: 165.75 | I36: 97896 | J36: 16133250.8 | K36: 2019-12-18 | L36: 1654 | M36: INE837H01020
A37: AEGISCHEM | B37: EQ | C37: 183.35 | D37: 186 | E37: 178.5 | F37: 179.35 | G37: 179.5 | H37: 184.05 | I37: 183071 | J37: 33363313.05 | K37: 2019-12-18 | L37: 3425 | M37: INE208C01025
A38: AFFLE | B38: EQ | C38: 1467 | D38: 1467 | E38: 1410 | F38: 1425.75 | G38: 1434.8 | H38: 1461.65 | I38: 65858 | J38: 94529723.65 | K38: 2019-12-18 | L38: 5132 | M38: INE00WC01019
A39: AGARIND | B39: EQ | C39: 78 | D39: 80.9 | E39: 78 | F39: 79.65 | G39: 80.85 | H39: 79.8 | I39: 3944 | J39: 314431.2 | K39: 2019-12-18 | L39: 82 | M39: INE204E01012
A40: AGCNET | B40: EQ | C40: 127.1 | D40: 130.5 | E40: 127 | F40: 130.25 | G40: 130 | H40: 130.1 | I40: 3161 | J40: 408368.35 | K40: 2019-12-18 | L40: 45 | M40: INE676A01019
A41: AGRITECH | B41: EQ | C41: 45.7 | D41: 47 | E41: 44.3 | F41: 45.2 | G41: 45.25 | H41: 45.8 | I41: 10080 | J41: 455918.05 | K41: 2019-12-18 | L41: 315 | M41: INE449G01018
A42: AGROPHOS | B42: EQ | C42: 147.6 | D42: 148.6 | E42: 147.6 | F42: 148.35 | G42: 148.35 | H42: 147.1 | I42: 1105807 | J42: 163872972.7 | K42: 2019-12-18 | L42: 5236 | M42: INE740V01019
A43: AHLEAST | B43: EQ | C43: 171 | D43: 174.4 | E43: 170.25 | F43: 170.3 | G43: 170.25 | H43: 170.85 | I43: 103 | J43: 17621.45 | K43: 2019-12-18 | L43: 16 | M43: INE926K01017
A44: AHLUCONT | B44: EQ | C44: 287.15 | D44: 287.15 | E44: 281 | F44: 285 | G44: 285 | H44: 286 | I44: 8793 | J44: 2503876.3 | K44: 2019-12-18 | L44: 890 | M44: INE758C01029
A45: AHLWEST | B45: EQ | C45: 321 | D45: 359.05 | E45: 321 | F45: 343.9 | G45: 345 | H45: 329.65 | I45: 14453 | J45: 4964164.15 | K45: 2019-12-18 | L45: 613 | M45: INE915K01010
A46: AIAENG | B46: EQ | C46: 1635.15 | D46: 1640.7 | E46: 1613.6 | F46: 1620.4 | G46: 1620 | H46: 1634 | I46: 12050 | J46: 19546743.8 | K46: 2019-12-18 | L46: 1427 | M46: INE212H01026
A47: AIONJSW | B47: EQ | C47: 9.5 | D47: 9.9 | E47: 9.25 | F47: 9.65 | G47: 9.55 | H47: 9.5 | I47: 21418 | J47: 205148.9 | K47: 2019-12-18 | L47: 115 | M47: INE743C01021
A48: AIRAN | B48: EQ | C48: 14.9 | D48: 14.9 | E48: 13.55 | F48: 14.7 | G48: 14.75 | H48: 14.2 | I48: 18984 | J48: 276470.2 | K48: 2019-12-18 | L48: 96 | M48: INE645W01026
A49: AJANTPHARM | B49: EQ | C49: 980.5 | D49: 999 | E49: 962.6 | F49: 969.5 | G49: 968 | H49: 977.3 | I49: 79440 | J49: 77926815.45 | K49: 2019-12-18 | L49: 5528 | M49: INE031B01049
A50: AJMERA | B50: EQ | C50: 117 | D50: 117.3 | E50: 115.1 | F50: 116.25 | G50: 116.2 | H50: 116.75 | I50: 16602 | J50: 1931200.3 | K50: 2019-12-18 | L50: 592 | M50: INE298G01027
A51: AKASH | B51: EQ | C51: 64.9 | D51: 64.9 | E51: 62.1 | F51: 62.1 | G51: 62.1 | H51: 65.15 | I51: 200 | J51: 12700 | K51: 2019-12-18 | L51: 3 | M51: INE737W01013
A52: AKSHARCHEM | B52: EQ | C52: 184.1 | D52: 189 | E52: 184 | F52: 187.45 | G52: 187.75 | H52: 185.8 | I52: 1901 | J52: 354191.3 | K52: 2019-12-18 | L52: 57 | M52: INE542B01011
A53: AKSHOPTFBR | B53: EQ | C53: 6.4 | D53: 6.8 | E53: 6.4 | F53: 6.55 | G53: 6.6 | H53: 6.65 | I53: 160260 | J53: 1066069.35 | K53: 2019-12-18 | L53: 399 | M53: INE523B01011
A54: AKZOINDIA | B54: EQ | C54: 1960 | D54: 1960 | E54: 1940 | F54: 1945.2 | G54: 1949.15 | H54: 1962.5 | I54: 52297 | J54: 101916370 | K54: 2019-12-18 | L54: 496 | M54: INE133A01011
A55: ALANKIT | B55: EQ | C55: 11.6 | D55: 11.85 | E55: 11.4 | F55: 11.5 | G55: 11.6 | H55: 11.6 | I55: 20025 | J55: 232006.8 | K55: 2019-12-18 | L55: 101 | M55: INE914E01040
A56: ALBERTDAVD | B56: EQ | C56: 397 | D56: 399.2 | E56: 391.65 | F56: 393.7 | G56: 392.4 | H56: 395.75 | I56: 3967 | J56: 1565953.4 | K56: 2019-12-18 | L56: 254 | M56: INE155C01010
A57: ALBK | B57: EQ | C57: 19.1 | D57: 19.15 | E57: 18.75 | F57: 18.8 | G57: 18.8 | H57: 19.15 | I57: 1409955 | J57: 26655643.5 | K57: 2019-12-18 | L57: 5110 | M57: INE428A01015
A58: ALCHEM | B58: BE | C58: 0.7 | D58: 0.8 | E58: 0.7 | F58: 0.75 | G58: 0.7 | H58: 0.75 | I58: 18319 | J58: 13458.95 | K58: 2019-12-18 | L58: 36 | M58: INE964B01033
A59: ALEMBICLTD | B59: EQ | C59: 51.6 | D59: 57.45 | E59: 51.3 | F59: 55.45 | G59: 55.05 | H59: 51.2 | I59: 1224025 | J59: 67629869.6 | K59: 2019-12-18 | L59: 9147 | M59: INE426A01027
A60: ALICON | B60: EQ | C60: 360 | D60: 366.05 | E60: 356.25 | F60: 359.75 | G60: 358 | H60: 360.75 | I60: 2154 | J60: 773601.85 | K60: 2019-12-18 | L60: 98 | M60: INE062D01024
A61: ALKALI | B61: EQ | C61: 40.95 | D61: 40.95 | E61: 39.2 | F61: 39.9 | G61: 40 | H61: 38.85 | I61: 3017 | J61: 120800.4 | K61: 2019-12-18 | L61: 76 | M61: INE773I01017
A62: ALKEM | B62: EQ | C62: 2072.1 | D62: 2099.9 | E62: 2065 | F62: 2095.4 | G62: 2096.55 | H62: 2066.3 | I62: 19953 | J62: 41531912.4 | K62: 2019-12-18 | L62: 2923 | M62: INE540L01014
A63: ALKYLAMINE | B63: EQ | C63: 1057.95 | D63: 1079 | E63: 1052.45 | F63: 1060.9 | G63: 1060.1 | H63: 1055.45 | I63: 6368 | J63: 6788693.55 | K63: 2019-12-18 | L63: 710 | M63: INE150B01021
A64: ALLCARGO | B64: EQ | C64: 93.45 | D64: 95.7 | E64: 92.5 | F64: 93.05 | G64: 93.25 | H64: 92.95 | I64: 377906 | J64: 35355567.85 | K64: 2019-12-18 | L64: 7349 | M64: INE418H01029
A65: ALLSEC | B65: EQ | C65: 283 | D65: 289.75 | E65: 275 | F65: 285.45 | G65: 289.75 | H65: 286.9 | I65: 2579 | J65: 726237.55 | K65: 2019-12-18 | L65: 267 | M65: INE835G01018
A66: ALMONDZ | B66: EQ | C66: 10.15 | D66: 10.15 | E66: 9.5 | F66: 9.9 | G66: 10 | H66: 10.15 | I66: 2754 | J66: 27269.9 | K66: 2019-12-18 | L66: 20 | M66: INE326B01027
A67: ALOKTEXT | B67: BE | C67: 3.05 | D67: 3.05 | E67: 3.05 | F67: 3.05 | G67: 3.05 | H67: 2.95 | I67: 320443 | J67: 977351.15 | K67: 2019-12-18 | L67: 218 | M67: INE270A01011
A68: ALPA | B68: EQ | C68: 15.05 | D68: 18.15 | E68: 14.75 | F68: 16.3 | G68: 16.15 | H68: 15.15 | I68: 236781 | J68: 4086617.35 | K68: 2019-12-18 | L68: 1532 | M68: INE385I01010
A69: ALPHAGEO | B69: EQ | C69: 166.25 | D69: 172 | E69: 165.6 | F69: 169.55 | G69: 166 | H69: 167.7 | I69: 3166 | J69: 534141.75 | K69: 2019-12-18 | L69: 265 | M69: INE137C01018
A70: ALPSINDUS | B70: BE | C70: 1.85 | D70: 1.85 | E70: 1.85 | F70: 1.85 | G70: 1.85 | H70: 1.8 | I70: 6453 | J70: 11938.05 | K70: 2019-12-18 | L70: 10 | M70: INE093B01015
A71: AMARAJABAT | B71: EQ | C71: 746.85 | D71: 747 | E71: 737.45 | F71: 740.25 | G71: 739.9 | H71: 749.1 | I71: 528519 | J71: 392258005.8 | K71: 2019-12-18 | L71: 11849 | M71: INE885A01032
A72: AMBER | B72: EQ | C72: 1024 | D72: 1037 | E72: 1020.05 | F72: 1025.25 | G72: 1028.6 | H72: 1022.05 | I72: 7693 | J72: 7899641.15 | K72: 2019-12-18 | L72: 1007 | M72: INE371P01015
A73: AMBIKCO | B73: EQ | C73: 845.9 | D73: 852.45 | E73: 841.05 | F73: 849.25 | G73: 850 | H73: 845.85 | I73: 2307 | J73: 1954898.95 | K73: 2019-12-18 | L73: 263 | M73: INE540G01014
A74: AMBUJACEM | B74: EQ | C74: 198.6 | D74: 199.8 | E74: 194.2 | F74: 196.55 | G74: 196.7 | H74: 198.55 | I74: 2341481 | J74: 462009876.1 | K74: 2019-12-18 | L74: 16821 | M74: INE079A01024
A75: AMDIND | B75: EQ | C75: 16.15 | D75: 16.3 | E75: 15.7 | F75: 15.75 | G75: 15.75 | H75: 16.35 | I75: 1773 | J75: 28293.6 | K75: 2019-12-18 | L75: 32 | M75: INE005I01014
A76: AMJLAND | B76: EQ | C76: 19.1 | D76: 19.5 | E76: 18.75 | F76: 19.15 | G76: 19.5 | H76: 19 | I76: 17217 | J76: 328328.25 | K76: 2019-12-18 | L76: 31 | M76: INE606A01024
A77: AMRUTANJAN | B77: EQ | C77: 448 | D77: 450.05 | E77: 438.5 | F77: 440.7 | G77: 440 | H77: 447.95 | I77: 8150 | J77: 3607063 | K77: 2019-12-18 | L77: 640 | M77: INE098F01031
A78: ANANTRAJ | B78: EQ | C78: 32.6 | D78: 33.15 | E78: 32.25 | F78: 32.45 | G78: 32.4 | H78: 32.7 | I78: 115485 | J78: 3774813.4 | K78: 2019-12-18 | L78: 1311 | M78: INE242C01024
A79: ANDHRABANK | B79: EQ | C79: 17.4 | D79: 17.6 | E79: 17.25 | F79: 17.45 | G79: 17.5 | H79: 17.5 | I79: 385618 | J79: 6703397.35 | K79: 2019-12-18 | L79: 1710 | M79: INE434A01013
A80: ANDHRACEMT | B80: EQ | C80: 2.25 | D80: 2.35 | E80: 2.25 | F80: 2.25 | G80: 2.25 | H80: 2.35 | I80: 24865 | J80: 56660.55 | K80: 2019-12-18 | L80: 63 | M80: INE666E01012
A81: ANDHRSUGAR | B81: EQ | C81: 288.35 | D81: 289.65 | E81: 282.1 | F81: 284.6 | G81: 284.5 | H81: 284.75 | I81: 17573 | J81: 5015215.3 | K81: 2019-12-18 | L81: 928 | M81: INE715B01013
A82: ANIKINDS | B82: EQ | C82: 8.15 | D82: 8.5 | E82: 7.8 | F82: 7.8 | G82: 7.8 | H82: 8.2 | I82: 4985 | J82: 39072 | K82: 2019-12-18 | L82: 56 | M82: INE087B01017
A83: ANKITMETAL | B83: BE | C83: 0.5 | D83: 0.55 | E83: 0.45 | F83: 0.5 | G83: 0.45 | H83: 0.5 | I83: 43639 | J83: 21505.8 | K83: 2019-12-18 | L83: 86 | M83: INE106I01010
A84: ANSALAPI | B84: EQ | C84: 4.45 | D84: 4.65 | E84: 4.4 | F84: 4.55 | G84: 4.55 | H84: 4.5 | I84: 7824 | J84: 35606.35 | K84: 2019-12-18 | L84: 48 | M84: INE436A01026
A85: ANSALHSG | B85: BE | C85: 4.9 | D85: 5.1 | E85: 4.9 | F85: 4.9 | G85: 4.9 | H85: 5 | I85: 20762 | J85: 102442.3 | K85: 2019-12-18 | L85: 64 | M85: INE880B01015
A86: ANTGRAPHIC | B86: BE | C86: 0.6 | D86: 0.6 | E86: 0.55 | F86: 0.6 | G86: 0.6 | H86: 0.6 | I86: 1005 | J86: 602.95 | K86: 2019-12-18 | L86: 6 | M86: INE414B01021
A87: ANUP | B87: EQ | C87: 465.95 | D87: 468 | E87: 454.55 | F87: 455.6 | G87: 455.1 | H87: 460.4 | I87: 2432 | J87: 1115587.1 | K87: 2019-12-18 | L87: 212 | M87: INE294Z01018
A88: APARINDS | B88: EQ | C88: 401.2 | D88: 404 | E88: 390.6 | F88: 398.8 | G88: 398.95 | H88: 402.9 | I88: 7287 | J88: 2902953.6 | K88: 2019-12-18 | L88: 595 | M88: INE372A01015
A89: APCL | B89: EQ | C89: 142.95 | D89: 143 | E89: 140.15 | F89: 141.2 | G89: 140.2 | H89: 141.3 | I89: 1076 | J89: 152449.25 | K89: 2019-12-18 | L89: 33 | M89: INE071F01012
A90: APCOTEXIND | B90: EQ | C90: 154.5 | D90: 157.95 | E90: 151 | F90: 152.5 | G90: 151.15 | H90: 154.5 | I90: 22492 | J90: 3450275.3 | K90: 2019-12-18 | L90: 553 | M90: INE116A01032
A91: APEX | B91: EQ | C91: 303 | D91: 311.75 | E91: 301.25 | F91: 305.5 | G91: 305.5 | H91: 302.8 | I91: 128154 | J91: 39395201 | K91: 2019-12-18 | L91: 3407 | M91: INE346W01013
A92: APLAPOLLO | B92: EQ | C92: 1648 | D92: 1667.8 | E92: 1613.1 | F92: 1626.6 | G92: 1617 | H92: 1637.9 | I92: 15218 | J92: 24978629.8 | K92: 2019-12-18 | L92: 2535 | M92: INE702C01019
A93: APLLTD | B93: EQ | C93: 557 | D93: 563.05 | E93: 545 | F93: 555.7 | G93: 556 | H93: 551.6 | I93: 54728 | J93: 30383817.85 | K93: 2019-12-18 | L93: 2614 | M93: INE901L01018
A94: APOLLO | B94: EQ | C94: 69.6 | D94: 71.5 | E94: 69.15 | F94: 69.8 | G94: 69.95 | H94: 69.55 | I94: 22288 | J94: 1565631.2 | K94: 2019-12-18 | L94: 740 | M94: INE713T01010
A95: APOLLOHOSP | B95: EQ | C95: 1371.05 | D95: 1394.85 | E95: 1370 | F95: 1384.85 | G95: 1386.85 | H95: 1363.65 | I95: 1244195 | J95: 1723846614 | K95: 2019-12-18 | L95: 47683 | M95: INE437A01024
A96: APOLLOPIPE | B96: EQ | C96: 338 | D96: 347 | E96: 331.35 | F96: 335.65 | G96: 336.5 | H96: 340.1 | I96: 7782 | J96: 2634996.45 | K96: 2019-12-18 | L96: 1182 | M96: INE126J01016
A97: APOLLOTYRE | B97: EQ | C97: 166 | D97: 166.5 | E97: 163.55 | F97: 164.55 | G97: 164.85 | H97: 165.4 | I97: 2040202 | J97: 336621231 | K97: 2019-12-18 | L97: 19300 | M97: INE438A01022
A98: APOLSINHOT | B98: EQ | C98: 671 | D98: 671 | E98: 654.95 | F98: 657.15 | G98: 656.05 | H98: 662.95 | I98: 519 | J98: 341786.4 | K98: 2019-12-18 | L98: 45 | M98: INE451F01024
A99: APTECHT | B99: EQ | C99: 168.2 | D99: 172.45 | E99: 162.25 | F99: 170.9 | G99: 172 | H99: 166.5 | I99: 670482 | J99: 112149987.8 | K99: 2019-12-18 | L99: 9910 | M99: INE266F01018
A100: ARCHIDPLY | B100: EQ | C100: 26.15 | D100: 26.55 | E100: 25.8 | F100: 26.05 | G100: 26 | H100: 26.25 | I100: 3306 | J100: 86307.55 | K100: 2019-12-18 | L100: 365 | M100: INE877I01016
A101: ARCHIES | B101: EQ | C101: 20.3 | D101: 21.25 | E101: 19.85 | F101: 20.05 | G101: 20.15 | H101: 20.55 | I101: 55958 | J101: 1138566.1 | K101: 2019-12-18 | L101: 591 | M101: INE731A01020
A102: ARCOTECH | B102: BE | C102: 1.9 | D102: 2 | E102: 1.9 | F102: 2 | G102: 2 | H102: 1.95 | I102: 20800 | J102: 40954.85 | K102: 2019-12-18 | L102: 41 | M102: INE574I01035
A103: ARENTERP | B103: EQ | C103: 9.45 | D103: 9.45 | E103: 9.45 | F103: 9.45 | G103: 9.45 | H103: 9 | I103: 400 | J103: 3780 | K103: 2019-12-18 | L103: 2 | M103: INE610C01014
A104: ARIES | B104: EQ | C104: 64.35 | D104: 64.35 | E104: 62.1 | F104: 62.9 | G104: 64.1 | H104: 63.05 | I104: 11383 | J104: 718831.9 | K104: 2019-12-18 | L104: 414 | M104: INE298I01015
A105: ARIHANT | B105: EQ | C105: 21.1 | D105: 22 | E105: 21.05 | F105: 21.5 | G105: 21.5 | H105: 21.9 | I105: 1012 | J105: 21718.7 | K105: 2019-12-18 | L105: 27 | M105: INE413D01011
A106: ARIHANTSUP | B106: EQ | C106: 23.5 | D106: 24.25 | E106: 22.9 | F106: 24 | G106: 24.15 | H106: 23.25 | I106: 1149 | J106: 27228.65 | K106: 2019-12-18 | L106: 25 | M106: INE643K01018
A107: ARMANFIN | B107: EQ | C107: 612 | D107: 616 | E107: 599.3 | F107: 600.15 | G107: 600 | H107: 598.55 | I107: 4031 | J107: 2430879.9 | K107: 2019-12-18 | L107: 257 | M107: INE109C01017
A108: AROGRANITE | B108: EQ | C108: 37.75 | D108: 39.8 | E108: 37 | F108: 38 | G108: 37.55 | H108: 37.5 | I108: 3112 | J108: 119590.7 | K108: 2019-12-18 | L108: 46 | M108: INE210C01013
A109: ARROWGREEN | B109: EQ | C109: 48.25 | D109: 50.9 | E109: 46.2 | F109: 47.9 | G109: 48.05 | H109: 48.6 | I109: 4216 | J109: 201938 | K109: 2019-12-18 | L109: 239 | M109: INE570D01018
A110: ARROWTEX | B110: EQ | C110: 8.85 | D110: 9.3 | E110: 8.8 | F110: 8.9 | G110: 8.9 | H110: 8.85 | I110: 10800 | J110: 97636.05 | K110: 2019-12-18 | L110: 78 | M110: INE933J01015
A111: ARSHIYA | B111: EQ | C111: 16.25 | D111: 17.45 | E111: 16.25 | F111: 16.7 | G111: 16.8 | H111: 17.2 | I111: 19422 | J111: 331108.3 | K111: 2019-12-18 | L111: 53 | M111: INE968D01022
A112: ARSSINFRA | B112: EQ | C112: 22.4 | D112: 22.65 | E112: 21.65 | F112: 21.9 | G112: 21.7 | H112: 22.25 | I112: 6452 | J112: 142894.45 | K112: 2019-12-18 | L112: 76 | M112: INE267I01010
A113: ARVIND | B113: EQ | C113: 39.7 | D113: 40.9 | E113: 39.2 | F113: 39.85 | G113: 39.55 | H113: 39.65 | I113: 2621056 | J113: 105287690.6 | K113: 2019-12-18 | L113: 10936 | M113: INE034A01011
A114: ARVINDFASN | B114: EQ | C114: 418.35 | D114: 429.85 | E114: 410 | F114: 413.9 | G114: 415 | H114: 418.35 | I114: 46259 | J114: 19473798.2 | K114: 2019-12-18 | L114: 2436 | M114: INE955V01021
A115: ARVSMART | B115: EQ | C115: 88.25 | D115: 89.95 | E115: 87.15 | F115: 88.1 | G115: 88 | H115: 89.2 | I115: 3979 | J115: 350525.35 | K115: 2019-12-18 | L115: 298 | M115: INE034S01021
A116: ASAHIINDIA | B116: EQ | C116: 201.95 | D116: 201.95 | E116: 194.55 | F116: 195.6 | G116: 194.55 | H116: 199.6 | I116: 4802 | J116: 944084.25 | K116: 2019-12-18 | L116: 243 | M116: INE439A01020
A117: ASAHISONG | B117: EQ | C117: 137.4 | D117: 149 | E117: 135.95 | F117: 146.25 | G117: 146.95 | H117: 139.8 | I117: 7256 | J117: 1052733.6 | K117: 2019-12-18 | L117: 436 | M117: INE228I01012
A118: ASAL | B118: EQ | C118: 31 | D118: 31.35 | E118: 30.5 | F118: 30.55 | G118: 31 | H118: 31.5 | I118: 4186 | J118: 128540.3 | K118: 2019-12-18 | L118: 56 | M118: INE900C01027
A119: ASHAPURMIN | B119: EQ | C119: 26.5 | D119: 26.5 | E119: 24.2 | F119: 25.15 | G119: 25.4 | H119: 25.35 | I119: 12774 | J119: 322546.65 | K119: 2019-12-18 | L119: 93 | M119: INE348A01023
A120: ASHIANA | B120: EQ | C120: 97.5 | D120: 99 | E120: 94.05 | F120: 97.55 | G120: 98.9 | H120: 96.35 | I120: 97004 | J120: 9336930.45 | K120: 2019-12-18 | L120: 1691 | M120: INE365D01021
A121: ASHIMASYN | B121: EQ | C121: 6.25 | D121: 7.25 | E121: 6 | F121: 6.3 | G121: 6.4 | H121: 6.2 | I121: 55298 | J121: 357160.05 | K121: 2019-12-18 | L121: 427 | M121: INE440A01010
A122: ASHOKA | B122: EQ | C122: 95 | D122: 95.8 | E122: 93.3 | F122: 94.25 | G122: 94.15 | H122: 92.8 | I122: 1666806 | J122: 156988264.2 | K122: 2019-12-18 | L122: 8690 | M122: INE442H01029
A123: ASHOKLEY | B123: EQ | C123: 80.05 | D123: 81.3 | E123: 79.1 | F123: 79.9 | G123: 79.95 | H123: 80.5 | I123: 12892036 | J123: 1032305680 | K123: 2019-12-18 | L123: 42950 | M123: INE208A01029
A124: ASIANHOTNR | B124: EQ | C124: 99.9 | D124: 99.9 | E124: 94.65 | F124: 95 | G124: 95 | H124: 95.75 | I124: 7246 | J124: 689755.65 | K124: 2019-12-18 | L124: 590 | M124: INE363A01022
A125: ASIANPAINT | B125: EQ | C125: 1749.25 | D125: 1782 | E125: 1733.65 | F125: 1778.45 | G125: 1779.9 | H125: 1745.4 | I125: 1476506 | J125: 2603265852 | K125: 2019-12-18 | L125: 72805 | M125: INE021A01026
A126: ASIANTILES | B126: EQ | C126: 228.9 | D126: 228.9 | E126: 223 | F126: 225.85 | G126: 223 | H126: 228.2 | I126: 27061 | J126: 6118272.25 | K126: 2019-12-18 | L126: 1641 | M126: INE022I01019
A127: ASPINWALL | B127: EQ | C127: 143.4 | D127: 143.4 | E127: 135.7 | F127: 137.95 | G127: 137.1 | H127: 138.9 | I127: 333 | J127: 45875.45 | K127: 2019-12-18 | L127: 15 | M127: INE991I01015
A128: ASTEC | B128: EQ | C128: 401.95 | D128: 401.95 | E128: 385.1 | F128: 392.85 | G128: 394.8 | H128: 395 | I128: 3212 | J128: 1253421.55 | K128: 2019-12-18 | L128: 327 | M128: INE563J01010
A129: ASTERDM | B129: EQ | C129: 161.2 | D129: 162.8 | E129: 157.45 | F129: 161.4 | G129: 162 | H129: 156.55 | I129: 329849 | J129: 52869207.65 | K129: 2019-12-18 | L129: 8008 | M129: INE914M01019
A130: ASTRAL | B130: EQ | C130: 1148 | D130: 1150 | E130: 1123 | F130: 1130.85 | G130: 1125.3 | H130: 1145.3 | I130: 25217 | J130: 28659173.85 | K130: 2019-12-18 | L130: 3482 | M130: INE006I01046
A131: ASTRAMICRO | B131: EQ | C131: 84.15 | D131: 84.8 | E131: 80.5 | F131: 81.1 | G131: 81 | H131: 84.9 | I131: 129385 | J131: 10659942 | K131: 2019-12-18 | L131: 1329 | M131: INE386C01029
A132: ASTRAZEN | B132: EQ | C132: 2889.7 | D132: 2895 | E132: 2827 | F132: 2841.55 | G132: 2840 | H132: 2858.65 | I132: 7973 | J132: 22733512.4 | K132: 2019-12-18 | L132: 1416 | M132: INE203A01020
A133: ASTRON | B133: EQ | C133: 39.35 | D133: 39.45 | E133: 37.1 | F133: 37.5 | G133: 37.15 | H133: 38.7 | I133: 84968 | J133: 3225399.75 | K133: 2019-12-18 | L133: 699 | M133: INE646X01014
A134: ATFL | B134: EQ | C134: 617.95 | D134: 625 | E134: 606.15 | F134: 613.9 | G134: 620 | H134: 613.35 | I134: 6101 | J134: 3742314.95 | K134: 2019-12-18 | L134: 779 | M134: INE209A01019
A135: ATLANTA | B135: EQ | C135: 5.95 | D135: 6.05 | E135: 5.8 | F135: 5.9 | G135: 6.05 | H135: 5.8 | I135: 10811 | J135: 64396.8 | K135: 2019-12-18 | L135: 43 | M135: INE285H01022
A136: ATLASCYCLE | B136: BE | C136: 42 | D136: 42.4 | E136: 41.05 | F136: 41.85 | G136: 41.25 | H136: 42 | I136: 1785 | J136: 74611.75 | K136: 2019-12-18 | L136: 24 | M136: INE446A01025
A137: ATUL | B137: EQ | C137: 4027.1 | D137: 4027.1 | E137: 4000 | F137: 4002.45 | G137: 4004.8 | H137: 4003.95 | I137: 11185 | J137: 44891563.95 | K137: 2019-12-18 | L137: 1192 | M137: INE100A01010
A138: ATULAUTO | B138: EQ | C138: 242.85 | D138: 243 | E138: 236 | F138: 236.95 | G138: 239.45 | H138: 239.85 | I138: 31664 | J138: 7532753.45 | K138: 2019-12-18 | L138: 489 | M138: INE951D01028
A139: AUBANK | B139: EQ | C139: 798 | D139: 798 | E139: 781 | F139: 794.2 | G139: 792.3 | H139: 797.15 | I139: 287842 | J139: 227343761.7 | K139: 2019-12-18 | L139: 5859 | M139: INE949L01017
A140: AURIONPRO | B140: EQ | C140: 63.95 | D140: 64 | E140: 61 | F140: 61.1 | G140: 61.1 | H140: 61.4 | I140: 9321 | J140: 575154.15 | K140: 2019-12-18 | L140: 148 | M140: INE132H01018
A141: AUROPHARMA | B141: EQ | C141: 449 | D141: 455.45 | E141: 446.25 | F141: 454 | G141: 454.9 | H141: 448.75 | I141: 2762551 | J141: 1246135471 | K141: 2019-12-18 | L141: 41312 | M141: INE406A01037
A142: AUSOMENT | B142: BE | C142: 33.15 | D142: 34.35 | E142: 33.15 | F142: 34.35 | G142: 34.35 | H142: 32.75 | I142: 762 | J142: 25994.7 | K142: 2019-12-18 | L142: 6 | M142: INE218C01016
A143: AUTOAXLES | B143: EQ | C143: 784.6 | D143: 805.75 | E143: 783.45 | F143: 799.25 | G143: 801 | H143: 786.75 | I143: 4366 | J143: 3466759.5 | K143: 2019-12-18 | L143: 366 | M143: INE449A01011
A144: AUTOIND | B144: BE | C144: 25.2 | D144: 27.05 | E144: 25.2 | F144: 26.4 | G144: 26.95 | H144: 25.8 | I144: 15125 | J144: 396031.2 | K144: 2019-12-18 | L144: 100 | M144: INE718H01014
A145: AUTOLITIND | B145: EQ | C145: 19.75 | D145: 20.8 | E145: 19.7 | F145: 20.1 | G145: 20.1 | H145: 19.7 | I145: 4150 | J145: 83329.05 | K145: 2019-12-18 | L145: 69 | M145: INE448A01013
A146: AVADHSUGAR | B146: EQ | C146: 260 | D146: 263.85 | E146: 255 | F146: 259.85 | G146: 258.85 | H146: 253.65 | I146: 221627 | J146: 57677655.6 | K146: 2019-12-18 | L146: 5762 | M146: INE349W01017
A147: AVANTIFEED | B147: EQ | C147: 542 | D147: 556.7 | E147: 539.55 | F147: 548.8 | G147: 549 | H147: 540.5 | I147: 559582 | J147: 307953824.1 | K147: 2019-12-18 | L147: 24161 | M147: INE871C01038
A148: AVTNPL | B148: EQ | C148: 30.85 | D148: 31.1 | E148: 29.45 | F148: 29.8 | G148: 29.7 | H148: 30.65 | I148: 73363 | J148: 2221880.95 | K148: 2019-12-18 | L148: 778 | M148: INE488D01021
A149: AXISBANK | B149: EQ | C149: 745.8 | D149: 748.55 | E149: 737.6 | F149: 741.85 | G149: 742.6 | H149: 745.65 | I149: 6678420 | J149: 4951749674 | K149: 2019-12-18 | L149: 106742 | M149: INE238A01034
A150: AXISCADES | B150: EQ | C150: 58 | D150: 64 | E150: 57.95 | F150: 60.95 | G150: 60.35 | H150: 55.25 | I150: 1010766 | J150: 62673247.35 | K150: 2019-12-18 | L150: 10125 | M150: INE555B01013
A151: AXISGOLD | B151: EQ | C151: 3332.75 | D151: 3350.05 | E151: 3329.1 | F151: 3346.8 | G151: 3346.8 | H151: 3332.75 | I151: 129 | J151: 431207.85 | K151: 2019-12-18 | L151: 44 | M151: INF846K01347
A152: AXISNIFTY | B152: EQ | C152: 1259.79 | D152: 1260 | E152: 1250.92 | F152: 1257.78 | G152: 1255.51 | H152: 1247.08 | I152: 35 | J152: 43895.37 | K152: 2019-12-18 | L152: 13 | M152: INF846K01ZL0
A153: AYMSYNTEX | B153: EQ | C153: 29.15 | D153: 29.15 | E153: 28.7 | F153: 29.1 | G153: 29.05 | H153: 28.7 | I153: 69735 | J153: 2029580.5 | K153: 2019-12-18 | L153: 153 | M153: INE193B01039
A154: BAGFILMS | B154: BE | C154: 1.85 | D154: 1.95 | E154: 1.85 | F154: 1.9 | G154: 1.9 | H154: 1.9 | I154: 52820 | J154: 100082.1 | K154: 2019-12-18 | L154: 82 | M154: INE116D01028
A155: BAJAJ-AUTO | B155: EQ | C155: 3199.05 | D155: 3220 | E155: 3192.2 | F155: 3213.65 | G155: 3215.5 | H155: 3199.1 | I155: 315871 | J155: 1013623195 | K155: 2019-12-18 | L155: 28760 | M155: INE917I01010
A156: BAJAJCON | B156: EQ | C156: 223.6 | D156: 226.5 | E156: 222.15 | F156: 224.3 | G156: 225 | H156: 223.6 | I156: 106772 | J156: 23961137.4 | K156: 2019-12-18 | L156: 4447 | M156: INE933K01021
A157: BAJAJELEC | B157: EQ | C157: 343 | D157: 343.95 | E157: 334.2 | F157: 338.6 | G157: 338.5 | H157: 341.4 | I157: 115132 | J157: 39029127.6 | K157: 2019-12-18 | L157: 2836 | M157: INE193E01025
A158: BAJAJFINSV | B158: EQ | C158: 9365 | D158: 9421 | E158: 9326.65 | F158: 9362.6 | G158: 9360 | H158: 9361.75 | I158: 228424 | J158: 2141097708 | K158: 2019-12-18 | L158: 25026 | M158: INE918I01018
A159: BAJAJHIND | B159: EQ | C159: 6.65 | D159: 6.8 | E159: 6.45 | F159: 6.5 | G159: 6.5 | H159: 6.55 | I159: 2622611 | J159: 17353997.35 | K159: 2019-12-18 | L159: 4228 | M159: INE306A01021
A160: BAJAJHLDNG | B160: EQ | C160: 3287.05 | D160: 3298.85 | E160: 3277.5 | F160: 3282.55 | G160: 3293.8 | H160: 3286.1 | I160: 54838 | J160: 180022400.3 | K160: 2019-12-18 | L160: 5315 | M160: INE118A01012
A161: BAJFINANCE | B161: EQ | C161: 4140.45 | D161: 4158.85 | E161: 4101.05 | F161: 4119.35 | G161: 4113.05 | H161: 4135.75 | I161: 1109775 | J161: 4577691097 | K161: 2019-12-18 | L161: 67114 | M161: INE296A01024
A162: BALAJITELE | B162: EQ | C162: 51.9 | D162: 52.4 | E162: 50.75 | F162: 51 | G162: 51 | H162: 52.15 | I162: 65797 | J162: 3363798.4 | K162: 2019-12-18 | L162: 639 | M162: INE794B01026
A163: BALAMINES | B163: EQ | C163: 362 | D163: 362 | E163: 350 | F163: 353.2 | G163: 351.25 | H163: 355.2 | I163: 10383 | J163: 3687168.55 | K163: 2019-12-18 | L163: 504 | M163: INE050E01027
A164: BALAXI | B164: EQ | C164: 72.05 | D164: 83.95 | E164: 72.05 | F164: 79.95 | G164: 80.95 | H164: 78.8 | I164: 288 | J164: 21544.6 | K164: 2019-12-18 | L164: 14 | M164: INE618N01014
A165: BALKRISHNA | B165: EQ | C165: 18 | D165: 18 | E165: 16.85 | F165: 17.2 | G165: 17.25 | H165: 17.3 | I165: 19869 | J165: 342136.3 | K165: 2019-12-18 | L165: 155 | M165: INE875R01011
A166: BALKRISIND | B166: EQ | C166: 951.8 | D166: 968.5 | E166: 945.8 | F166: 949.4 | G166: 953 | H166: 949.85 | I166: 926624 | J166: 887471518.2 | K166: 2019-12-18 | L166: 22465 | M166: INE787D01026
A167: BALLARPUR | B167: BE | C167: 0.4 | D167: 0.4 | E167: 0.35 | F167: 0.35 | G167: 0.4 | H167: 0.4 | I167: 6418384 | J167: 2342186.65 | K167: 2019-12-18 | L167: 655 | M167: INE294A01037
A168: BALMLAWRIE | B168: EQ | C168: 189.65 | D168: 199.7 | E168: 188.4 | F168: 192.65 | G168: 192.5 | H168: 187.8 | I168: 210988 | J168: 40744086 | K168: 2019-12-18 | L168: 3011 | M168: INE164A01016
A169: BALPHARMA | B169: EQ | C169: 39.8 | D169: 40.8 | E169: 39.55 | F169: 39.8 | G169: 39.6 | H169: 40.15 | I169: 5619 | J169: 224260.4 | K169: 2019-12-18 | L169: 198 | M169: INE083D01012
A170: BALRAMCHIN | B170: EQ | C170: 173.3 | D170: 175.8 | E170: 172.55 | F170: 173.7 | G170: 173.8 | H170: 170.1 | I170: 2730110 | J170: 475599373.7 | K170: 2019-12-18 | L170: 25756 | M170: INE119A01028
A171: BANARBEADS | B171: EQ | C171: 27.3 | D171: 29.35 | E171: 27.3 | F171: 28.85 | G171: 29 | H171: 28 | I171: 2371 | J171: 67026 | K171: 2019-12-18 | L171: 14 | M171: INE655B01011
A172: BANARISUG | B172: EQ | C172: 1153.95 | D172: 1153.95 | E172: 1130 | F172: 1130.75 | G172: 1146 | H172: 1124.05 | I172: 380 | J172: 433295.25 | K172: 2019-12-18 | L172: 197 | M172: INE459A01010
A173: BANCOINDIA | B173: EQ | C173: 94.5 | D173: 96.5 | E173: 94.5 | F173: 95.95 | G173: 95.95 | H173: 94.45 | I173: 40255 | J173: 3855926.8 | K173: 2019-12-18 | L173: 710 | M173: INE213C01025
A174: BANDHANBNK | B174: EQ | C174: 482 | D174: 504.4 | E174: 457 | F174: 500 | G174: 501.4 | H174: 480 | I174: 9235981 | J174: 4429661141 | K174: 2019-12-18 | L174: 174287 | M174: INE545U01014
A175: BANG | B175: EQ | C175: 16.8 | D175: 17.4 | E175: 16.65 | F175: 16.95 | G175: 17.35 | H175: 17 | I175: 1568 | J175: 26605.3 | K175: 2019-12-18 | L175: 77 | M175: INE863I01016
A176: BANKBARODA | B176: EQ | C176: 101.45 | D176: 101.6 | E176: 98.5 | F176: 98.9 | G176: 99 | H176: 102.2 | I176: 27067150 | J176: 2689354175 | K176: 2019-12-18 | L176: 73727 | M176: INE028A01039
A177: BANKBEES | B177: EQ | C177: 3276.23 | D177: 3291 | E177: 3262.05 | F177: 3286.95 | G177: 3290.95 | H177: 3276.34 | I177: 2787 | J177: 9128680.84 | K177: 2019-12-18 | L177: 402 | M177: INF732E01078
A178: BANKINDIA | B178: EQ | C178: 71.2 | D178: 73.55 | E178: 69.4 | F178: 71.35 | G178: 72.25 | H178: 71.25 | I178: 2478131 | J178: 175153145.2 | K178: 2019-12-18 | L178: 8775 | M178: INE084A01016
A179: BANSWRAS | B179: BE | C179: 90 | D179: 90.05 | E179: 85.05 | F179: 89.35 | G179: 90.05 | H179: 87.5 | I179: 7890 | J179: 698921.95 | K179: 2019-12-18 | L179: 66 | M179: INE629D01012
A180: BARTRONICS | B180: BE | C180: 1.65 | D180: 1.65 | E180: 1.55 | F180: 1.65 | G180: 1.65 | H180: 1.6 | I180: 3253 | J180: 5142.45 | K180: 2019-12-18 | L180: 17 | M180: INE855F01034
A181: BASF | B181: EQ | C181: 962.25 | D181: 962.25 | E181: 941 | F181: 946 | G181: 946.9 | H181: 947.8 | I181: 17251 | J181: 16346634.25 | K181: 2019-12-18 | L181: 718 | M181: INE373A01013
A182: BASML | B182: EQ | C182: 122.9 | D182: 122.9 | E182: 115.3 | F182: 116 | G182: 116 | H182: 117.9 | I182: 370 | J182: 43189 | K182: 2019-12-18 | L182: 22 | M182: INE186H01014
A183: BATAINDIA | B183: EQ | C183: 1685.6 | D183: 1687.9 | E183: 1653.9 | F183: 1662.95 | G183: 1663 | H183: 1683.2 | I183: 366968 | J183: 611551544.7 | K183: 2019-12-18 | L183: 15743 | M183: INE176A01028
A184: BAYERCROP | B184: EQ | C184: 3629.55 | D184: 3658 | E184: 3552.05 | F184: 3591.3 | G184: 3578 | H184: 3600.15 | I184: 58340 | J184: 210169918.2 | K184: 2019-12-18 | L184: 1827 | M184: INE462A01022
A185: BBL | B185: EQ | C185: 795 | D185: 795 | E185: 784.2 | F185: 788.1 | G185: 784.25 | H185: 790.7 | I185: 4926 | J185: 3880431.75 | K185: 2019-12-18 | L185: 249 | M185: INE464A01028
A186: BBTC | B186: EQ | C186: 1039.9 | D186: 1039.9 | E186: 1020 | F186: 1027.35 | G186: 1026.9 | H186: 1037.2 | I186: 71376 | J186: 73385557.45 | K186: 2019-12-18 | L186: 3354 | M186: INE050A01025
A187: BCG | B187: BE | C187: 5.85 | D187: 5.85 | E187: 5.55 | F187: 5.55 | G187: 5.55 | H187: 5.8 | I187: 407764 | J187: 2269148.85 | K187: 2019-12-18 | L187: 250 | M187: INE425B01027
A188: BCP | B188: EQ | C188: 12.1 | D188: 12.1 | E188: 12.1 | F188: 12.1 | G188: 12.1 | H188: 11.55 | I188: 47778 | J188: 578113.8 | K188: 2019-12-18 | L188: 49 | M188: INE905P01028
A189: BDL | B189: EQ | C189: 285 | D189: 292.4 | E189: 283.5 | F189: 286.3 | G189: 285 | H189: 284.45 | I189: 80681 | J189: 23099535.85 | K189: 2019-12-18 | L189: 2279 | M189: INE171Z01018
A190: BEARDSELL | B190: EQ | C190: 7.75 | D190: 7.9 | E190: 7.35 | F190: 7.5 | G190: 7.5 | H190: 7.9 | I190: 971 | J190: 7335.05 | K190: 2019-12-18 | L190: 51 | M190: INE520H01022
A191: BEDMUTHA | B191: BE | C191: 15.4 | D191: 15.6 | E191: 15.4 | F191: 15.6 | G191: 15.6 | H191: 16.1 | I191: 237 | J191: 3669.8 | K191: 2019-12-18 | L191: 2 | M191: INE844K01012
A192: BEL | B192: EQ | C192: 100.35 | D192: 100.75 | E192: 99.65 | F192: 100.45 | G192: 100.35 | H192: 100.2 | I192: 4468054 | J192: 447511769 | K192: 2019-12-18 | L192: 14307 | M192: INE263A01024
A193: BEML | B193: EQ | C193: 987.85 | D193: 994.8 | E193: 970.55 | F193: 984 | G193: 987 | H193: 987.1 | I193: 357239 | J193: 351232410.1 | K193: 2019-12-18 | L193: 12103 | M193: INE258A01016
A194: BEPL | B194: EQ | C194: 42.25 | D194: 42.65 | E194: 40.1 | F194: 41.05 | G194: 40.75 | H194: 42.25 | I194: 275796 | J194: 11481114.7 | K194: 2019-12-18 | L194: 5422 | M194: INE922A01025
A195: BERGEPAINT | B195: EQ | C195: 491 | D195: 502 | E195: 488.65 | F195: 500.15 | G195: 501.25 | H195: 492.8 | I195: 1663753 | J195: 827041290.6 | K195: 2019-12-18 | L195: 36299 | M195: INE463A01038
A196: BFINVEST | B196: EQ | C196: 325.9 | D196: 329.8 | E196: 322.6 | F196: 324.05 | G196: 323.5 | H196: 325.9 | I196: 101626 | J196: 33128819.45 | K196: 2019-12-18 | L196: 3227 | M196: INE878K01010
A197: BFUTILITIE | B197: EQ | C197: 321 | D197: 331.7 | E197: 318.6 | F197: 326.65 | G197: 326 | H197: 319.8 | I197: 372082 | J197: 121627127 | K197: 2019-12-18 | L197: 8573 | M197: INE243D01012
A198: BGLOBAL | B198: BE | C198: 1.95 | D198: 1.95 | E198: 1.85 | F198: 1.85 | G198: 1.85 | H198: 1.9 | I198: 1577 | J198: 2932.45 | K198: 2019-12-18 | L198: 14 | M198: INE224M01013
A199: BGRENERGY | B199: EQ | C199: 38 | D199: 38.5 | E199: 36.3 | F199: 36.55 | G199: 36.45 | H199: 38.35 | I199: 283301 | J199: 10473306.9 | K199: 2019-12-18 | L199: 2045 | M199: INE661I01014
A200: BHAGERIA | B200: EQ | C200: 92.95 | D200: 100.05 | E200: 92.1 | F200: 98.05 | G200: 97.95 | H200: 92.9 | I200: 30455 | J200: 2966513.1 | K200: 2019-12-18 | L200: 860 | M200: INE354C01027
... 1489 more rows

Sheet Sheet1 (hidden)

Sheet Sheet3 (hidden)

Sheet Sheet4 (hidden)

Sheet Sheet5 (hidden)
